Organisation Code,Organisation Label,Effective Date,Organisational Unit,Service Division Label,Category Internal Name,Purpose,Detailed Expenditure Code,Payment Date,Transaction Number,Irrecoverable VAT Amount,Amount,Capital Or Revenue,Benificiary Name,Procurement Card
Http://opendatacommunities.org/id/metropolitan-district-council/leeds,Leeds City Council,30/04/2018,Resources and Housing,Commercial Services  ,Supplies and Services,Operational Furniture And Equipment,203,09/03/2018,1804-00001,0.00,2074.00,R,A & D-S W Supplies,Yes
Http://opendatacommunities.org/id/metropolitan-district-council/leeds,Leeds City Council,30/04/2018,Resources and Housing,Strategic Housing Partnerships,Capital,Construction,3,18/04/2018,1804-00002,0.00,17524.73,C,A & P Crontractors Ltd,No
Http://opendatacommunities.org/id/metropolitan-district-council/leeds,Leeds City Council,30/04/2018,Resources and Housing,Leeds Building Services,Supplies and Services,Operational Materials,205,04/04/2018,1804-00003,0.00,199.76,R,A Andrews & Sons (Marbles & Tiles),No
Http://opendatacommunities.org/id/metropolitan-district-council/leeds,Leeds City Council,30/04/2018,Children and Families,Safeguarding Targeted & Specialist,Third Party Payments,Services Rendered By Other Organisations,511,20/04/2018,1804-00004,0.00,663.00,R,REDACTED PERSONAL DATA,No
Http://opendatacommunities.org/id/metropolitan-district-council/leeds,Leeds City Council,30/04/2018,Resources and Housing,HRA Housing Leeds,Capital,Other Costs,7,05/04/2018,1804-00005,0.00,350.00,C,REDACTED PERSONAL DATA,No
Http://opendatacommunities.org/id/metropolitan-district-council/leeds,Leeds City Council,30/04/2018,Children and Families,Safeguarding Targeted & Specialist,Third Party Payments,Services Rendered By Other Organisations,511,18/04/2018,1804-00006,0.00,795.60,R,A Clarkson,No
Http://opendatacommunities.org/id/metropolitan-district-council/leeds,Leeds City Council,30/04/2018,Children and Families,Safeguarding Targeted & Specialist,Third Party Payments,Services Rendered By Other Organisations,511,20/04/2018,1804-00007,0.00,663.00,R,A Clarkson,No
Http://opendatacommunities.org/id/metropolitan-district-council/leeds,Leeds City Council,30/04/2018,Children and Families,Safeguarding Targeted & Specialist,Transfer Payments,Leaving Care Allowances,634,24/04/2018,1804-00008,0.00,280.00,R,REDACTED PERSONAL DATA,No
Http://opendatacommunities.org/id/metropolitan-district-council/leeds,Leeds City Council,30/04/2018,Children and Families,Safeguarding Targeted & Specialist,Third Party Payments,Services Rendered By Voluntary Sector,505,18/04/2018,1804-00009,0.00,7956.00,R,REDACTED PERSONAL DATA,No
Http://opendatacommunities.org/id/metropolitan-district-council/leeds,Leeds City Council,30/04/2018,Children and Families,Safeguarding Targeted & Specialist,Third Party Payments,Services Rendered By Voluntary Sector,505,20/04/2018,1804-00010,0.00,13790.40,R,REDACTED PERSONAL DATA,No
Http://opendatacommunities.org/id/metropolitan-district-council/leeds,Leeds City Council,30/04/2018,City Development,Highways,Capital,Construction,3,23/04/2018,1804-00011,0.00,194242.72,C,A E Yates Ltd,No
Http://opendatacommunities.org/id/metropolitan-district-council/leeds,Leeds City Council,30/04/2018,Children and Families,Safeguarding Targeted & Specialist,Third Party Payments,Services Rendered By Other Organisations,511,20/04/2018,1804-00012,0.00,1326.00,R,A Foley,No
Http://opendatacommunities.org/id/metropolitan-district-council/leeds,Leeds City Council,30/04/2018,Children and Families,Safeguarding Targeted & Specialist,Third Party Payments,Services Rendered By Other Organisations,511,20/04/2018,1804-00013,0.00,4862.00,R,REDACTED PERSONAL DATA,No
Http://opendatacommunities.org/id/metropolitan-district-council/leeds,Leeds City Council,30/04/2018,Children and Families,Safeguarding Targeted & Specialist,Third Party Payments,Services Rendered By Other Organisations,511,20/04/2018,1804-00014,0.00,2431.00,R,REDACTED PERSONAL DATA,No
Http://opendatacommunities.org/id/metropolitan-district-council/leeds,Leeds City Council,30/04/2018,Children and Families,Safeguarding Targeted & Specialist,Third Party Payments,Services Rendered By Other Organisations,511,20/04/2018,1804-00015,0.00,2939.30,R,A Hodgson,No
Http://opendatacommunities.org/id/metropolitan-district-council/leeds,Leeds City Council,30/04/2018,Children and Families,Safeguarding Targeted & Specialist,Third Party Payments,Services Rendered By Other Organisations,511,20/04/2018,1804-00016,0.00,3634.60,R,REDACTED PERSONAL DATA,No
Http://opendatacommunities.org/id/metropolitan-district-council/leeds,Leeds City Council,30/04/2018,Children and Families,Safeguarding Targeted & Specialist,Third Party Payments,Services Rendered By Other Organisations,511,20/04/2018,1804-00017,0.00,2652.00,R,REDACTED PERSONAL DATA,No
Http://opendatacommunities.org/id/metropolitan-district-council/leeds,Leeds City Council,30/04/2018,Resources and Housing,Strategy And Improvement  ,Supplies and Services,Computer Software & Equipment,214,16/03/2018,1804-00018,0.00,340.00,R,A I Media Data Ltd,Yes
Http://opendatacommunities.org/id/metropolitan-district-council/leeds,Leeds City Council,30/04/2018,Resources and Housing,Strategy And Improvement  ,Supplies and Services,Computer Software & Equipment,214,26/03/2018,1804-00019,0.00,6960.00,R,A I Media Data Ltd,Yes
Http://opendatacommunities.org/id/metropolitan-district-council/leeds,Leeds City Council,30/04/2018,City Development,Libraries  Arts & Heritage,Supplies and Services,Other Hired And Contracted Services,265,26/04/2018,1804-00020,0.00,80.00,R,REDACTED COMMERCIAL CONFIDENTIALITY,No
Http://opendatacommunities.org/id/metropolitan-district-council/leeds,Leeds City Council,30/04/2018,Resources and Housing,Leeds Building Services,Supplies and Services,Operational Materials,205,04/04/2018,1804-00021,0.00,1213.00,R,A J H  Pump Supply & Repair Ltd,No
Http://opendatacommunities.org/id/metropolitan-district-council/leeds,Leeds City Council,30/04/2018,Resources and Housing,Leeds Building Services,Supplies and Services,Operational Materials,205,04/04/2018,1804-00022,0.00,2198.00,R,A J H  Pump Supply & Repair Ltd,No
Http://opendatacommunities.org/id/metropolitan-district-council/leeds,Leeds City Council,30/04/2018,Resources and Housing,Leeds Building Services,Supplies and Services,Operational Materials,205,09/04/2018,1804-00023,0.00,128.51,R,A J H  Pump Supply & Repair Ltd,No
Http://opendatacommunities.org/id/metropolitan-district-council/leeds,Leeds City Council,30/04/2018,Resources and Housing,Leeds Building Services,Supplies and Services,Operational Materials,205,09/04/2018,1804-00024,0.00,205.07,R,A J H  Pump Supply & Repair Ltd,No
Http://opendatacommunities.org/id/metropolitan-district-council/leeds,Leeds City Council,30/04/2018,Resources and Housing,Leeds Building Services,Supplies and Services,Operational Materials,205,09/04/2018,1804-00025,0.00,145.00,R,A J H  Pump Supply & Repair Ltd,No
Http://opendatacommunities.org/id/metropolitan-district-council/leeds,Leeds City Council,30/04/2018,Resources and Housing,Leeds Building Services,Supplies and Services,Operational Materials,205,09/04/2018,1804-00026,0.00,110.00,R,A J H  Pump Supply & Repair Ltd,No
Http://opendatacommunities.org/id/metropolitan-district-council/leeds,Leeds City Council,30/04/2018,Resources and Housing,Leeds Building Services,Supplies and Services,Operational Materials,205,09/04/2018,1804-00027,0.00,444.00,R,A J H  Pump Supply & Repair Ltd,No
Http://opendatacommunities.org/id/metropolitan-district-council/leeds,Leeds City Council,30/04/2018,Resources and Housing,Leeds Building Services,Supplies and Services,Operational Materials,205,09/04/2018,1804-00028,0.00,110.00,R,A J H  Pump Supply & Repair Ltd,No
Http://opendatacommunities.org/id/metropolitan-district-council/leeds,Leeds City Council,30/04/2018,Resources and Housing,Leeds Building Services,Supplies and Services,Operational Materials,205,09/04/2018,1804-00029,0.00,116.45,R,A J H  Pump Supply & Repair Ltd,No
Http://opendatacommunities.org/id/metropolitan-district-council/leeds,Leeds City Council,30/04/2018,Resources and Housing,Leeds Building Services,Supplies and Services,Operational Materials,205,09/04/2018,1804-00030,0.00,105.63,R,A J H  Pump Supply & Repair Ltd,No
Http://opendatacommunities.org/id/metropolitan-district-council/leeds,Leeds City Council,30/04/2018,Resources and Housing,Leeds Building Services,Supplies and Services,Operational Materials,205,09/04/2018,1804-00031,0.00,135.50,R,A J H  Pump Supply & Repair Ltd,No
Http://opendatacommunities.org/id/metropolitan-district-council/leeds,Leeds City Council,30/04/2018,Resources and Housing,Leeds Building Services,Supplies and Services,Operational Materials,205,09/04/2018,1804-00032,0.00,104.52,R,A J H  Pump Supply & Repair Ltd,No
Http://opendatacommunities.org/id/metropolitan-district-council/leeds,Leeds City Council,30/04/2018,Resources and Housing,Leeds Building Services,Supplies and Services,Operational Materials,205,09/04/2018,1804-00033,0.00,132.17,R,A J H  Pump Supply & Repair Ltd,No
Http://opendatacommunities.org/id/metropolitan-district-council/leeds,Leeds City Council,30/04/2018,Resources and Housing,Leeds Building Services,Supplies and Services,Operational Materials,205,09/04/2018,1804-00034,0.00,86.59,R,A J H  Pump Supply & Repair Ltd,No
Http://opendatacommunities.org/id/metropolitan-district-council/leeds,Leeds City Council,30/04/2018,Resources and Housing,Leeds Building Services,Supplies and Services,Operational Materials,205,09/04/2018,1804-00035,0.00,61.18,R,A J H  Pump Supply & Repair Ltd,No
Http://opendatacommunities.org/id/metropolitan-district-council/leeds,Leeds City Council,30/04/2018,Resources and Housing,Leeds Building Services,Supplies and Services,Operational Materials,205,13/04/2018,1804-00036,0.00,33.59,R,A J H  Pump Supply & Repair Ltd,No
Http://opendatacommunities.org/id/metropolitan-district-council/leeds,Leeds City Council,30/04/2018,Resources and Housing,Leeds Building Services,Supplies and Services,Operational Materials,205,13/04/2018,1804-00037,0.00,366.53,R,A J H  Pump Supply & Repair Ltd,No
Http://opendatacommunities.org/id/metropolitan-district-council/leeds,Leeds City Council,30/04/2018,Resources and Housing,Leeds Building Services,Supplies and Services,Operational Materials,205,13/04/2018,1804-00038,0.00,27.50,R,A J H  Pump Supply & Repair Ltd,No
Http://opendatacommunities.org/id/metropolitan-district-council/leeds,Leeds City Council,30/04/2018,Resources and Housing,Leeds Building Services,Supplies and Services,Operational Materials,205,13/04/2018,1804-00039,0.00,837.00,R,A J H  Pump Supply & Repair Ltd,No
Http://opendatacommunities.org/id/metropolitan-district-council/leeds,Leeds City Council,30/04/2018,Resources and Housing,Leeds Building Services,Supplies and Services,Operational Materials,205,13/04/2018,1804-00040,0.00,159.00,R,A J H  Pump Supply & Repair Ltd,No
Http://opendatacommunities.org/id/metropolitan-district-council/leeds,Leeds City Council,30/04/2018,Resources and Housing,Leeds Building Services,Supplies and Services,Operational Materials,205,13/04/2018,1804-00041,0.00,48.85,R,A J H  Pump Supply & Repair Ltd,No
Http://opendatacommunities.org/id/metropolitan-district-council/leeds,Leeds City Council,30/04/2018,Resources and Housing,Leeds Building Services,Supplies and Services,Operational Materials,205,13/04/2018,1804-00042,0.00,351.09,R,A J H  Pump Supply & Repair Ltd,No
Http://opendatacommunities.org/id/metropolitan-district-council/leeds,Leeds City Council,30/04/2018,Resources and Housing,Leeds Building Services,Supplies and Services,Operational Materials,205,13/04/2018,1804-00043,0.00,85.00,R,A J H  Pump Supply & Repair Ltd,No
Http://opendatacommunities.org/id/metropolitan-district-council/leeds,Leeds City Council,30/04/2018,Resources and Housing,Leeds Building Services,Supplies and Services,Operational Materials,205,13/04/2018,1804-00044,0.00,43.50,R,A J H  Pump Supply & Repair Ltd,No
Http://opendatacommunities.org/id/metropolitan-district-council/leeds,Leeds City Council,30/04/2018,Resources and Housing,Leeds Building Services,Supplies and Services,Operational Materials,205,13/04/2018,1804-00045,0.00,110.00,R,A J H  Pump Supply & Repair Ltd,No
Http://opendatacommunities.org/id/metropolitan-district-council/leeds,Leeds City Council,30/04/2018,Resources and Housing,Leeds Building Services,Supplies and Services,Operational Materials,205,13/04/2018,1804-00046,0.00,110.65,R,A J H  Pump Supply & Repair Ltd,No
Http://opendatacommunities.org/id/metropolitan-district-council/leeds,Leeds City Council,30/04/2018,Resources and Housing,Leeds Building Services,Supplies and Services,Operational Materials,205,13/04/2018,1804-00047,0.00,134.99,R,A J H  Pump Supply & Repair Ltd,No
Http://opendatacommunities.org/id/metropolitan-district-council/leeds,Leeds City Council,30/04/2018,Resources and Housing,Leeds Building Services,Supplies and Services,Operational Materials,205,13/04/2018,1804-00048,0.00,12.95,R,A J H  Pump Supply & Repair Ltd,No
Http://opendatacommunities.org/id/metropolitan-district-council/leeds,Leeds City Council,30/04/2018,Resources and Housing,Leeds Building Services,Supplies and Services,Operational Materials,205,13/04/2018,1804-00049,0.00,35.00,R,A J H  Pump Supply & Repair Ltd,No
Http://opendatacommunities.org/id/metropolitan-district-council/leeds,Leeds City Council,30/04/2018,Resources and Housing,Leeds Building Services,Supplies and Services,Operational Materials,205,13/04/2018,1804-00050,0.00,207.50,R,A J H  Pump Supply & Repair Ltd,No
Http://opendatacommunities.org/id/metropolitan-district-council/leeds,Leeds City Council,30/04/2018,Resources and Housing,Leeds Building Services,Supplies and Services,Operational Materials,205,13/04/2018,1804-00051,0.00,137.95,R,A J H  Pump Supply & Repair Ltd,No
Http://opendatacommunities.org/id/metropolitan-district-council/leeds,Leeds City Council,30/04/2018,Resources and Housing,Leeds Building Services,Supplies and Services,Operational Materials,205,13/04/2018,1804-00052,0.00,341.38,R,A J H  Pump Supply & Repair Ltd,No
Http://opendatacommunities.org/id/metropolitan-district-council/leeds,Leeds City Council,30/04/2018,Resources and Housing,Leeds Building Services,Supplies and Services,Operational Materials,205,13/04/2018,1804-00053,0.00,107.70,R,A J H  Pump Supply & Repair Ltd,No
Http://opendatacommunities.org/id/metropolitan-district-council/leeds,Leeds City Council,30/04/2018,Resources and Housing,Leeds Building Services,Supplies and Services,Operational Materials,205,13/04/2018,1804-00054,0.00,567.45,R,A J H  Pump Supply & Repair Ltd,No
Http://opendatacommunities.org/id/metropolitan-district-council/leeds,Leeds City Council,30/04/2018,Resources and Housing,Leeds Building Services,Supplies and Services,Operational Materials,205,13/04/2018,1804-00055,0.00,52.00,R,A J H  Pump Supply & Repair Ltd,No
Http://opendatacommunities.org/id/metropolitan-district-council/leeds,Leeds City Council,30/04/2018,Resources and Housing,Leeds Building Services,Supplies and Services,Operational Materials,205,13/04/2018,1804-00056,0.00,269.00,R,A J H  Pump Supply & Repair Ltd,No
Http://opendatacommunities.org/id/metropolitan-district-council/leeds,Leeds City Council,30/04/2018,Resources and Housing,Leeds Building Services,Supplies and Services,Operational Materials,205,13/04/2018,1804-00057,0.00,1120.00,R,A J H  Pump Supply & Repair Ltd,No
Http://opendatacommunities.org/id/metropolitan-district-council/leeds,Leeds City Council,30/04/2018,Resources and Housing,Leeds Building Services,Supplies and Services,Operational Materials,205,17/04/2018,1804-00058,0.00,475.00,R,A J H  Pump Supply & Repair Ltd,No
Http://opendatacommunities.org/id/metropolitan-district-council/leeds,Leeds City Council,30/04/2018,Resources and Housing,Leeds Building Services,Supplies and Services,Operational Materials,205,17/04/2018,1804-00059,0.00,304.45,R,A J H  Pump Supply & Repair Ltd,No
Http://opendatacommunities.org/id/metropolitan-district-council/leeds,Leeds City Council,30/04/2018,Resources and Housing,Leeds Building Services,Supplies and Services,Operational Materials,205,23/04/2018,1804-00060,0.00,750.00,R,A J H  Pump Supply & Repair Ltd,No
Http://opendatacommunities.org/id/metropolitan-district-council/leeds,Leeds City Council,30/04/2018,Resources and Housing,Leeds Building Services,Supplies and Services,Operational Materials,205,23/04/2018,1804-00061,0.00,675.00,R,A J H  Pump Supply & Repair Ltd,No
Http://opendatacommunities.org/id/metropolitan-district-council/leeds,Leeds City Council,30/04/2018,Resources and Housing,Leeds Building Services,Supplies and Services,Operational Materials,205,23/04/2018,1804-00062,0.00,895.00,R,A J H  Pump Supply & Repair Ltd,No
Http://opendatacommunities.org/id/metropolitan-district-council/leeds,Leeds City Council,30/04/2018,Resources and Housing,Leeds Building Services,Supplies and Services,Operational Materials,205,23/04/2018,1804-00063,0.00,345.00,R,A J H  Pump Supply & Repair Ltd,No
Http://opendatacommunities.org/id/metropolitan-district-council/leeds,Leeds City Council,30/04/2018,Resources and Housing,Leeds Building Services,Supplies and Services,Operational Materials,205,23/04/2018,1804-00064,0.00,78.59,R,A J H  Pump Supply & Repair Ltd,No
Http://opendatacommunities.org/id/metropolitan-district-council/leeds,Leeds City Council,30/04/2018,Resources and Housing,Leeds Building Services,Supplies and Services,Operational Materials,205,23/04/2018,1804-00065,0.00,39.50,R,A J H  Pump Supply & Repair Ltd,No
Http://opendatacommunities.org/id/metropolitan-district-council/leeds,Leeds City Council,30/04/2018,Resources and Housing,Leeds Building Services,Supplies and Services,Operational Materials,205,23/04/2018,1804-00066,0.00,72.00,R,A J H  Pump Supply & Repair Ltd,No
Http://opendatacommunities.org/id/metropolitan-district-council/leeds,Leeds City Council,30/04/2018,Resources and Housing,Leeds Building Services,Supplies and Services,Operational Materials,205,23/04/2018,1804-00067,0.00,2150.00,R,A J H  Pump Supply & Repair Ltd,No
Http://opendatacommunities.org/id/metropolitan-district-council/leeds,Leeds City Council,30/04/2018,Resources and Housing,Leeds Building Services,Supplies and Services,Operational Materials,205,23/04/2018,1804-00068,0.00,38.00,R,A J H  Pump Supply & Repair Ltd,No
Http://opendatacommunities.org/id/metropolitan-district-council/leeds,Leeds City Council,30/04/2018,Resources and Housing,Leeds Building Services,Supplies and Services,Operational Materials,205,23/04/2018,1804-00069,0.00,110.00,R,A J H  Pump Supply & Repair Ltd,No
Http://opendatacommunities.org/id/metropolitan-district-council/leeds,Leeds City Council,30/04/2018,Resources and Housing,Leeds Building Services,Supplies and Services,Operational Materials,205,23/04/2018,1804-00070,0.00,196.50,R,A J H  Pump Supply & Repair Ltd,No
Http://opendatacommunities.org/id/metropolitan-district-council/leeds,Leeds City Council,30/04/2018,Resources and Housing,Leeds Building Services,Supplies and Services,Operational Materials,205,23/04/2018,1804-00071,0.00,310.00,R,A J H  Pump Supply & Repair Ltd,No
Http://opendatacommunities.org/id/metropolitan-district-council/leeds,Leeds City Council,30/04/2018,Resources and Housing,Leeds Building Services,Supplies and Services,Operational Materials,205,23/04/2018,1804-00072,0.00,50.17,R,A J H  Pump Supply & Repair Ltd,No
Http://opendatacommunities.org/id/metropolitan-district-council/leeds,Leeds City Council,30/04/2018,Resources and Housing,Leeds Building Services,Supplies and Services,Operational Materials,205,23/04/2018,1804-00073,0.00,43.95,R,A J H  Pump Supply & Repair Ltd,No
Http://opendatacommunities.org/id/metropolitan-district-council/leeds,Leeds City Council,30/04/2018,Resources and Housing,Leeds Building Services,Supplies and Services,Operational Materials,205,23/04/2018,1804-00074,0.00,76.94,R,A J H  Pump Supply & Repair Ltd,No
Http://opendatacommunities.org/id/metropolitan-district-council/leeds,Leeds City Council,30/04/2018,Resources and Housing,Leeds Building Services,Supplies and Services,Operational Materials,205,23/04/2018,1804-00075,0.00,950.00,R,A J H  Pump Supply & Repair Ltd,No
Http://opendatacommunities.org/id/metropolitan-district-council/leeds,Leeds City Council,30/04/2018,Resources and Housing,Leeds Building Services,Supplies and Services,Operational Materials,205,23/04/2018,1804-00076,0.00,1190.00,R,A J H  Pump Supply & Repair Ltd,No
Http://opendatacommunities.org/id/metropolitan-district-council/leeds,Leeds City Council,30/04/2018,Resources and Housing,Leeds Building Services,Supplies and Services,Operational Materials,205,23/04/2018,1804-00077,0.00,101.76,R,A J H  Pump Supply & Repair Ltd,No
Http://opendatacommunities.org/id/metropolitan-district-council/leeds,Leeds City Council,30/04/2018,Resources and Housing,Leeds Building Services,Supplies and Services,Operational Materials,205,23/04/2018,1804-00078,0.00,593.89,R,A J H  Pump Supply & Repair Ltd,No
Http://opendatacommunities.org/id/metropolitan-district-council/leeds,Leeds City Council,30/04/2018,Resources and Housing,Leeds Building Services,Supplies and Services,Operational Materials,205,23/04/2018,1804-00079,0.00,86.92,R,A J H  Pump Supply & Repair Ltd,No
Http://opendatacommunities.org/id/metropolitan-district-council/leeds,Leeds City Council,30/04/2018,Resources and Housing,Leeds Building Services,Supplies and Services,Operational Materials,205,23/04/2018,1804-00080,0.00,1138.00,R,A J H  Pump Supply & Repair Ltd,No
Http://opendatacommunities.org/id/metropolitan-district-council/leeds,Leeds City Council,30/04/2018,Resources and Housing,Leeds Building Services,Supplies and Services,Operational Materials,205,23/04/2018,1804-00081,0.00,165.75,R,A J H  Pump Supply & Repair Ltd,No
Http://opendatacommunities.org/id/metropolitan-district-council/leeds,Leeds City Council,30/04/2018,Resources and Housing,Leeds Building Services,Supplies and Services,Operational Materials,205,23/04/2018,1804-00082,0.00,386.21,R,A J H  Pump Supply & Repair Ltd,No
Http://opendatacommunities.org/id/metropolitan-district-council/leeds,Leeds City Council,30/04/2018,Resources and Housing,Leeds Building Services,Supplies and Services,Operational Materials,205,23/04/2018,1804-00083,0.00,114.99,R,A J H  Pump Supply & Repair Ltd,No
Http://opendatacommunities.org/id/metropolitan-district-council/leeds,Leeds City Council,30/04/2018,Resources and Housing,Leeds Building Services,Supplies and Services,Operational Materials,205,23/04/2018,1804-00084,0.00,197.50,R,A J H  Pump Supply & Repair Ltd,No
Http://opendatacommunities.org/id/metropolitan-district-council/leeds,Leeds City Council,30/04/2018,Resources and Housing,Leeds Building Services,Supplies and Services,Operational Materials,205,23/04/2018,1804-00085,0.00,62.01,R,A J H  Pump Supply & Repair Ltd,No
Http://opendatacommunities.org/id/metropolitan-district-council/leeds,Leeds City Council,30/04/2018,Resources and Housing,Leeds Building Services,Supplies and Services,Operational Materials,205,23/04/2018,1804-00086,0.00,13.50,R,A J H  Pump Supply & Repair Ltd,No
Http://opendatacommunities.org/id/metropolitan-district-council/leeds,Leeds City Council,30/04/2018,Resources and Housing,Leeds Building Services,Supplies and Services,Operational Materials,205,23/04/2018,1804-00087,0.00,26.50,R,A J H  Pump Supply & Repair Ltd,No
Http://opendatacommunities.org/id/metropolitan-district-council/leeds,Leeds City Council,30/04/2018,Resources and Housing,Leeds Building Services,Supplies and Services,Operational Materials,205,23/04/2018,1804-00088,0.00,508.52,R,A J H  Pump Supply & Repair Ltd,No
Http://opendatacommunities.org/id/metropolitan-district-council/leeds,Leeds City Council,30/04/2018,Resources and Housing,Leeds Building Services,Supplies and Services,Operational Materials,205,23/04/2018,1804-00089,0.00,33.59,R,A J H  Pump Supply & Repair Ltd,No
Http://opendatacommunities.org/id/metropolitan-district-council/leeds,Leeds City Council,30/04/2018,Resources and Housing,Leeds Building Services,Supplies and Services,Operational Materials,205,23/04/2018,1804-00090,0.00,237.80,R,A J H  Pump Supply & Repair Ltd,No
Http://opendatacommunities.org/id/metropolitan-district-council/leeds,Leeds City Council,30/04/2018,Resources and Housing,Leeds Building Services,Supplies and Services,Operational Furniture And Equipment,203,23/04/2018,1804-00091,0.00,125.00,R,A J H  Pump Supply & Repair Ltd,No
Http://opendatacommunities.org/id/metropolitan-district-council/leeds,Leeds City Council,30/04/2018,Resources and Housing,Leeds Building Services,Supplies and Services,Operational Materials,205,23/04/2018,1804-00092,0.00,94.50,R,A J H  Pump Supply & Repair Ltd,No
Http://opendatacommunities.org/id/metropolitan-district-council/leeds,Leeds City Council,30/04/2018,Resources and Housing,Leeds Building Services,Supplies and Services,Operational Materials,205,23/04/2018,1804-00093,0.00,24.00,R,A J H  Pump Supply & Repair Ltd,No
Http://opendatacommunities.org/id/metropolitan-district-council/leeds,Leeds City Council,30/04/2018,Resources and Housing,Leeds Building Services,Supplies and Services,Operational Materials,205,23/04/2018,1804-00094,0.00,24.50,R,A J H  Pump Supply & Repair Ltd,No
Http://opendatacommunities.org/id/metropolitan-district-council/leeds,Leeds City Council,30/04/2018,Resources and Housing,Leeds Building Services,Supplies and Services,Operational Materials,205,23/04/2018,1804-00095,0.00,185.21,R,A J H  Pump Supply & Repair Ltd,No
Http://opendatacommunities.org/id/metropolitan-district-council/leeds,Leeds City Council,30/04/2018,Resources and Housing,Leeds Building Services,Supplies and Services,Operational Materials,205,23/04/2018,1804-00096,0.00,-1344.00,R,A J H  Pump Supply & Repair Ltd,No
Http://opendatacommunities.org/id/metropolitan-district-council/leeds,Leeds City Council,30/04/2018,Resources and Housing,Leeds Building Services,Supplies and Services,Other Hired And Contracted Services,265,27/04/2018,1804-00097,0.00,671.00,R,A J H  Pump Supply & Repair Ltd,No
Http://opendatacommunities.org/id/metropolitan-district-council/leeds,Leeds City Council,30/04/2018,Communities and Environment,Customer Access,Supplies and Services,Resaleable Materials,204,04/04/2018,1804-00098,0.00,70.32,R,A J Promotions,No
Http://opendatacommunities.org/id/metropolitan-district-council/leeds,Leeds City Council,30/04/2018,Communities and Environment,Parks and Countryside,Supplies and Services,Resaleable Materials,204,06/04/2018,1804-00099,0.00,1497.14,R,A J Promotions,No
Http://opendatacommunities.org/id/metropolitan-district-council/leeds,Leeds City Council,30/04/2018,Communities and Environment,Parks and Countryside,Supplies and Services,Resaleable Materials,204,11/04/2018,1804-00100,0.00,2077.51,R,A J Promotions,No
Http://opendatacommunities.org/id/metropolitan-district-council/leeds,Leeds City Council,30/04/2018,Communities and Environment,Parks and Countryside,Supplies and Services,Resaleable Materials,204,25/04/2018,1804-00101,0.00,620.00,R,A J Promotions,No
Http://opendatacommunities.org/id/metropolitan-district-council/leeds,Leeds City Council,30/04/2018,Communities and Environment,Customer Access,Supplies and Services,Resaleable Materials,204,25/04/2018,1804-00102,0.00,-23.52,R,A J Promotions,No
Http://opendatacommunities.org/id/metropolitan-district-council/leeds,Leeds City Council,30/04/2018,Communities and Environment,Customer Access,Supplies and Services,Resaleable Materials,204,27/04/2018,1804-00103,0.00,23.52,R,A J Promotions,No
Http://opendatacommunities.org/id/metropolitan-district-council/leeds,Leeds City Council,30/04/2018,Children and Families,Safeguarding Targeted & Specialist,Third Party Payments,Services Rendered By Other Organisations,511,18/04/2018,1804-00104,0.00,2386.00,R,A K Walsh,No
Http://opendatacommunities.org/id/metropolitan-district-council/leeds,Leeds City Council,30/04/2018,Children and Families,Safeguarding Targeted & Specialist,Third Party Payments,Services Rendered By Other Organisations,511,20/04/2018,1804-00105,0.00,3978.00,R,A K Walsh,No
Http://opendatacommunities.org/id/metropolitan-district-council/leeds,Leeds City Council,30/04/2018,Children and Families,Safeguarding Targeted & Specialist,Third Party Payments,Allowances,546,19/04/2018,1804-00106,0.00,700.00,R,REDACTED PERSONAL DATA,No
Http://opendatacommunities.org/id/metropolitan-district-council/leeds,Leeds City Council,30/04/2018,Children and Families,Safeguarding Targeted & Specialist,Third Party Payments,Services Rendered By Other Organisations,511,13/04/2018,1804-00107,0.00,1400.00,R,A Little Something Extra Ltd,No
Http://opendatacommunities.org/id/metropolitan-district-council/leeds,Leeds City Council,30/04/2018,Children and Families,Safeguarding Targeted & Specialist,Third Party Payments,Services Rendered By Other Organisations,511,18/04/2018,1804-00108,0.00,875.00,R,A Little Something Extra Ltd,No
Http://opendatacommunities.org/id/metropolitan-district-council/leeds,Leeds City Council,30/04/2018,Children and Families,Safeguarding Targeted & Specialist,Third Party Payments,Services Rendered By Voluntary Sector,505,27/04/2018,1804-00109,0.00,945.00,R,A Little Something Extra Ltd,No
Http://opendatacommunities.org/id/metropolitan-district-council/leeds,Leeds City Council,30/04/2018,Children and Families,Safeguarding Targeted & Specialist,Third Party Payments,Services Rendered By Voluntary Sector,505,27/04/2018,1804-00110,0.00,420.00,R,A Little Something Extra Ltd,No
Http://opendatacommunities.org/id/metropolitan-district-council/leeds,Leeds City Council,30/04/2018,Communities and Environment,Customer Access,Supplies and Services,Other Hired And Contracted Services,265,11/04/2018,1804-00111,0.00,567.80,R,A Mohammed,No
Http://opendatacommunities.org/id/metropolitan-district-council/leeds,Leeds City Council,30/04/2018,Communities and Environment,Customer Access,Supplies and Services,Other Hired And Contracted Services,265,11/04/2018,1804-00112,0.00,158.25,R,A Mohammed,No
Http://opendatacommunities.org/id/metropolitan-district-council/leeds,Leeds City Council,30/04/2018,Communities and Environment,Customer Access,Supplies and Services,Other Hired And Contracted Services,265,12/04/2018,1804-00113,0.00,56.50,R,A Musalam,No
Http://opendatacommunities.org/id/metropolitan-district-council/leeds,Leeds City Council,30/04/2018,Communities and Environment,Customer Access,Supplies and Services,Other Hired And Contracted Services,265,11/04/2018,1804-00114,0.00,441.75,R,A Namaki,No
Http://opendatacommunities.org/id/metropolitan-district-council/leeds,Leeds City Council,30/04/2018,Communities and Environment,Customer Access,Supplies and Services,Other Hired And Contracted Services,265,11/04/2018,1804-00115,0.00,50.00,R,A Namaki,No
Http://opendatacommunities.org/id/metropolitan-district-council/leeds,Leeds City Council,30/04/2018,Children and Families,Safeguarding Targeted & Specialist,Third Party Payments,Services Rendered By Other Organisations,511,20/04/2018,1804-00116,0.00,663.00,R,REDACTED PERSONAL DATA,No
Http://opendatacommunities.org/id/metropolitan-district-council/leeds,Leeds City Council,30/04/2018,City Development,Libraries  Arts & Heritage,Supplies and Services,Operational Materials,205,30/04/2018,1804-00117,0.00,100.00,R,A Quiet Word Ltd,No
Http://opendatacommunities.org/id/metropolitan-district-council/leeds,Leeds City Council,30/04/2018,Resources and Housing,HRA Housing Leeds,Capital,Other Costs,7,26/04/2018,1804-00118,0.00,30.00,C,REDACTED PERSONAL DATA,No
Http://opendatacommunities.org/id/metropolitan-district-council/leeds,Leeds City Council,30/04/2018,Resources and Housing,Shared Services,Supplies and Services,Other Hired And Contracted Services,265,25/04/2018,1804-00119,0.00,46.25,R,A Star Couriers Ltd,No
Http://opendatacommunities.org/id/metropolitan-district-council/leeds,Leeds City Council,30/04/2018,Children and Families,Safeguarding Targeted & Specialist,Third Party Payments,Services Rendered By Other Organisations,511,20/04/2018,1804-00120,0.00,11271.00,R,REDACTED PERSONAL DATA,No
Http://opendatacommunities.org/id/metropolitan-district-council/leeds,Leeds City Council,30/04/2018,Children and Families,Safeguarding Targeted & Specialist,Third Party Payments,Services Rendered By Other Organisations,511,20/04/2018,1804-00121,0.00,1560.60,R,REDACTED PERSONAL DATA,No
Http://opendatacommunities.org/id/metropolitan-district-council/leeds,Leeds City Council,30/04/2018,Children and Families,Safeguarding Targeted & Specialist,Third Party Payments,Services Rendered By Other Organisations,511,20/04/2018,1804-00122,0.00,663.00,R,REDACTED PERSONAL DATA,No
Http://opendatacommunities.org/id/metropolitan-district-council/leeds,Leeds City Council,30/04/2018,Children and Families,Safeguarding Targeted & Specialist,Third Party Payments, Direct Work,549,13/04/2018,1804-00123,0.00,65.00,R,A Wilderness Way Ltd,No
Http://opendatacommunities.org/id/metropolitan-district-council/leeds,Leeds City Council,30/04/2018,Children and Families,Safeguarding Targeted & Specialist  ,Transfer Payments,Young Peoples Rewards,653,27/03/2018,1804-00124,0.00,8.84,R,A2b Office Technol,Yes
Http://opendatacommunities.org/id/metropolitan-district-council/leeds,Leeds City Council,30/04/2018,City Development,Libraries  Arts & Heritage,Supplies and Services,Bought In Professional Services,277,13/04/2018,1804-00125,0.00,3650.00,R,Aardman Animations Ltd,No
Http://opendatacommunities.org/id/metropolitan-district-council/leeds,Leeds City Council as Accountable Body,30/04/2018,Social Services Pooled Budgets,Leeds Community Equip Store Pooled Budgt,Supplies and Services,Other Equipment,203,05/04/2018,1804-00126,0.00,1323.00,R,Aat (Gb) Ltd,No
Http://opendatacommunities.org/id/metropolitan-district-council/leeds,Leeds City Council as Accountable Body,30/04/2018,Social Services Pooled Budgets,Leeds Community Equip Store Pooled Budgt,Supplies and Services,Other Equipment,203,05/04/2018,1804-00127,0.00,793.00,R,Aat (Gb) Ltd,No
Http://opendatacommunities.org/id/metropolitan-district-council/leeds,Leeds City Council as Accountable Body,30/04/2018,Social Services Pooled Budgets,Leeds Community Equip Store Pooled Budgt,Supplies and Services,Other Equipment,203,20/04/2018,1804-00128,0.00,229.00,R,Aat (Gb) Ltd,No
Http://opendatacommunities.org/id/metropolitan-district-council/leeds,Leeds City Council,30/04/2018,City Development,Recreation,Supplies and Services,Operational Furniture And Equipment,203,12/04/2018,1804-00129,0.00,2177.34,R,Aaztec Associates Ltd,No
Http://opendatacommunities.org/id/metropolitan-district-council/leeds,Leeds City Council,30/04/2018,Adults and Health,Social Services Support Services,Transport,Public Transport Expenses,310,05/04/2018,1804-00130,0.00,-51.00,R,Ab Cars (Garforth) Ltd,No
Http://opendatacommunities.org/id/metropolitan-district-council/leeds,Leeds City Council,30/04/2018,Adults and Health,Social Services Support Services,Transport,Public Transport Expenses,310,05/04/2018,1804-00131,0.00,357.00,R,Ab Cars (Garforth) Ltd,No
Http://opendatacommunities.org/id/metropolitan-district-council/leeds,Leeds City Council,30/04/2018,Communities and Environment,Car Parking Services  ,Supplies and Services,Postages,212,16/03/2018,1804-00132,0.00,14.50,R,Abacus Express,Yes
Http://opendatacommunities.org/id/metropolitan-district-council/leeds,Leeds City Council,30/04/2018,Children and Families,Safeguarding Targeted & Specialist,Support Services,Legal Disbursements,411,09/04/2018,1804-00133,0.00,15.59,R,Abacus Express Limited,No
Http://opendatacommunities.org/id/metropolitan-district-council/leeds,Leeds City Council,30/04/2018,Adults and Health,Services For Older People - 65 And Over,Third Party Payments,Nursing Care Dementia,574,04/04/2018,1804-00134,0.00,1556.00,R,Abbendon Nursing Home,No
Http://opendatacommunities.org/id/metropolitan-district-council/leeds,Leeds City Council,30/04/2018,Adults and Health,Services For Adults Under 65 Mental/Dis,Third Party Payments,Nursing Home,570,04/04/2018,1804-00135,0.00,1732.00,R,Abbey Grange Nursing Home,No
Http://opendatacommunities.org/id/metropolitan-district-council/leeds,Leeds City Council,30/04/2018,City Development,Libraries  Arts & Heritage,Supplies and Services,Other Hired And Contracted Services,265,24/04/2018,1804-00136,0.00,27150.00,R,Abc Blast Cleaning Ltd,No
Http://opendatacommunities.org/id/metropolitan-district-council/leeds,Leeds City Council,30/04/2018,Children and Families,Safeguarding Targeted & Specialist,Third Party Payments,Services Rendered By Other Organisations,511,18/04/2018,1804-00137,0.00,7160.40,R,Abc Daycare And Ozone Out Of School,No
Http://opendatacommunities.org/id/metropolitan-district-council/leeds,Leeds City Council,30/04/2018,Children and Families,Safeguarding Targeted & Specialist,Third Party Payments,Services Rendered By Other Organisations,511,20/04/2018,1804-00138,0.00,19567.00,R,Abc Daycare And Ozone Out Of School,No
Http://opendatacommunities.org/id/metropolitan-district-council/leeds,Leeds City Council,30/04/2018,Communities and Environment,Environmental Health,Employees,Training & Development,70,25/04/2018,1804-00139,0.00,1250.00,R,Abc Food Safety Ltd,No
Http://opendatacommunities.org/id/metropolitan-district-council/leeds,Leeds City Council,30/04/2018,Children and Families,Safeguarding Targeted & Specialist,Third Party Payments,Services Rendered By Other Organisations,511,18/04/2018,1804-00140,0.00,3978.00,R,Abc Nursery At Lufc,No
Http://opendatacommunities.org/id/metropolitan-district-council/leeds,Leeds City Council,30/04/2018,Children and Families,Safeguarding Targeted & Specialist,Third Party Payments,Services Rendered By Other Organisations,511,20/04/2018,1804-00141,0.00,26962.00,R,Abc Nursery At Lufc,No
Http://opendatacommunities.org/id/metropolitan-district-council/leeds,Leeds City Council,30/04/2018,Children and Families,Safeguarding Targeted & Specialist,Third Party Payments,Services Rendered By Other Organisations,511,18/04/2018,1804-00142,0.00,3182.40,R,Abc@D'S Childcare Services,No
Http://opendatacommunities.org/id/metropolitan-district-council/leeds,Leeds City Council,30/04/2018,Children and Families,Safeguarding Targeted & Specialist,Third Party Payments,Services Rendered By Other Organisations,511,20/04/2018,1804-00143,0.00,22542.00,R,Abc@D'S Childcare Services,No
Http://opendatacommunities.org/id/metropolitan-district-council/leeds,Leeds City Council,30/04/2018,Communities and Environment,Car Parking Services,Income,Penalties  Fines & Car Parking Charges,934,05/04/2018,1804-00144,0.00,83.00,R,REDACTED PERSONAL DATA,No
Http://opendatacommunities.org/id/metropolitan-district-council/leeds,Leeds City Council,30/04/2018,Communities and Environment,Customer Access,Supplies and Services,Other Hired And Contracted Services,265,11/04/2018,1804-00145,0.00,45.00,R,Abdul Wadood Kazizadha,No
Http://opendatacommunities.org/id/metropolitan-district-council/leeds,Leeds City Council,30/04/2018,Communities and Environment,Customer Access,Supplies and Services,Other Hired And Contracted Services,265,11/04/2018,1804-00146,0.00,92.00,R,Abdulahad Denha,No
Http://opendatacommunities.org/id/metropolitan-district-council/leeds,Leeds City Council,30/04/2018,Children and Families,Safeguarding Targeted & Specialist,Transfer Payments,16 Plus Top Up Allowance,625,10/04/2018,1804-00147,0.00,20.00,R,REDACTED PERSONAL DATA,No
Http://opendatacommunities.org/id/metropolitan-district-council/leeds,Leeds City Council,30/04/2018,Strategic Accounts,Strategic,Supplies and Services,Non-Recurring Grants,227,03/04/2018,1804-00148,0.00,363.00,R,Aberford And District Parish Council,No
Http://opendatacommunities.org/id/metropolitan-district-council/leeds,Leeds City Council,30/04/2018,Strategic Accounts,Strategic,Supplies and Services,Office Consumables,210,03/04/2018,1804-00149,0.00,16550.00,R,Aberford And District Parish Council,No
Http://opendatacommunities.org/id/metropolitan-district-council/leeds,Leeds City Council,30/04/2018,Adults and Health,Services For Older People - 65 And Over,Third Party Payments,Nursing Home,570,04/04/2018,1804-00150,0.00,66177.79,R,Aberford Hall,No
Http://opendatacommunities.org/id/metropolitan-district-council/leeds,Leeds City Council,30/04/2018,Adults and Health,Services For Older People - 65 And Over,Third Party Payments,Nursing Care Dementia,574,04/04/2018,1804-00151,0.00,3413.23,R,Aberford Hall,No
Http://opendatacommunities.org/id/metropolitan-district-council/leeds,Leeds City Council,30/04/2018,Adults and Health,Services For Older People - 65 And Over,Third Party Payments,Residential,580,04/04/2018,1804-00152,0.00,2235.21,R,Aberford Hall,No
Http://opendatacommunities.org/id/metropolitan-district-council/leeds,Leeds City Council,30/04/2018,Resources and Housing,Leeds Building Services,Supplies and Services,Operational Materials,205,04/04/2018,1804-00153,0.00,250.45,R,Abi Garage Doors Ltd,No
Http://opendatacommunities.org/id/metropolitan-district-council/leeds,Leeds City Council,30/04/2018,Resources and Housing,Leeds Building Services,Supplies and Services,Operational Materials,205,04/04/2018,1804-00154,0.00,69.00,R,Abi Garage Doors Ltd,No
Http://opendatacommunities.org/id/metropolitan-district-council/leeds,Leeds City Council,30/04/2018,Resources and Housing,Leeds Building Services,Supplies and Services,Operational Materials,205,04/04/2018,1804-00155,0.00,48.00,R,Abi Garage Doors Ltd,No
Http://opendatacommunities.org/id/metropolitan-district-council/leeds,Leeds City Council,30/04/2018,Resources and Housing,Leeds Building Services,Supplies and Services,Operational Materials,205,10/04/2018,1804-00156,0.00,2754.95,R,Abi Garage Doors Ltd,No
Http://opendatacommunities.org/id/metropolitan-district-council/leeds,Leeds City Council,30/04/2018,Resources and Housing,Leeds Building Services,Supplies and Services,Operational Materials,205,17/04/2018,1804-00157,0.00,15.00,R,Abi Garage Doors Ltd,No
Http://opendatacommunities.org/id/metropolitan-district-council/leeds,Leeds City Council,30/04/2018,Resources and Housing,Leeds Building Services,Supplies and Services,Operational Materials,205,17/04/2018,1804-00158,0.00,15.00,R,Abi Garage Doors Ltd,No
Http://opendatacommunities.org/id/metropolitan-district-council/leeds,Leeds City Council,30/04/2018,Resources and Housing,Leeds Building Services,Supplies and Services,Operational Materials,205,23/04/2018,1804-00159,0.00,25.00,R,Abi Garage Doors Ltd,No
Http://opendatacommunities.org/id/metropolitan-district-council/leeds,Leeds City Council,30/04/2018,Children and Families,Safeguarding Targeted & Specialist,Supplies and Services,Telephones,213,12/04/2018,1804-00160,0.00,41.67,R,REDACTED PERSONAL DATA,No
Http://opendatacommunities.org/id/metropolitan-district-council/leeds,Leeds City Council,30/04/2018,Children and Families,Safeguarding Targeted & Specialist,Transport,Public Transport Expenses,310,12/04/2018,1804-00161,0.00,4.30,R,REDACTED PERSONAL DATA,No
Http://opendatacommunities.org/id/metropolitan-district-council/leeds,Leeds City Council,30/04/2018,Children and Families,Safeguarding Targeted & Specialist,Transport,Car & Motorcycle Allowances,311,12/04/2018,1804-00162,0.00,15.75,R,REDACTED PERSONAL DATA,No
Http://opendatacommunities.org/id/metropolitan-district-council/leeds,Leeds City Council,30/04/2018,Children and Families,Safeguarding Targeted & Specialist,Employees,Agency Staff,8,09/04/2018,1804-00163,0.00,99.00,R,Academic Appointments Ltd,No
Http://opendatacommunities.org/id/metropolitan-district-council/leeds,Leeds City Council,30/04/2018,Children and Families,Safeguarding Targeted & Specialist,Employees,Agency Staff,8,20/04/2018,1804-00164,0.00,1410.00,R,Academic Appointments Ltd,No
Http://opendatacommunities.org/id/metropolitan-district-council/leeds,Leeds City Council,30/04/2018,Children and Families,Safeguarding Targeted & Specialist,Employees,Agency Staff,8,27/04/2018,1804-00165,0.00,564.00,R,Academic Appointments Ltd,No
Http://opendatacommunities.org/id/metropolitan-district-council/leeds,Leeds City Council,30/04/2018,Adults and Health,Digital Information Services,Capital,Furniture And Equipment,5,09/04/2018,1804-00166,0.00,6180.00,C,Accenture (Uk) Ltd,No
Http://opendatacommunities.org/id/metropolitan-district-council/leeds,Leeds City Council,30/04/2018,Communities and Environment,Community Safety,Transport,External Hire -Occasional,304,27/04/2018,1804-00167,0.00,1310.86,R,Access Hire Nationwide Ltd,No
Http://opendatacommunities.org/id/metropolitan-district-council/leeds,Leeds City Council,30/04/2018,Resources and Housing,Commercial Services  ,Supplies and Services,Operational Furniture And Equipment,203,28/02/2018,1804-00168,0.00,393.06,R,Access Locksmiths,Yes
Http://opendatacommunities.org/id/metropolitan-district-council/leeds,Leeds City Council,30/04/2018,Communities and Environment,Parks And Countryside  ,Employees,Best Value Training,70,26/03/2018,1804-00169,0.00,577.40,R,Access Locksmiths,Yes
Http://opendatacommunities.org/id/metropolitan-district-council/leeds,Leeds City Council,30/04/2018,Communities and Environment,Parks And Countryside  ,Supplies and Services,Operational Materials,205,28/03/2018,1804-00170,0.00,67.35,R,Access Locksmiths,Yes
Http://opendatacommunities.org/id/metropolitan-district-council/leeds,Leeds City Council,30/04/2018,Strategic Landlord,Property and Contracts,Premises,General Maintenance,104,04/04/2018,1804-00171,0.00,163.12,R,Access Locksmiths (Leeds) Limited,No
Http://opendatacommunities.org/id/metropolitan-district-council/leeds,Leeds City Council,30/04/2018,Strategic Landlord,Property and Contracts,Premises,HRA Major Repairs,107,04/04/2018,1804-00172,0.00,100.80,R,Access Locksmiths (Leeds) Limited,No
Http://opendatacommunities.org/id/metropolitan-district-council/leeds,Leeds City Council,30/04/2018,Strategic Landlord,Property and Contracts,Premises,HRA Major Repairs,107,04/04/2018,1804-00173,0.00,274.20,R,Access Locksmiths (Leeds) Limited,No
Http://opendatacommunities.org/id/metropolitan-district-council/leeds,Leeds City Council,30/04/2018,Strategic Landlord,Property and Contracts,Premises,HRA Major Repairs,107,04/04/2018,1804-00174,0.00,228.00,R,Access Locksmiths (Leeds) Limited,No
Http://opendatacommunities.org/id/metropolitan-district-council/leeds,Leeds City Council,30/04/2018,Strategic Landlord,Property and Contracts,Premises,General Maintenance,104,04/04/2018,1804-00175,0.00,37.50,R,Access Locksmiths (Leeds) Limited,No
Http://opendatacommunities.org/id/metropolitan-district-council/leeds,Leeds City Council,30/04/2018,Resources and Housing,Leeds Building Services,Supplies and Services,Operational Materials,205,04/04/2018,1804-00176,0.00,78.61,R,Access Locksmiths (Leeds) Limited,No
Http://opendatacommunities.org/id/metropolitan-district-council/leeds,Leeds City Council,30/04/2018,Resources and Housing,Leeds Building Services,Supplies and Services,Operational Materials,205,04/04/2018,1804-00177,0.00,125.62,R,Access Locksmiths (Leeds) Limited,No
Http://opendatacommunities.org/id/metropolitan-district-council/leeds,Leeds City Council,30/04/2018,Resources and Housing,Leeds Building Services,Supplies and Services,Operational Materials,205,04/04/2018,1804-00178,0.00,10.00,R,Access Locksmiths (Leeds) Limited,No
Http://opendatacommunities.org/id/metropolitan-district-council/leeds,Leeds City Council,30/04/2018,Resources and Housing,Leeds Building Services,Supplies and Services,Operational Materials,205,04/04/2018,1804-00179,0.00,24.75,R,Access Locksmiths (Leeds) Limited,No
Http://opendatacommunities.org/id/metropolitan-district-council/leeds,Leeds City Council,30/04/2018,Resources and Housing,Leeds Building Services,Supplies and Services,Operational Materials,205,04/04/2018,1804-00180,0.00,54.86,R,Access Locksmiths (Leeds) Limited,No
Http://opendatacommunities.org/id/metropolitan-district-council/leeds,Leeds City Council,30/04/2018,Resources and Housing,Leeds Building Services,Supplies and Services,Operational Materials,205,04/04/2018,1804-00181,0.00,81.90,R,Access Locksmiths (Leeds) Limited,No
Http://opendatacommunities.org/id/metropolitan-district-council/leeds,Leeds City Council,30/04/2018,Resources and Housing,Leeds Building Services,Supplies and Services,Operational Materials,205,04/04/2018,1804-00182,0.00,10.00,R,Access Locksmiths (Leeds) Limited,No
Http://opendatacommunities.org/id/metropolitan-district-council/leeds,Leeds City Council,30/04/2018,Resources and Housing,Leeds Building Services,Supplies and Services,Operational Materials,205,04/04/2018,1804-00183,0.00,20.86,R,Access Locksmiths (Leeds) Limited,No
Http://opendatacommunities.org/id/metropolitan-district-council/leeds,Leeds City Council,30/04/2018,Strategic Landlord,Property and Contracts,Premises,General Maintenance,104,04/04/2018,1804-00184,0.00,125.93,R,Access Locksmiths (Leeds) Limited,No
Http://opendatacommunities.org/id/metropolitan-district-council/leeds,Leeds City Council,30/04/2018,Resources and Housing,HRA Housing Leeds,Capital,Other Costs,7,04/04/2018,1804-00185,0.00,91.20,C,Access Locksmiths (Leeds) Limited,No
Http://opendatacommunities.org/id/metropolitan-district-council/leeds,Leeds City Council,30/04/2018,Resources and Housing,Leeds Building Services,Supplies and Services,Operational Materials,205,10/04/2018,1804-00186,0.00,141.28,R,Access Locksmiths (Leeds) Limited,No
Http://opendatacommunities.org/id/metropolitan-district-council/leeds,Leeds City Council,30/04/2018,Resources and Housing,Leeds Building Services,Supplies and Services,Operational Materials,205,10/04/2018,1804-00187,0.00,27.00,R,Access Locksmiths (Leeds) Limited,No
Http://opendatacommunities.org/id/metropolitan-district-council/leeds,Leeds City Council,30/04/2018,Resources and Housing,Leeds Building Services,Supplies and Services,Operational Materials,205,10/04/2018,1804-00188,0.00,32.00,R,Access Locksmiths (Leeds) Limited,No
Http://opendatacommunities.org/id/metropolitan-district-council/leeds,Leeds City Council,30/04/2018,Resources and Housing,Leeds Building Services,Supplies and Services,Operational Materials,205,10/04/2018,1804-00189,0.00,16.83,R,Access Locksmiths (Leeds) Limited,No
Http://opendatacommunities.org/id/metropolitan-district-council/leeds,Leeds City Council,30/04/2018,Resources and Housing,Leeds Building Services,Supplies and Services,Operational Materials,205,10/04/2018,1804-00190,0.00,5.00,R,Access Locksmiths (Leeds) Limited,No
Http://opendatacommunities.org/id/metropolitan-district-council/leeds,Leeds City Council,30/04/2018,Resources and Housing,Leeds Building Services,Supplies and Services,Operational Materials,205,10/04/2018,1804-00191,0.00,14.41,R,Access Locksmiths (Leeds) Limited,No
Http://opendatacommunities.org/id/metropolitan-district-council/leeds,Leeds City Council,30/04/2018,Resources and Housing,Leeds Building Services,Supplies and Services,Operational Materials,205,17/04/2018,1804-00192,0.00,7.40,R,Access Locksmiths (Leeds) Limited,No
Http://opendatacommunities.org/id/metropolitan-district-council/leeds,Leeds City Council,30/04/2018,Communities and Environment,Waste Management,Supplies and Services,Operational Furniture And Equipment,203,17/04/2018,1804-00193,0.00,201.80,R,Access Locksmiths (Leeds) Limited,No
Http://opendatacommunities.org/id/metropolitan-district-council/leeds,Leeds City Council,30/04/2018,Resources and Housing,HRA Housing Leeds,Capital,Other Costs,7,20/04/2018,1804-00194,0.00,34.20,C,Access Locksmiths (Leeds) Limited,No
Http://opendatacommunities.org/id/metropolitan-district-council/leeds,Leeds City Council,30/04/2018,Resources and Housing,HRA Housing Leeds,Capital,Other Costs,7,20/04/2018,1804-00195,0.00,42.64,C,Access Locksmiths (Leeds) Limited,No
Http://opendatacommunities.org/id/metropolitan-district-council/leeds,Leeds City Council,30/04/2018,Strategic Landlord,Housing Management,Premises,General Maintenance,104,20/04/2018,1804-00196,0.00,12.50,R,Access Locksmiths (Leeds) Limited,No
Http://opendatacommunities.org/id/metropolitan-district-council/leeds,Leeds City Council,30/04/2018,Resources and Housing,HRA Housing Leeds,Capital,Other Costs,7,20/04/2018,1804-00197,0.00,39.87,C,Access Locksmiths (Leeds) Limited,No
Http://opendatacommunities.org/id/metropolitan-district-council/leeds,Leeds City Council,30/04/2018,Resources and Housing,HRA Housing Leeds,Capital,Other Costs,7,20/04/2018,1804-00198,0.00,39.87,C,Access Locksmiths (Leeds) Limited,No
Http://opendatacommunities.org/id/metropolitan-district-council/leeds,Leeds City Council,30/04/2018,Strategic Landlord,Housing Management,Supplies and Services,Resaleable Materials,204,20/04/2018,1804-00199,0.00,68.40,R,Access Locksmiths (Leeds) Limited,No
Http://opendatacommunities.org/id/metropolitan-district-council/leeds,Leeds City Council,30/04/2018,Resources and Housing,Leeds Building Services,Supplies and Services,Operational Materials,205,23/04/2018,1804-00200,0.00,28.15,R,Access Locksmiths (Leeds) Limited,No
Http://opendatacommunities.org/id/metropolitan-district-council/leeds,Leeds City Council,30/04/2018,Resources and Housing,Leeds Building Services,Supplies and Services,Operational Materials,205,23/04/2018,1804-00201,0.00,4.50,R,Access Locksmiths (Leeds) Limited,No
Http://opendatacommunities.org/id/metropolitan-district-council/leeds,Leeds City Council,30/04/2018,Resources and Housing,Leeds Building Services,Supplies and Services,Operational Materials,205,23/04/2018,1804-00202,0.00,19.90,R,Access Locksmiths (Leeds) Limited,No
Http://opendatacommunities.org/id/metropolitan-district-council/leeds,Leeds City Council,30/04/2018,Resources and Housing,Leeds Building Services,Supplies and Services,Operational Materials,205,23/04/2018,1804-00203,0.00,38.90,R,Access Locksmiths (Leeds) Limited,No
Http://opendatacommunities.org/id/metropolitan-district-council/leeds,Leeds City Council,30/04/2018,Resources and Housing,Leeds Building Services,Supplies and Services,Operational Materials,205,23/04/2018,1804-00204,0.00,46.84,R,Access Locksmiths (Leeds) Limited,No
Http://opendatacommunities.org/id/metropolitan-district-council/leeds,Leeds City Council,30/04/2018,Resources and Housing,Leeds Building Services,Supplies and Services,Operational Materials,205,23/04/2018,1804-00205,0.00,31.59,R,Access Locksmiths (Leeds) Limited,No
Http://opendatacommunities.org/id/metropolitan-district-council/leeds,Leeds City Council,30/04/2018,Resources and Housing,Leeds Building Services,Supplies and Services,Operational Materials,205,23/04/2018,1804-00206,0.00,7.36,R,Access Locksmiths (Leeds) Limited,No
Http://opendatacommunities.org/id/metropolitan-district-council/leeds,Leeds City Council,30/04/2018,Resources and Housing,Leeds Building Services,Supplies and Services,Operational Materials,205,23/04/2018,1804-00207,0.00,94.86,R,Access Locksmiths (Leeds) Limited,No
Http://opendatacommunities.org/id/metropolitan-district-council/leeds,Leeds City Council,30/04/2018,Resources and Housing,HRA Housing Leeds,Capital,Other Costs,7,30/04/2018,1804-00208,0.00,83.00,C,Access Locksmiths (Leeds) Limited,No
Http://opendatacommunities.org/id/metropolitan-district-council/leeds,Leeds City Council,30/04/2018,Resources and Housing,Leeds Building Services,Supplies and Services,Operational Materials,205,26/04/2018,1804-00209,0.00,38.50,R,Access Opening Systems,No
Http://opendatacommunities.org/id/metropolitan-district-council/leeds,Leeds City Council,30/04/2018,Resources and Housing,Leeds Building Services,Supplies and Services,Operational Materials,205,26/04/2018,1804-00210,0.00,5.00,R,Access Opening Systems,No
Http://opendatacommunities.org/id/metropolitan-district-council/leeds,Leeds City Council,30/04/2018,Resources and Housing,Leeds Building Services,Supplies and Services,Operational Materials,205,26/04/2018,1804-00211,0.00,215.00,R,Access Opening Systems,No
Http://opendatacommunities.org/id/metropolitan-district-council/leeds,Leeds City Council,30/04/2018,Insurance,Insurance,Supplies and Services,Insurance Claims,248,26/04/2018,1804-00212,0.00,2200.00,R,Accountant General Of The Senior Courts,No
Http://opendatacommunities.org/id/metropolitan-district-council/leeds,Leeds City Council,30/04/2018,City Development,Recreation,Transport,External Hire -Occasional,304,30/04/2018,1804-00213,0.00,124.50,R,Ace Container Services Limited,No
Http://opendatacommunities.org/id/metropolitan-district-council/leeds,Leeds City Council,30/04/2018,Children and Families,Partnerships,Third Party Payments,SEN Placements,566,24/04/2018,1804-00214,0.00,17139.00,R,Ackworth School,No
Http://opendatacommunities.org/id/metropolitan-district-council/leeds,Leeds City Council,30/04/2018,Children and Families,Partnerships,Third Party Payments,SEN Placements,566,24/04/2018,1804-00215,0.00,17139.00,R,Ackworth School,No
Http://opendatacommunities.org/id/metropolitan-district-council/leeds,Leeds City Council,30/04/2018,Children and Families,Learning Skills & Universal,Supplies and Services,Other Hired And Contracted Services,265,18/04/2018,1804-00216,0.00,2220.00,R,Acm Gospel Choir Vision Twenty Eight Ltd,No
Http://opendatacommunities.org/id/metropolitan-district-council/leeds,Leeds City Council,30/04/2018,Resources and Housing,Leeds Building Services,Supplies and Services,Other Hired And Contracted Services,265,04/04/2018,1804-00217,0.00,1638.00,R,Acme Facilities Group Ltd,No
Http://opendatacommunities.org/id/metropolitan-district-council/leeds,Leeds City Council,30/04/2018,Resources and Housing,Leeds Building Services,Supplies and Services,Other Hired And Contracted Services,265,04/04/2018,1804-00218,0.00,966.00,R,Acme Facilities Group Ltd,No
Http://opendatacommunities.org/id/metropolitan-district-council/leeds,Leeds City Council,30/04/2018,Resources and Housing,Leeds Building Services,Supplies and Services,Other Hired And Contracted Services,265,04/04/2018,1804-00219,0.00,962.00,R,Acme Facilities Group Ltd,No
Http://opendatacommunities.org/id/metropolitan-district-council/leeds,Leeds City Council,30/04/2018,Children and Families,Partnerships,Third Party Payments,SEN Placements,566,03/04/2018,1804-00220,0.00,13084.33,R,Acorn Care And Education Ltd,No
Http://opendatacommunities.org/id/metropolitan-district-council/leeds,Leeds City Council,30/04/2018,Children and Families,Partnerships,Third Party Payments,SEN Placements,566,03/04/2018,1804-00221,0.00,6020.83,R,Acorn Care And Education Ltd,No
Http://opendatacommunities.org/id/metropolitan-district-council/leeds,Leeds City Council,30/04/2018,Children and Families,Partnerships,Third Party Payments,SEN Placements,566,13/04/2018,1804-00222,0.00,1000.00,R,Acorn Care And Education Ltd,No
Http://opendatacommunities.org/id/metropolitan-district-council/leeds,Leeds City Council,30/04/2018,Children and Families,Partnerships,Third Party Payments,SEN Placements,566,13/04/2018,1804-00223,0.00,1000.00,R,Acorn Care And Education Ltd,No
Http://opendatacommunities.org/id/metropolitan-district-council/leeds,Leeds City Council,30/04/2018,Children and Families,Partnerships,Third Party Payments,SEN Placements,566,13/04/2018,1804-00224,0.00,1000.00,R,Acorn Care And Education Ltd,No
Http://opendatacommunities.org/id/metropolitan-district-council/leeds,Leeds City Council,30/04/2018,Children and Families,Partnerships,Third Party Payments,SEN Placements,566,13/04/2018,1804-00225,0.00,900.00,R,Acorn Care And Education Ltd,No
Http://opendatacommunities.org/id/metropolitan-district-council/leeds,Leeds City Council,30/04/2018,Children and Families,Partnerships,Third Party Payments,SEN Placements,566,13/04/2018,1804-00226,0.00,900.00,R,Acorn Care And Education Ltd,No
Http://opendatacommunities.org/id/metropolitan-district-council/leeds,Leeds City Council,30/04/2018,Children and Families,Partnerships,Third Party Payments,SEN Placements,566,13/04/2018,1804-00227,0.00,900.00,R,Acorn Care And Education Ltd,No
Http://opendatacommunities.org/id/metropolitan-district-council/leeds,Leeds City Council,30/04/2018,Children and Families,Partnerships,Third Party Payments,SEN Placements,566,13/04/2018,1804-00228,0.00,18138.67,R,Acorn Care And Education Ltd,No
Http://opendatacommunities.org/id/metropolitan-district-council/leeds,Leeds City Council,30/04/2018,Children and Families,Partnerships,Third Party Payments,SEN Placements,566,13/04/2018,1804-00229,0.00,18138.67,R,Acorn Care And Education Ltd,No
Http://opendatacommunities.org/id/metropolitan-district-council/leeds,Leeds City Council,30/04/2018,Children and Families,Partnerships,Third Party Payments,SEN Placements,566,13/04/2018,1804-00230,0.00,18138.67,R,Acorn Care And Education Ltd,No
Http://opendatacommunities.org/id/metropolitan-district-council/leeds,Leeds City Council,30/04/2018,Children and Families,Partnerships,Third Party Payments,SEN Placements,566,13/04/2018,1804-00231,0.00,18138.67,R,Acorn Care And Education Ltd,No
Http://opendatacommunities.org/id/metropolitan-district-council/leeds,Leeds City Council,30/04/2018,Children and Families,Partnerships,Third Party Payments,SEN Placements,566,13/04/2018,1804-00232,0.00,18138.67,R,Acorn Care And Education Ltd,No
Http://opendatacommunities.org/id/metropolitan-district-council/leeds,Leeds City Council,30/04/2018,Children and Families,Partnerships,Third Party Payments,SEN Placements,566,13/04/2018,1804-00233,0.00,18138.67,R,Acorn Care And Education Ltd,No
Http://opendatacommunities.org/id/metropolitan-district-council/leeds,Leeds City Council,30/04/2018,Children and Families,Partnerships,Third Party Payments,SEN Placements,566,13/04/2018,1804-00234,0.00,18138.67,R,Acorn Care And Education Ltd,No
Http://opendatacommunities.org/id/metropolitan-district-council/leeds,Leeds City Council,30/04/2018,Children and Families,Partnerships,Third Party Payments,SEN Placements,566,13/04/2018,1804-00235,0.00,18138.67,R,Acorn Care And Education Ltd,No
Http://opendatacommunities.org/id/metropolitan-district-council/leeds,Leeds City Council,30/04/2018,Children and Families,Partnerships,Third Party Payments,SEN Placements,566,13/04/2018,1804-00236,0.00,18138.67,R,Acorn Care And Education Ltd,No
Http://opendatacommunities.org/id/metropolitan-district-council/leeds,Leeds City Council,30/04/2018,Children and Families,Partnerships,Third Party Payments,SEN Placements,566,13/04/2018,1804-00237,0.00,18138.67,R,Acorn Care And Education Ltd,No
Http://opendatacommunities.org/id/metropolitan-district-council/leeds,Leeds City Council,30/04/2018,Children and Families,Partnerships,Third Party Payments,SEN Placements,566,13/04/2018,1804-00238,0.00,18138.67,R,Acorn Care And Education Ltd,No
Http://opendatacommunities.org/id/metropolitan-district-council/leeds,Leeds City Council,30/04/2018,Children and Families,Partnerships,Third Party Payments,SEN Placements,566,13/04/2018,1804-00239,0.00,18138.67,R,Acorn Care And Education Ltd,No
Http://opendatacommunities.org/id/metropolitan-district-council/leeds,Leeds City Council,30/04/2018,Children and Families,Partnerships,Third Party Payments,SEN Placements,566,13/04/2018,1804-00240,0.00,7000.00,R,Acorn Care And Education Ltd,No
Http://opendatacommunities.org/id/metropolitan-district-council/leeds,Leeds City Council,30/04/2018,Children and Families,Partnerships,Third Party Payments,SEN Placements,566,13/04/2018,1804-00241,0.00,18138.67,R,Acorn Care And Education Ltd,No
Http://opendatacommunities.org/id/metropolitan-district-council/leeds,Leeds City Council,30/04/2018,Children and Families,Partnerships,Third Party Payments,SEN Placements,566,13/04/2018,1804-00242,0.00,18138.67,R,Acorn Care And Education Ltd,No
Http://opendatacommunities.org/id/metropolitan-district-council/leeds,Leeds City Council,30/04/2018,Children and Families,Partnerships,Third Party Payments,SEN Placements,566,13/04/2018,1804-00243,0.00,18138.67,R,Acorn Care And Education Ltd,No
Http://opendatacommunities.org/id/metropolitan-district-council/leeds,Leeds City Council,30/04/2018,Children and Families,Partnerships,Third Party Payments,SEN Placements,566,13/04/2018,1804-00244,0.00,18138.67,R,Acorn Care And Education Ltd,No
Http://opendatacommunities.org/id/metropolitan-district-council/leeds,Leeds City Council,30/04/2018,Children and Families,Partnerships,Third Party Payments,SEN Placements,566,13/04/2018,1804-00245,0.00,18138.67,R,Acorn Care And Education Ltd,No
Http://opendatacommunities.org/id/metropolitan-district-council/leeds,Leeds City Council,30/04/2018,Children and Families,Partnerships,Third Party Payments,SEN Placements,566,13/04/2018,1804-00246,0.00,18172.00,R,Acorn Care And Education Ltd,No
Http://opendatacommunities.org/id/metropolitan-district-council/leeds,Leeds City Council,30/04/2018,Children and Families,Partnerships,Third Party Payments,SEN Placements,566,13/04/2018,1804-00247,0.00,18172.00,R,Acorn Care And Education Ltd,No
Http://opendatacommunities.org/id/metropolitan-district-council/leeds,Leeds City Council,30/04/2018,Children and Families,Partnerships,Third Party Payments,SEN Placements,566,13/04/2018,1804-00248,0.00,18172.00,R,Acorn Care And Education Ltd,No
Http://opendatacommunities.org/id/metropolitan-district-council/leeds,Leeds City Council,30/04/2018,Children and Families,Partnerships,Third Party Payments,SEN Placements,566,13/04/2018,1804-00249,0.00,8500.00,R,Acorn Care And Education Ltd,No
Http://opendatacommunities.org/id/metropolitan-district-council/leeds,Leeds City Council,30/04/2018,Children and Families,Partnerships,Third Party Payments,SEN Placements,566,13/04/2018,1804-00250,0.00,18472.00,R,Acorn Care And Education Ltd,No
Http://opendatacommunities.org/id/metropolitan-district-council/leeds,Leeds City Council,30/04/2018,Children and Families,Partnerships,Third Party Payments,SEN Placements,566,13/04/2018,1804-00251,0.00,8500.00,R,Acorn Care And Education Ltd,No
Http://opendatacommunities.org/id/metropolitan-district-council/leeds,Leeds City Council,30/04/2018,Adults and Health,Services For Older People - 65 And Over,Third Party Payments,Nursing Care Dementia,574,04/04/2018,1804-00252,0.00,1533.98,R,Acorn Nursing Home,No
Http://opendatacommunities.org/id/metropolitan-district-council/leeds,Leeds City Council,30/04/2018,Resources and Housing,Shared Services,Supplies and Services,Licences,266,17/04/2018,1804-00253,0.00,-445.73,R,Acorn Treatment & Housing,No
Http://opendatacommunities.org/id/metropolitan-district-council/leeds,Leeds City Council,30/04/2018,Adults and Health,Other Adult Services,Third Party Payments,Residential - Drugs & Alcohol,583,17/04/2018,1804-00254,0.00,2200.00,R,Acorn Treatment & Housing,No
Http://opendatacommunities.org/id/metropolitan-district-council/leeds,Leeds City Council,30/04/2018,Children and Families,Safeguarding Targeted & Specialist,Third Party Payments,Services Rendered By Other Organisations,511,20/04/2018,1804-00255,0.00,26741.00,R,Acorns Nursery,No
Http://opendatacommunities.org/id/metropolitan-district-council/leeds,Leeds City Council,30/04/2018,Communities and Environment,Environmental Health,Supplies and Services,Other Hired And Contracted Services,265,06/04/2018,1804-00256,0.00,1818.00,R,Acoustic Calibration Services Limited,No
Http://opendatacommunities.org/id/metropolitan-district-council/leeds,Leeds City Council,30/04/2018,City Development,Highways,Supplies and Services,Other Hired And Contracted Services,265,27/04/2018,1804-00257,0.00,1739.50,R,Acoustic Calibration Services Limited,No
Http://opendatacommunities.org/id/metropolitan-district-council/leeds,Leeds City Council,30/04/2018,Adults and Health,Services For Older People - 65 And Over,Third Party Payments,Nursing Home,570,04/04/2018,1804-00258,0.00,33135.21,R,Acre Green,No
Http://opendatacommunities.org/id/metropolitan-district-council/leeds,Leeds City Council,30/04/2018,Adults and Health,Services For Older People - 65 And Over,Third Party Payments,Nursing Care Dementia,574,04/04/2018,1804-00259,0.00,1543.52,R,Acre Green,No
Http://opendatacommunities.org/id/metropolitan-district-council/leeds,Leeds City Council,30/04/2018,Adults and Health,Services For Older People - 65 And Over,Third Party Payments,Residential,580,04/04/2018,1804-00260,0.00,7628.08,R,Acre Green,No
Http://opendatacommunities.org/id/metropolitan-district-council/leeds,Leeds City Council,30/04/2018,Adults and Health,Services For Older People Under 65 P/Dis,Third Party Payments,Nursing Home,570,04/04/2018,1804-00261,0.00,2148.00,R,Acre Green,No
Http://opendatacommunities.org/id/metropolitan-district-council/leeds,Leeds City Council,30/04/2018,Adults and Health,Services For Older People Under 65 P/Dis,Third Party Payments,Residential,580,04/04/2018,1804-00262,0.00,3481.20,R,Acre Green,No
Http://opendatacommunities.org/id/metropolitan-district-council/leeds,Leeds City Council,30/04/2018,Children and Families,Safeguarding Targeted & Specialist,Third Party Payments,Services Rendered By Other Organisations,511,20/04/2018,1804-00263,0.00,36668.40,R,Acre Wood Day Nursery,No
Http://opendatacommunities.org/id/metropolitan-district-council/leeds,Leeds City Council,30/04/2018,City Development,Libraries  Arts & Heritage  ,Supplies and Services,Operational Furniture And Equipment,203,22/03/2018,1804-00264,0.00,73.67,R,Acrylic Design UK Ltd,Yes
Http://opendatacommunities.org/id/metropolitan-district-council/leeds,Leeds City Council,30/04/2018,Adults and Health,Services For Adults Under 65 Mental/Dis,Third Party Payments,Fees - Level 4,520,04/04/2018,1804-00265,0.00,220.00,R,Action First Recruitment Ltd,No
Http://opendatacommunities.org/id/metropolitan-district-council/leeds,Leeds City Council,30/04/2018,Adults and Health,Services For Adults Under 65 Mental/Dis,Third Party Payments,Fees - Level 4,520,04/04/2018,1804-00266,0.00,-30.00,R,Action First Recruitment Ltd,No
Http://opendatacommunities.org/id/metropolitan-district-council/leeds,Leeds City Council,30/04/2018,Adults and Health,Services For Adults Under 65 Mental/Dis,Third Party Payments,Fees - Level 4,520,06/04/2018,1804-00267,0.00,250.00,R,Action First Recruitment Ltd,No
Http://opendatacommunities.org/id/metropolitan-district-council/leeds,Leeds City Council,30/04/2018,Adults and Health,Services For Adults Under 65 Mental/Dis,Third Party Payments,Fees - Level 4,520,06/04/2018,1804-00268,0.00,220.00,R,Action First Recruitment Ltd,No
Http://opendatacommunities.org/id/metropolitan-district-council/leeds,Leeds City Council,30/04/2018,Adults and Health,Services For Adults Under 65 Mental/Dis,Third Party Payments,Fees - Level 4,520,06/04/2018,1804-00269,0.00,220.00,R,Action First Recruitment Ltd,No
Http://opendatacommunities.org/id/metropolitan-district-council/leeds,Leeds City Council,30/04/2018,Adults and Health,Services For Adults Under 65 Mental/Dis,Third Party Payments,Fees - Level 4,520,06/04/2018,1804-00270,0.00,220.00,R,Action First Recruitment Ltd,No
Http://opendatacommunities.org/id/metropolitan-district-council/leeds,Leeds City Council,30/04/2018,Adults and Health,Services For Adults Under 65 Mental/Dis,Third Party Payments,Fees - Level 4,520,06/04/2018,1804-00271,0.00,250.00,R,Action First Recruitment Ltd,No
Http://opendatacommunities.org/id/metropolitan-district-council/leeds,Leeds City Council,30/04/2018,Adults and Health,Services For Adults Under 65 Mental/Dis,Third Party Payments,Fees - Level 4,520,06/04/2018,1804-00272,0.00,250.00,R,Action First Recruitment Ltd,No
Http://opendatacommunities.org/id/metropolitan-district-council/leeds,Leeds City Council,30/04/2018,Adults and Health,Services For Adults Under 65 Mental/Dis,Third Party Payments,Fees - Level 4,520,06/04/2018,1804-00273,0.00,250.00,R,Action First Recruitment Ltd,No
Http://opendatacommunities.org/id/metropolitan-district-council/leeds,Leeds City Council,30/04/2018,Adults and Health,Services For Adults Under 65 Mental/Dis,Third Party Payments,Fees - Level 4,520,06/04/2018,1804-00274,0.00,220.00,R,Action First Recruitment Ltd,No
Http://opendatacommunities.org/id/metropolitan-district-council/leeds,Leeds City Council,30/04/2018,Adults and Health,Services For Adults Under 65 Mental/Dis,Third Party Payments,Fees - Level 4,520,06/04/2018,1804-00275,0.00,220.00,R,Action First Recruitment Ltd,No
Http://opendatacommunities.org/id/metropolitan-district-council/leeds,Leeds City Council,30/04/2018,Adults and Health,Services For Adults Under 65 Mental/Dis,Third Party Payments,Fees - Level 4,520,06/04/2018,1804-00276,0.00,220.00,R,Action First Recruitment Ltd,No
Http://opendatacommunities.org/id/metropolitan-district-council/leeds,Leeds City Council,30/04/2018,Adults and Health,Services For Adults Under 65 Mental/Dis,Third Party Payments,Fees - Level 4,520,20/04/2018,1804-00277,0.00,250.00,R,Action First Recruitment Ltd,No
Http://opendatacommunities.org/id/metropolitan-district-council/leeds,Leeds City Council,30/04/2018,Adults and Health,Services For Adults Under 65 Mental/Dis,Third Party Payments,Fees - Level 4,520,20/04/2018,1804-00278,0.00,250.00,R,Action First Recruitment Ltd,No
Http://opendatacommunities.org/id/metropolitan-district-council/leeds,Leeds City Council,30/04/2018,Adults and Health,Services For Adults Under 65 Mental/Dis,Third Party Payments,Fees - Level 4,520,20/04/2018,1804-00279,0.00,250.00,R,Action First Recruitment Ltd,No
Http://opendatacommunities.org/id/metropolitan-district-council/leeds,Leeds City Council,30/04/2018,Adults and Health,Services For Adults Under 65 Mental/Dis,Third Party Payments,Fees - Level 4,520,20/04/2018,1804-00280,0.00,250.00,R,Action First Recruitment Ltd,No
Http://opendatacommunities.org/id/metropolitan-district-council/leeds,Leeds City Council,30/04/2018,Adults and Health,Services For Adults Under 65 Mental/Dis,Third Party Payments,Fees - Level 4,520,20/04/2018,1804-00281,0.00,250.00,R,Action First Recruitment Ltd,No
Http://opendatacommunities.org/id/metropolitan-district-council/leeds,Leeds City Council,30/04/2018,Adults and Health,Services For Adults Under 65 Mental/Dis,Third Party Payments,Fees - Level 4,520,20/04/2018,1804-00282,0.00,250.00,R,Action First Recruitment Ltd,No
Http://opendatacommunities.org/id/metropolitan-district-council/leeds,Leeds City Council,30/04/2018,Adults and Health,Services For Adults Under 65 Mental/Dis,Third Party Payments,Fees - Level 4,520,20/04/2018,1804-00283,0.00,250.00,R,Action First Recruitment Ltd,No
Http://opendatacommunities.org/id/metropolitan-district-council/leeds,Leeds City Council,30/04/2018,Adults and Health,Services For Adults Under 65 Mental/Dis,Third Party Payments,Fees - Level 4,520,20/04/2018,1804-00284,0.00,250.00,R,Action First Recruitment Ltd,No
Http://opendatacommunities.org/id/metropolitan-district-council/leeds,Leeds City Council,30/04/2018,Adults and Health,Services For Adults Under 65 Mental/Dis,Third Party Payments,Fees - Level 4,520,20/04/2018,1804-00285,0.00,250.00,R,Action First Recruitment Ltd,No
Http://opendatacommunities.org/id/metropolitan-district-council/leeds,Leeds City Council,30/04/2018,Adults and Health,Services For Adults Under 65 Mental/Dis,Third Party Payments,Fees - Level 4,520,20/04/2018,1804-00286,0.00,250.00,R,Action First Recruitment Ltd,No
Http://opendatacommunities.org/id/metropolitan-district-council/leeds,Leeds City Council,30/04/2018,Adults and Health,Services For Adults Under 65 Mental/Dis,Third Party Payments,Fees - Level 4,520,20/04/2018,1804-00287,0.00,250.00,R,Action First Recruitment Ltd,No
Http://opendatacommunities.org/id/metropolitan-district-council/leeds,Leeds City Council,30/04/2018,Adults and Health,Services For Adults Under 65 Mental/Dis,Third Party Payments,Fees - Level 4,520,20/04/2018,1804-00288,0.00,250.00,R,Action First Recruitment Ltd,No
Http://opendatacommunities.org/id/metropolitan-district-council/leeds,Leeds City Council,30/04/2018,Adults and Health,Services For Adults Under 65 Mental/Dis,Third Party Payments,Fees - Level 4,520,20/04/2018,1804-00289,0.00,250.00,R,Action First Recruitment Ltd,No
Http://opendatacommunities.org/id/metropolitan-district-council/leeds,Leeds City Council,30/04/2018,Adults and Health,Services For Adults Under 65 Mental/Dis,Third Party Payments,Fees - Level 4,520,20/04/2018,1804-00290,0.00,220.00,R,Action First Recruitment Ltd,No
Http://opendatacommunities.org/id/metropolitan-district-council/leeds,Leeds City Council,30/04/2018,Adults and Health,Services For Adults Under 65 Mental/Dis,Third Party Payments,Fees - Level 4,520,20/04/2018,1804-00291,0.00,220.00,R,Action First Recruitment Ltd,No
Http://opendatacommunities.org/id/metropolitan-district-council/leeds,Leeds City Council,30/04/2018,Adults and Health,Services For Adults Under 65 Mental/Dis,Third Party Payments,Fees - Level 4,520,20/04/2018,1804-00292,0.00,220.00,R,Action First Recruitment Ltd,No
Http://opendatacommunities.org/id/metropolitan-district-council/leeds,Leeds City Council,30/04/2018,Adults and Health,Services For Adults Under 65 Mental/Dis,Third Party Payments,Fees - Level 4,520,20/04/2018,1804-00293,0.00,220.00,R,Action First Recruitment Ltd,No
Http://opendatacommunities.org/id/metropolitan-district-council/leeds,Leeds City Council,30/04/2018,Adults and Health,Services For Adults Under 65 Mental/Dis,Third Party Payments,Fees - Level 4,520,20/04/2018,1804-00294,0.00,220.00,R,Action First Recruitment Ltd,No
Http://opendatacommunities.org/id/metropolitan-district-council/leeds,Leeds City Council,30/04/2018,Adults and Health,Services For Adults Under 65 Mental/Dis,Third Party Payments,Fees - Level 4,520,20/04/2018,1804-00295,0.00,220.00,R,Action First Recruitment Ltd,No
Http://opendatacommunities.org/id/metropolitan-district-council/leeds,Leeds City Council,30/04/2018,Adults and Health,Services For Adults Under 65 Mental/Dis,Third Party Payments,Fees - Level 4,520,20/04/2018,1804-00296,0.00,220.00,R,Action First Recruitment Ltd,No
Http://opendatacommunities.org/id/metropolitan-district-council/leeds,Leeds City Council,30/04/2018,Adults and Health,Services For Adults Under 65 Mental/Dis,Third Party Payments,Fees - Level 4,520,20/04/2018,1804-00297,0.00,220.00,R,Action First Recruitment Ltd,No
Http://opendatacommunities.org/id/metropolitan-district-council/leeds,Leeds City Council,30/04/2018,Adults and Health,Services For Adults Under 65 Mental/Dis,Third Party Payments,Fees - Level 4,520,20/04/2018,1804-00298,0.00,220.00,R,Action First Recruitment Ltd,No
Http://opendatacommunities.org/id/metropolitan-district-council/leeds,Leeds City Council,30/04/2018,Adults and Health,Services For Adults Under 65 Mental/Dis,Third Party Payments,Fees - Level 4,520,20/04/2018,1804-00299,0.00,250.00,R,Action First Recruitment Ltd,No
Http://opendatacommunities.org/id/metropolitan-district-council/leeds,Leeds City Council,30/04/2018,Adults and Health,Services For Adults Under 65 Mental/Dis,Third Party Payments,Fees - Level 4,520,20/04/2018,1804-00300,0.00,250.00,R,Action First Recruitment Ltd,No
Http://opendatacommunities.org/id/metropolitan-district-council/leeds,Leeds City Council,30/04/2018,Adults and Health,Services For Adults Under 65 Mental/Dis,Third Party Payments,Fees - Level 4,520,24/04/2018,1804-00301,0.00,220.00,R,Action First Recruitment Ltd,No
Http://opendatacommunities.org/id/metropolitan-district-council/leeds,Leeds City Council,30/04/2018,Adults and Health,Services For Adults Under 65 Mental/Dis,Third Party Payments,Fees - Level 4,520,24/04/2018,1804-00302,0.00,220.00,R,Action First Recruitment Ltd,No
Http://opendatacommunities.org/id/metropolitan-district-council/leeds,Leeds City Council,30/04/2018,Adults and Health,Services For Adults Under 65 Mental/Dis,Third Party Payments,Fees - Level 4,520,24/04/2018,1804-00303,0.00,220.00,R,Action First Recruitment Ltd,No
Http://opendatacommunities.org/id/metropolitan-district-council/leeds,Leeds City Council,30/04/2018,Adults and Health,Services For Adults Under 65 Mental/Dis,Third Party Payments,Fees - Level 4,520,24/04/2018,1804-00304,0.00,220.00,R,Action First Recruitment Ltd,No
Http://opendatacommunities.org/id/metropolitan-district-council/leeds,Leeds City Council,30/04/2018,Adults and Health,Services For Adults Under 65 Mental/Dis,Third Party Payments,Fees - Level 4,520,24/04/2018,1804-00305,0.00,250.00,R,Action First Recruitment Ltd,No
Http://opendatacommunities.org/id/metropolitan-district-council/leeds,Leeds City Council,30/04/2018,Adults and Health,Services For Adults Under 65 Mental/Dis,Third Party Payments,Fees - Level 4,520,24/04/2018,1804-00306,0.00,220.00,R,Action First Recruitment Ltd,No
Http://opendatacommunities.org/id/metropolitan-district-council/leeds,Leeds City Council,30/04/2018,Adults and Health,Services For Adults Under 65 Mental/Dis,Third Party Payments,Fees - Level 4,520,24/04/2018,1804-00307,0.00,250.00,R,Action First Recruitment Ltd,No
Http://opendatacommunities.org/id/metropolitan-district-council/leeds,Leeds City Council,30/04/2018,Adults and Health,Services For Adults Under 65 Mental/Dis,Third Party Payments,Fees - Level 4,520,24/04/2018,1804-00308,0.00,250.00,R,Action First Recruitment Ltd,No
Http://opendatacommunities.org/id/metropolitan-district-council/leeds,Leeds City Council,30/04/2018,Adults and Health,Services For Adults Under 65 Mental/Dis,Third Party Payments,Fees - Level 4,520,25/04/2018,1804-00309,0.00,220.00,R,Action First Recruitment Ltd,No
Http://opendatacommunities.org/id/metropolitan-district-council/leeds,Leeds City Council,30/04/2018,Adults and Health,Services For Adults Under 65 Mental/Dis,Third Party Payments,Fees - Level 4,520,25/04/2018,1804-00310,0.00,250.00,R,Action First Recruitment Ltd,No
Http://opendatacommunities.org/id/metropolitan-district-council/leeds,Leeds City Council,30/04/2018,Adults and Health,Services For Adults Under 65 Mental/Dis,Third Party Payments,Fees - Level 4,520,25/04/2018,1804-00311,0.00,250.00,R,Action First Recruitment Ltd,No
Http://opendatacommunities.org/id/metropolitan-district-council/leeds,Leeds City Council,30/04/2018,Adults and Health,Services For Adults Under 65 Mental/Dis,Third Party Payments,Fees - Level 4,520,25/04/2018,1804-00312,0.00,250.00,R,Action First Recruitment Ltd,No
Http://opendatacommunities.org/id/metropolitan-district-council/leeds,Leeds City Council,30/04/2018,Adults and Health,Services For Adults Under 65 Mental/Dis,Third Party Payments,Fees - Level 4,520,25/04/2018,1804-00313,0.00,250.00,R,Action First Recruitment Ltd,No
Http://opendatacommunities.org/id/metropolitan-district-council/leeds,Leeds City Council,30/04/2018,Adults and Health,Services For Adults Under 65 Mental/Dis,Third Party Payments,Fees - Level 4,520,25/04/2018,1804-00314,0.00,220.00,R,Action First Recruitment Ltd,No
Http://opendatacommunities.org/id/metropolitan-district-council/leeds,Leeds City Council,30/04/2018,Adults and Health,Services For Adults Under 65 Mental/Dis,Third Party Payments,Fees - Level 4,520,25/04/2018,1804-00315,0.00,220.00,R,Action First Recruitment Ltd,No
Http://opendatacommunities.org/id/metropolitan-district-council/leeds,Leeds City Council,30/04/2018,Adults and Health,Services For Adults Under 65 Mental/Dis,Third Party Payments,Fees - Level 4,520,25/04/2018,1804-00316,0.00,220.00,R,Action First Recruitment Ltd,No
Http://opendatacommunities.org/id/metropolitan-district-council/leeds,Leeds City Council,30/04/2018,Adults and Health,Services For Adults Under 65 Mental/Dis,Third Party Payments,Fees - Level 4,520,25/04/2018,1804-00317,0.00,220.00,R,Action First Recruitment Ltd,No
Http://opendatacommunities.org/id/metropolitan-district-council/leeds,Leeds City Council,30/04/2018,Adults and Health,Services For Adults Under 65 Mental/Dis,Third Party Payments,Fees - Level 4,520,26/04/2018,1804-00318,0.00,220.00,R,Action First Recruitment Ltd,No
Http://opendatacommunities.org/id/metropolitan-district-council/leeds,Leeds City Council,30/04/2018,Adults and Health,Services For Adults Under 65 Mental/Dis,Third Party Payments,Fees - Level 4,520,27/04/2018,1804-00319,0.00,220.00,R,Action First Recruitment Ltd,No
Http://opendatacommunities.org/id/metropolitan-district-council/leeds,Leeds City Council,30/04/2018,Adults and Health,Services For Adults Under 65 Mental/Dis,Third Party Payments,Fees - Level 4,520,27/04/2018,1804-00320,0.00,220.00,R,Action First Recruitment Ltd,No
Http://opendatacommunities.org/id/metropolitan-district-council/leeds,Leeds City Council,30/04/2018,Adults and Health,Services For Adults Under 65 Mental/Dis,Third Party Payments,Fees - Level 4,520,27/04/2018,1804-00321,0.00,220.00,R,Action First Recruitment Ltd,No
Http://opendatacommunities.org/id/metropolitan-district-council/leeds,Leeds City Council,30/04/2018,Adults and Health,Services For Adults Under 65 Mental/Dis,Third Party Payments,Fees - Level 4,520,27/04/2018,1804-00322,0.00,220.00,R,Action First Recruitment Ltd,No
Http://opendatacommunities.org/id/metropolitan-district-council/leeds,Leeds City Council,30/04/2018,Adults and Health,Services For Adults Under 65 Mental/Dis,Third Party Payments,Fees - Level 4,520,27/04/2018,1804-00323,0.00,220.00,R,Action First Recruitment Ltd,No
Http://opendatacommunities.org/id/metropolitan-district-council/leeds,Leeds City Council,30/04/2018,Adults and Health,Services For Adults Under 65 Mental/Dis,Third Party Payments,Fees - Level 4,520,27/04/2018,1804-00324,0.00,220.00,R,Action First Recruitment Ltd,No
Http://opendatacommunities.org/id/metropolitan-district-council/leeds,Leeds City Council,30/04/2018,Adults and Health,Services For Older People - 65 And Over,Third Party Payments,Payments To Voluntary Organisations,561,03/04/2018,1804-00325,0.00,34505.50,R,Action For Gipton Elderly,No
Http://opendatacommunities.org/id/metropolitan-district-council/leeds,Leeds City Council,30/04/2018,Children and Families,Safeguarding Targeted & Specialist,Third Party Payments,Services Rendered By Other Organisations,511,18/04/2018,1804-00326,0.00,2386.80,R,Active Kids Yeadon Llp,No
Http://opendatacommunities.org/id/metropolitan-district-council/leeds,Leeds City Council,30/04/2018,Children and Families,Safeguarding Targeted & Specialist,Third Party Payments,Services Rendered By Other Organisations,511,20/04/2018,1804-00327,0.00,24531.00,R,Active Kids Yeadon Llp,No
Http://opendatacommunities.org/id/metropolitan-district-council/leeds,Leeds City Council,30/04/2018,Communities and Environment,Cleaner Neighbourhood Teams,Premises,Removal Of Workplace Waste,126,05/04/2018,1804-00328,0.00,110.00,R,Acumen Waste Services Ltd,No
Http://opendatacommunities.org/id/metropolitan-district-council/leeds,Leeds City Council,30/04/2018,Communities and Environment,Cleaner Neighbourhood Teams,Premises,Removal Of Workplace Waste,126,05/04/2018,1804-00329,0.00,110.00,R,Acumen Waste Services Ltd,No
Http://opendatacommunities.org/id/metropolitan-district-council/leeds,Leeds City Council,30/04/2018,Communities and Environment,Cleaner Neighbourhood Teams,Premises,Removal Of Workplace Waste,126,05/04/2018,1804-00330,0.00,110.00,R,Acumen Waste Services Ltd,No
Http://opendatacommunities.org/id/metropolitan-district-council/leeds,Leeds City Council,30/04/2018,Communities and Environment,Cleaner Neighbourhood Teams,Premises,Removal Of Workplace Waste,126,10/04/2018,1804-00331,0.00,110.00,R,Acumen Waste Services Ltd,No
Http://opendatacommunities.org/id/metropolitan-district-council/leeds,Leeds City Council,30/04/2018,Communities and Environment,Cleaner Neighbourhood Teams,Premises,Removal Of Workplace Waste,126,10/04/2018,1804-00332,0.00,110.00,R,Acumen Waste Services Ltd,No
Http://opendatacommunities.org/id/metropolitan-district-council/leeds,Leeds City Council,30/04/2018,Communities and Environment,Cleaner Neighbourhood Teams,Premises,Removal Of Workplace Waste,126,10/04/2018,1804-00333,0.00,110.00,R,Acumen Waste Services Ltd,No
Http://opendatacommunities.org/id/metropolitan-district-council/leeds,Leeds City Council,30/04/2018,Communities and Environment,Cleaner Neighbourhood Teams,Premises,Removal Of Workplace Waste,126,10/04/2018,1804-00334,0.00,50.00,R,Acumen Waste Services Ltd,No
Http://opendatacommunities.org/id/metropolitan-district-council/leeds,Leeds City Council,30/04/2018,Communities and Environment,Cleaner Neighbourhood Teams,Premises,Removal Of Workplace Waste,126,10/04/2018,1804-00335,0.00,50.00,R,Acumen Waste Services Ltd,No
Http://opendatacommunities.org/id/metropolitan-district-council/leeds,Leeds City Council,30/04/2018,Communities and Environment,Cleaner Neighbourhood Teams,Premises,Removal Of Workplace Waste,126,10/04/2018,1804-00336,0.00,50.00,R,Acumen Waste Services Ltd,No
Http://opendatacommunities.org/id/metropolitan-district-council/leeds,Leeds City Council,30/04/2018,Communities and Environment,Waste Management,Supplies and Services,Recycling & Reuse Charges,234,13/04/2018,1804-00337,0.00,3812.30,R,Acumen Waste Services Ltd,No
Http://opendatacommunities.org/id/metropolitan-district-council/leeds,Leeds City Council,30/04/2018,Communities and Environment,Waste Management,Supplies and Services,Recycling & Reuse Charges,234,18/04/2018,1804-00338,0.00,4749.63,R,Acumen Waste Services Ltd,No
Http://opendatacommunities.org/id/metropolitan-district-council/leeds,Leeds City Council,30/04/2018,Communities and Environment,Cleaner Neighbourhood Teams,Premises,Removal Of Workplace Waste,126,25/04/2018,1804-00339,0.00,110.00,R,Acumen Waste Services Ltd,No
Http://opendatacommunities.org/id/metropolitan-district-council/leeds,Leeds City Council,30/04/2018,Communities and Environment,Cleaner Neighbourhood Teams,Premises,Removal Of Workplace Waste,126,25/04/2018,1804-00340,0.00,110.00,R,Acumen Waste Services Ltd,No
Http://opendatacommunities.org/id/metropolitan-district-council/leeds,Leeds City Council,30/04/2018,Communities and Environment,Cleaner Neighbourhood Teams,Premises,Removal Of Workplace Waste,126,25/04/2018,1804-00341,0.00,50.00,R,Acumen Waste Services Ltd,No
Http://opendatacommunities.org/id/metropolitan-district-council/leeds,Leeds City Council,30/04/2018,Communities and Environment,Waste Management,Supplies and Services,Recycling & Reuse Charges,234,25/04/2018,1804-00342,0.00,3925.53,R,Acumen Waste Services Ltd,No
Http://opendatacommunities.org/id/metropolitan-district-council/leeds,Leeds City Council,30/04/2018,Communities and Environment,Parks and Countryside,Supplies and Services,Resaleable Materials,204,13/04/2018,1804-00343,0.00,45.48,R,Acushnet Europe Limited,No
Http://opendatacommunities.org/id/metropolitan-district-council/leeds,Leeds City Council,30/04/2018,Resources and Housing,Shared Services,Supplies and Services,Other Hired And Contracted Services,265,11/04/2018,1804-00344,0.00,194.78,R,Ad3 Envelope Printers Limited,No
Http://opendatacommunities.org/id/metropolitan-district-council/leeds,Leeds City Council,30/04/2018,Resources and Housing,Shared Services,Supplies and Services,Other Hired And Contracted Services,265,13/04/2018,1804-00345,0.00,726.30,R,Ad3 Envelope Printers Limited,No
Http://opendatacommunities.org/id/metropolitan-district-council/leeds,Leeds City Council,30/04/2018,Resources and Housing,Shared Services,Supplies and Services,Operational Materials,205,13/04/2018,1804-00346,0.00,705.00,R,Ad3 Envelope Printers Limited,No
Http://opendatacommunities.org/id/metropolitan-district-council/leeds,Leeds City Council,30/04/2018,Resources and Housing,Shared Services,Supplies and Services,Operational Materials,205,27/04/2018,1804-00347,0.00,705.00,R,Ad3 Envelope Printers Limited,No
Http://opendatacommunities.org/id/metropolitan-district-council/leeds,Leeds City Council,30/04/2018,Resources and Housing,Shared Services,Supplies and Services,Other Hired And Contracted Services,265,27/04/2018,1804-00348,0.00,96.44,R,Ad3 Envelope Printers Limited,No
Http://opendatacommunities.org/id/metropolitan-district-council/leeds,Leeds City Council,30/04/2018,Adults and Health,Services For Adults Under 65 Mental/Dis,Support Services,Legal Disbursements,411,12/04/2018,1804-00349,0.00,1750.00,R,Adam Fullwood,No
Http://opendatacommunities.org/id/metropolitan-district-council/leeds,Leeds City Council,30/04/2018,Children and Families,Safeguarding Targeted & Specialist,Support Services,Legal Disbursements,411,13/04/2018,1804-00350,0.00,1350.00,R,Adam Fullwood,No
Http://opendatacommunities.org/id/metropolitan-district-council/leeds,Leeds City Council,30/04/2018,City Development,Libraries  Arts & Heritage,Supplies and Services,Other Hired And Contracted Services,265,16/04/2018,1804-00351,0.00,150.00,R,Adam Wright,No
Http://opendatacommunities.org/id/metropolitan-district-council/leeds,Leeds City Council,30/04/2018,Adults and Health,Services For Older People - 65 And Over,Third Party Payments,Nursing Home,570,04/04/2018,1804-00352,0.00,3767.40,R,Adbolton Hall,No
Http://opendatacommunities.org/id/metropolitan-district-council/leeds,Leeds City Council,30/04/2018,Resources and Housing,Sustainable Energy & Climate Change,Capital,Other Costs,7,12/04/2018,1804-00353,0.00,11081.00,C,Addleshaw Goddard Llp,No
Http://opendatacommunities.org/id/metropolitan-district-council/leeds,Leeds City Council,30/04/2018,Resources and Housing,Sustainable Energy & Climate Change,Capital,Other Costs,7,18/04/2018,1804-00354,0.00,5000.00,C,Addleshaw Goddard Llp,No
Http://opendatacommunities.org/id/metropolitan-district-council/leeds,Leeds City Council,30/04/2018,Resources and Housing,Sustainable Energy & Climate Change,Capital,Other Costs,7,26/04/2018,1804-00355,0.00,1083.50,C,Addleshaw Goddard Llp,No
Http://opendatacommunities.org/id/metropolitan-district-council/leeds,Leeds City Council,30/04/2018,Resources and Housing,Sustainable Energy & Climate Change,Capital,Other Costs,7,26/04/2018,1804-00356,0.00,4440.00,C,Addleshaw Goddard Llp,No
Http://opendatacommunities.org/id/metropolitan-district-council/leeds,Leeds City Council,30/04/2018,Resources and Housing,Human Resources,Employees,Occupational Health,85,12/04/2018,1804-00357,0.00,35.00,R,Addlestone & Partners,No
Http://opendatacommunities.org/id/metropolitan-district-council/leeds,Leeds City Council,30/04/2018,Resources and Housing,Technology  ,Employees,Agency Staff,8,07/03/2018,1804-00358,0.00,60588.93,R,Adecco Alfred Marks,Yes
Http://opendatacommunities.org/id/metropolitan-district-council/leeds,Leeds City Council,30/04/2018,Resources and Housing,Technology  ,Employees,Agency Staff,8,16/03/2018,1804-00359,0.00,44703.08,R,Adecco Alfred Marks,Yes
Http://opendatacommunities.org/id/metropolitan-district-council/leeds,Leeds City Council,30/04/2018,Resources and Housing,Technology  ,Employees,Agency Staff,8,28/03/2018,1804-00360,0.00,50514.38,R,Adecco Alfred Marks,Yes
Http://opendatacommunities.org/id/metropolitan-district-council/leeds,Leeds City Council,30/04/2018,Communities and Environment,Elections  Licensing and Registration,Income,Admissions  Booking Fees & Ticket Sales,933,05/04/2018,1804-00361,0.00,25.00,R,REDACTED PERSONAL DATA,No
Http://opendatacommunities.org/id/metropolitan-district-council/leeds,Leeds City Council,30/04/2018,Children and Families,Safeguarding Targeted & Specialist,Third Party Payments,Services Rendered By Voluntary Sector,505,18/04/2018,1804-00362,0.00,295.65,R,Adel Pre School,No
Http://opendatacommunities.org/id/metropolitan-district-council/leeds,Leeds City Council,30/04/2018,Children and Families,Safeguarding Targeted & Specialist,Third Party Payments,Services Rendered By Voluntary Sector,505,20/04/2018,1804-00363,0.00,26122.20,R,Adel Pre School,No
Http://opendatacommunities.org/id/metropolitan-district-council/leeds,Leeds City Council,30/04/2018,Children and Families,Safeguarding Targeted & Specialist,Third Party Payments,Services Rendered By Voluntary Sector,505,24/04/2018,1804-00364,0.00,3024.00,R,Adel Pre School,No
Http://opendatacommunities.org/id/metropolitan-district-council/leeds,Leeds City Council,30/04/2018,Children and Families,Safeguarding Targeted & Specialist,Third Party Payments,Services Rendered By Voluntary Sector,505,24/04/2018,1804-00365,0.00,2873.68,R,Adel Pre School,No
Http://opendatacommunities.org/id/metropolitan-district-council/leeds,Leeds City Council,30/04/2018,Children and Families,Safeguarding Targeted & Specialist,Third Party Payments,Services Rendered By Other Organisations,511,20/04/2018,1804-00366,0.00,5967.00,R,REDACTED PERSONAL DATA,No
Http://opendatacommunities.org/id/metropolitan-district-council/leeds,Leeds City Council,30/04/2018,Children and Families,Safeguarding Targeted & Specialist,Support Services,Legal Disbursements,411,03/04/2018,1804-00367,0.00,680.00,R,Adele Jenkins,No
Http://opendatacommunities.org/id/metropolitan-district-council/leeds,Leeds City Council,30/04/2018,Children and Families,Safeguarding Targeted & Specialist,Third Party Payments,Services Rendered By Other Organisations,511,20/04/2018,1804-00368,0.00,795.60,R,REDACTED PERSONAL DATA,No
Http://opendatacommunities.org/id/metropolitan-district-council/leeds,Leeds City Council,30/04/2018,Children and Families,Safeguarding Targeted & Specialist,Third Party Payments,Services Rendered By Other Organisations,511,20/04/2018,1804-00369,0.00,397.80,R,Adele Thompson,No
Http://opendatacommunities.org/id/metropolitan-district-council/leeds,Leeds City Council,30/04/2018,Adults and Health,Services For Older People - 65 And Over,Third Party Payments,Nursing Home,570,04/04/2018,1804-00370,0.00,1137.49,R,Aden House,No
Http://opendatacommunities.org/id/metropolitan-district-council/leeds,Leeds City Council,30/04/2018,Resources and Housing,Leeds Building Services,Supplies and Services,Operational Materials,205,13/04/2018,1804-00371,0.00,79.50,R,Adi Global,No
Http://opendatacommunities.org/id/metropolitan-district-council/leeds,Leeds City Council,30/04/2018,Resources and Housing,Leeds Building Services,Supplies and Services,Operational Materials,205,13/04/2018,1804-00372,0.00,74.10,R,Adi Global,No
Http://opendatacommunities.org/id/metropolitan-district-council/leeds,Leeds City Council,30/04/2018,Resources and Housing,Leeds Building Services,Supplies and Services,Operational Materials,205,13/04/2018,1804-00373,0.00,184.31,R,Adi Global,No
Http://opendatacommunities.org/id/metropolitan-district-council/leeds,Leeds City Council,30/04/2018,Resources and Housing,Leeds Building Services,Supplies and Services,Operational Materials,205,13/04/2018,1804-00374,0.00,700.86,R,Adi Global,No
Http://opendatacommunities.org/id/metropolitan-district-council/leeds,Leeds City Council,30/04/2018,Resources and Housing,Leeds Building Services,Supplies and Services,Operational Materials,205,13/04/2018,1804-00375,0.00,963.86,R,Adi Global,No
Http://opendatacommunities.org/id/metropolitan-district-council/leeds,Leeds City Council,30/04/2018,Resources and Housing,Leeds Building Services,Supplies and Services,Operational Materials,205,13/04/2018,1804-00376,0.00,254.37,R,Adi Global,No
Http://opendatacommunities.org/id/metropolitan-district-council/leeds,Leeds City Council,30/04/2018,Resources and Housing,Leeds Building Services,Supplies and Services,Operational Materials,205,13/04/2018,1804-00377,0.00,51.23,R,Adi Global,No
Http://opendatacommunities.org/id/metropolitan-district-council/leeds,Leeds City Council,30/04/2018,Resources and Housing,Leeds Building Services,Supplies and Services,Operational Materials,205,17/04/2018,1804-00378,0.00,31.20,R,Adi Global,No
Http://opendatacommunities.org/id/metropolitan-district-council/leeds,Leeds City Council,30/04/2018,Resources and Housing,Leeds Building Services,Supplies and Services,Operational Materials,205,23/04/2018,1804-00379,0.00,34.43,R,Adi Global,No
Http://opendatacommunities.org/id/metropolitan-district-council/leeds,Leeds City Council,30/04/2018,Resources and Housing,Leeds Building Services,Supplies and Services,Operational Materials,205,23/04/2018,1804-00380,0.00,742.96,R,Adi Global,No
Http://opendatacommunities.org/id/metropolitan-district-council/leeds,Leeds City Council,30/04/2018,Resources and Housing,Leeds Building Services,Supplies and Services,Operational Materials,205,23/04/2018,1804-00381,0.00,290.60,R,Adi Global,No
Http://opendatacommunities.org/id/metropolitan-district-council/leeds,Leeds City Council,30/04/2018,Resources and Housing,Leeds Building Services,Supplies and Services,Operational Materials,205,23/04/2018,1804-00382,0.00,305.76,R,Adi Global,No
Http://opendatacommunities.org/id/metropolitan-district-council/leeds,Leeds City Council,30/04/2018,Resources and Housing,Leeds Building Services,Supplies and Services,Operational Materials,205,23/04/2018,1804-00383,0.00,572.87,R,Adi Global,No
Http://opendatacommunities.org/id/metropolitan-district-council/leeds,Leeds City Council,30/04/2018,Resources and Housing,Leeds Building Services,Supplies and Services,Operational Materials,205,23/04/2018,1804-00384,0.00,21.17,R,Adi Global,No
Http://opendatacommunities.org/id/metropolitan-district-council/leeds,Leeds City Council,30/04/2018,Resources and Housing,Leeds Building Services,Supplies and Services,Operational Materials,205,23/04/2018,1804-00385,0.00,111.63,R,Adi Global,No
Http://opendatacommunities.org/id/metropolitan-district-council/leeds,Leeds City Council,30/04/2018,Communities and Environment,Elections  Licensing and Registration,Income,Admissions  Booking Fees & Ticket Sales,933,12/04/2018,1804-00386,0.00,300.00,R,REDACTED PERSONAL DATA,No
Http://opendatacommunities.org/id/metropolitan-district-council/leeds,Leeds City Council,30/04/2018,Insurance,Insurance,Supplies and Services,Insurance Claims,248,12/04/2018,1804-00387,0.00,380.00,R,Admiral Insurance,No
Http://opendatacommunities.org/id/metropolitan-district-council/leeds,Leeds City Council,30/04/2018,Insurance,Insurance,Supplies and Services,Insurance Claims,248,04/04/2018,1804-00388,0.00,2024.95,R,Admiral Law,No
Http://opendatacommunities.org/id/metropolitan-district-council/leeds,Leeds City Council,30/04/2018,Children and Families,Safeguarding Targeted & Specialist,Third Party Payments,Independent Fostering Agencies,509,05/04/2018,1804-00389,0.00,2660.00,R,Adolescent And Childrens Trust,No
Http://opendatacommunities.org/id/metropolitan-district-council/leeds,Leeds City Council,30/04/2018,Children and Families,Safeguarding Targeted & Specialist,Third Party Payments,Independent Fostering Agencies,509,05/04/2018,1804-00390,0.00,2660.00,R,Adolescent And Childrens Trust,No
Http://opendatacommunities.org/id/metropolitan-district-council/leeds,Leeds City Council,30/04/2018,Children and Families,Safeguarding Targeted & Specialist,Third Party Payments,Independent Fostering Agencies,509,05/04/2018,1804-00391,0.00,2660.00,R,Adolescent And Childrens Trust,No
Http://opendatacommunities.org/id/metropolitan-district-council/leeds,Leeds City Council,30/04/2018,Children and Families,Safeguarding Targeted & Specialist,Third Party Payments,Independent Fostering Agencies,509,05/04/2018,1804-00392,0.00,2660.00,R,Adolescent And Childrens Trust,No
Http://opendatacommunities.org/id/metropolitan-district-council/leeds,Leeds City Council,30/04/2018,Children and Families,Safeguarding Targeted & Specialist,Third Party Payments,Independent Fostering Agencies,509,05/04/2018,1804-00393,0.00,1664.00,R,Adolescent And Childrens Trust,No
Http://opendatacommunities.org/id/metropolitan-district-council/leeds,Leeds City Council,30/04/2018,Children and Families,Safeguarding Targeted & Specialist,Third Party Payments,Independent Fostering Agencies,509,05/04/2018,1804-00394,0.00,832.00,R,Adolescent And Childrens Trust,No
Http://opendatacommunities.org/id/metropolitan-district-council/leeds,Leeds City Council,30/04/2018,Children and Families,Safeguarding Targeted & Specialist,Third Party Payments,Independent Fostering Agencies,509,12/04/2018,1804-00395,0.00,2945.00,R,Adolescent And Childrens Trust,No
Http://opendatacommunities.org/id/metropolitan-district-council/leeds,Leeds City Council,30/04/2018,Children and Families,Safeguarding Targeted & Specialist,Third Party Payments,Independent Fostering Agencies,509,12/04/2018,1804-00396,0.00,2945.00,R,Adolescent And Childrens Trust,No
Http://opendatacommunities.org/id/metropolitan-district-council/leeds,Leeds City Council,30/04/2018,Children and Families,Safeguarding Targeted & Specialist,Third Party Payments,Independent Fostering Agencies,509,12/04/2018,1804-00397,0.00,2945.00,R,Adolescent And Childrens Trust,No
Http://opendatacommunities.org/id/metropolitan-district-council/leeds,Leeds City Council,30/04/2018,Children and Families,Safeguarding Targeted & Specialist,Third Party Payments,Independent Fostering Agencies,509,12/04/2018,1804-00398,0.00,2945.00,R,Adolescent And Childrens Trust,No
Http://opendatacommunities.org/id/metropolitan-district-council/leeds,Leeds City Council,30/04/2018,Communities and Environment,Customer Access,Supplies and Services,Other Hired And Contracted Services,265,27/04/2018,1804-00399,0.00,150.00,R,Adrian Czajkowski,No
Http://opendatacommunities.org/id/metropolitan-district-council/leeds,Leeds City Council as Accountable Body,30/04/2018,Social Services Pooled Budgets,Jcs For People With Learning Disabilitie,Third Party Payments,Residential,580,12/04/2018,1804-00400,0.00,2609.36,R,Adrian House,No
Http://opendatacommunities.org/id/metropolitan-district-council/leeds,Leeds City Council,30/04/2018,Resources and Housing,Human Resources,Support Services,Legal Disbursements,411,11/04/2018,1804-00401,0.00,2700.00,R,Adrian Lynch,No
Http://opendatacommunities.org/id/metropolitan-district-council/leeds,Leeds City Council,30/04/2018,Resources and Housing,Corporate Property Management,Premises,Maintenance Of Buildings,101,05/04/2018,1804-00402,0.00,355.80,R,Adt Fire And Security Plc,No
Http://opendatacommunities.org/id/metropolitan-district-council/leeds,Leeds City Council,30/04/2018,City Development,Libraries  Arts & Heritage,Supplies and Services,Other Hired And Contracted Services,265,05/04/2018,1804-00403,0.00,1464.38,R,Adt Fire And Security Plc,No
Http://opendatacommunities.org/id/metropolitan-district-council/leeds,Leeds City Council,30/04/2018,Strategic Landlord,Housing Management,Premises,Premises Security Services,162,06/04/2018,1804-00404,0.00,149.60,R,Adt Fire And Security Plc,No
Http://opendatacommunities.org/id/metropolitan-district-council/leeds,Leeds City Council,30/04/2018,Children and Families,Safeguarding Targeted & Specialist,Premises,Premises Security Services,162,23/04/2018,1804-00405,0.00,1022.64,R,Adt Fire And Security Plc,No
Http://opendatacommunities.org/id/metropolitan-district-council/leeds,Leeds City Council,30/04/2018,Resources and Housing,Leeds Building Services,Supplies and Services,Other Hired And Contracted Services,265,26/04/2018,1804-00406,0.00,336.55,R,Adt Fire And Security Plc,No
Http://opendatacommunities.org/id/metropolitan-district-council/leeds,Leeds City Council,30/04/2018,Resources and Housing,Facilities Management  ,Supplies and Services,Other Hired And Contracted Services,265,15/03/2018,1804-00407,0.00,222.00,R,Adt Leeds Cc,Yes
Http://opendatacommunities.org/id/metropolitan-district-council/leeds,Leeds City Council as Accountable Body,30/04/2018,Social Services Pooled Budgets,Jcs For People With Learning Disabilitie,Third Party Payments,Sheltered Accommodation,569,13/04/2018,1804-00408,0.00,197.73,R,Adult Placement Services,No
Http://opendatacommunities.org/id/metropolitan-district-council/leeds,Leeds City Council as Accountable Body,30/04/2018,Social Services Pooled Budgets,Jcs For People With Learning Disabilitie,Third Party Payments,Sheltered Accommodation,569,13/04/2018,1804-00409,0.00,1332.20,R,Adult Placement Services,No
Http://opendatacommunities.org/id/metropolitan-district-council/leeds,Leeds City Council as Accountable Body,30/04/2018,Social Services Pooled Budgets,Jcs For People With Learning Disabilitie,Third Party Payments,Sheltered Accommodation,569,26/04/2018,1804-00410,0.00,1332.20,R,Adult Placement Services,No
Http://opendatacommunities.org/id/metropolitan-district-council/leeds,Leeds City Council as Accountable Body,30/04/2018,Social Services Pooled Budgets,Jcs For People With Learning Disabilitie,Third Party Payments,Sheltered Accommodation,569,30/04/2018,1804-00411,0.00,1332.20,R,Adult Placement Services,No
Http://opendatacommunities.org/id/metropolitan-district-council/leeds,Leeds City Council,30/04/2018,Children and Families,Safeguarding Targeted & Specialist,Support Services,Legal Disbursements,411,12/04/2018,1804-00412,0.00,107.69,R,Advanced Child Care Assessments Ltd,No
Http://opendatacommunities.org/id/metropolitan-district-council/leeds,Leeds City Council,30/04/2018,Children and Families,Safeguarding Targeted & Specialist,Support Services,Legal Disbursements,411,26/04/2018,1804-00413,0.00,389.12,R,Advanced Child Care Assessments Ltd,No
Http://opendatacommunities.org/id/metropolitan-district-council/leeds,Leeds City Council,30/04/2018,Resources and Housing,Leeds Building Services,Supplies and Services,Other Hired And Contracted Services,265,05/04/2018,1804-00414,0.00,10545.75,R,Advanced Diesel Engineering,No
Http://opendatacommunities.org/id/metropolitan-district-council/leeds,Leeds City Council as Accountable Body,30/04/2018,Social Services Pooled Budgets,Jcs For People With Learning Disabilitie,Third Party Payments,Residential,580,03/04/2018,1804-00415,0.00,27777.52,R,Advitam Ltd,No
Http://opendatacommunities.org/id/metropolitan-district-council/leeds,Leeds City Council as Accountable Body,30/04/2018,Social Services Pooled Budgets,Jcs For People With Learning Disabilitie,Third Party Payments,Residential,580,04/04/2018,1804-00416,0.00,1056.60,R,Advitam Ltd,No
Http://opendatacommunities.org/id/metropolitan-district-council/leeds,Leeds City Council,30/04/2018,Adults and Health,Services For Adults Under 65 Mental/Dis,Third Party Payments,Payments To Voluntary Organisations,561,16/04/2018,1804-00417,0.00,24447.85,R,Advonet,No
Http://opendatacommunities.org/id/metropolitan-district-council/leeds,Leeds City Council,30/04/2018,City Development,Highways,Capital,Other Costs,7,05/04/2018,1804-00418,0.00,17396.30,C,Aecom Limited,No
Http://opendatacommunities.org/id/metropolitan-district-council/leeds,Leeds City Council,30/04/2018,City Development,Highways,Capital,Other Costs,7,05/04/2018,1804-00419,0.00,15811.59,C,Aecom Limited,No
Http://opendatacommunities.org/id/metropolitan-district-council/leeds,Leeds City Council as Accountable Body,30/04/2018,Social Services Pooled Budgets,Jcs For People With Learning Disabilitie,Third Party Payments,Day Centre,564,13/04/2018,1804-00420,0.00,2003.27,R,Affinity Trust,No
Http://opendatacommunities.org/id/metropolitan-district-council/leeds,Leeds City Council as Accountable Body,30/04/2018,Social Services Pooled Budgets,Jcs For People With Learning Disabilitie,Third Party Payments,Day Centre,564,13/04/2018,1804-00421,0.00,2031.48,R,Affinity Trust,No
Http://opendatacommunities.org/id/metropolitan-district-council/leeds,Leeds City Council as Accountable Body,30/04/2018,Social Services Pooled Budgets,Jcs For People With Learning Disabilitie,Third Party Payments,Day Centre,564,13/04/2018,1804-00422,0.00,1899.81,R,Affinity Trust,No
Http://opendatacommunities.org/id/metropolitan-district-council/leeds,Leeds City Council as Accountable Body,30/04/2018,Social Services Pooled Budgets,Jcs For People With Learning Disabilitie,Third Party Payments,Day Centre,564,13/04/2018,1804-00423,0.00,2031.48,R,Affinity Trust,No
Http://opendatacommunities.org/id/metropolitan-district-council/leeds,Leeds City Council as Accountable Body,30/04/2018,Social Services Pooled Budgets,Jcs For People With Learning Disabilitie,Third Party Payments,Day Centre,564,13/04/2018,1804-00424,0.00,2031.48,R,Affinity Trust,No
Http://opendatacommunities.org/id/metropolitan-district-council/leeds,Leeds City Council as Accountable Body,30/04/2018,Social Services Pooled Budgets,Jcs For People With Learning Disabilitie,Third Party Payments,Day Centre,564,13/04/2018,1804-00425,0.00,2031.48,R,Affinity Trust,No
Http://opendatacommunities.org/id/metropolitan-district-council/leeds,Leeds City Council as Accountable Body,30/04/2018,Social Services Pooled Budgets,Jcs For People With Learning Disabilitie,Third Party Payments,Day Centre,564,13/04/2018,1804-00426,0.00,2974.67,R,Affinity Trust,No
Http://opendatacommunities.org/id/metropolitan-district-council/leeds,Leeds City Council as Accountable Body,30/04/2018,Social Services Pooled Budgets,Jcs For People With Learning Disabilitie,Third Party Payments,Day Centre,564,13/04/2018,1804-00427,0.00,2031.48,R,Affinity Trust,No
Http://opendatacommunities.org/id/metropolitan-district-council/leeds,Leeds City Council,30/04/2018,Adults and Health,Assessment And Care Management,Third Party Payments,Home Care,568,16/04/2018,1804-00428,0.00,495.38,R,Affinity Trust,No
Http://opendatacommunities.org/id/metropolitan-district-council/leeds,Leeds City Council,30/04/2018,Adults and Health,Assessment And Care Management,Third Party Payments,Home Care,568,16/04/2018,1804-00429,0.00,495.38,R,Affinity Trust,No
Http://opendatacommunities.org/id/metropolitan-district-council/leeds,Leeds City Council,30/04/2018,Adults and Health,Services For Older People Under 65 P/Dis,Third Party Payments,Home Care,568,17/04/2018,1804-00430,0.00,134.56,R,Affinity Trust,No
Http://opendatacommunities.org/id/metropolitan-district-council/leeds,Leeds City Council,30/04/2018,Adults and Health,Services For Older People Under 65 P/Dis,Third Party Payments,Home Care,568,17/04/2018,1804-00431,0.00,403.68,R,Affinity Trust,No
Http://opendatacommunities.org/id/metropolitan-district-council/leeds,Leeds City Council,30/04/2018,Adults and Health,Services For Adults Under 65 Mental/Dis,Third Party Payments,Home Care,568,19/04/2018,1804-00432,0.00,95.88,R,Affinity Trust,No
Http://opendatacommunities.org/id/metropolitan-district-council/leeds,Leeds City Council,30/04/2018,Adults and Health,Services For Older People - 65 And Over,Third Party Payments,Home Care,568,19/04/2018,1804-00433,0.00,1076.48,R,Affinity Trust,No
Http://opendatacommunities.org/id/metropolitan-district-council/leeds,Leeds City Council,30/04/2018,Adults and Health,Services For Older People Under 65 P/Dis,Third Party Payments,Home Care,568,19/04/2018,1804-00434,0.00,1981.52,R,Affinity Trust,No
Http://opendatacommunities.org/id/metropolitan-district-council/leeds,Leeds City Council,30/04/2018,Adults and Health,Services For Older People Under 65 P/Dis,Third Party Payments,Home Care,568,27/04/2018,1804-00435,0.00,319.60,R,Affinity Trust,No
Http://opendatacommunities.org/id/metropolitan-district-council/leeds,Leeds City Council,30/04/2018,Adults and Health,Services For Older People Under 65 P/Dis,Third Party Payments,Home Care,568,27/04/2018,1804-00436,0.00,134.56,R,Affinity Trust,No
Http://opendatacommunities.org/id/metropolitan-district-council/leeds,Leeds City Council,30/04/2018,Adults and Health,Services For Older People - 65 And Over,Third Party Payments,Home Care,568,30/04/2018,1804-00437,0.00,793.92,R,Affinity Trust,No
Http://opendatacommunities.org/id/metropolitan-district-council/leeds,Leeds City Council,30/04/2018,Adults and Health,Services For Older People Under 65 P/Dis,Third Party Payments,Home Care,568,30/04/2018,1804-00438,0.00,647.19,R,Affinity Trust,No
Http://opendatacommunities.org/id/metropolitan-district-council/leeds,Leeds City Council,30/04/2018,Adults and Health,Services For Adults Under 65 Mental/Dis,Third Party Payments,Home Care,568,30/04/2018,1804-00439,0.00,191.76,R,Affinity Trust,No
Http://opendatacommunities.org/id/metropolitan-district-council/leeds,Leeds City Council,30/04/2018,Adults and Health,Services For Older People - 65 And Over,Third Party Payments,Home Care,568,30/04/2018,1804-00440,0.00,1156.38,R,Affinity Trust,No
Http://opendatacommunities.org/id/metropolitan-district-council/leeds,Leeds City Council,30/04/2018,Adults and Health,Services For Older People Under 65 P/Dis,Third Party Payments,Home Care,568,30/04/2018,1804-00441,0.00,990.76,R,Affinity Trust,No
Http://opendatacommunities.org/id/metropolitan-district-council/leeds,Leeds City Council as Accountable Body,30/04/2018,Social Services Pooled Budgets,Jcs For People With Learning Disabilitie,Third Party Payments,Sheltered Accommodation,569,04/04/2018,1804-00442,0.00,127925.36,R,Affinity Trust North Divisional Office,No
Http://opendatacommunities.org/id/metropolitan-district-council/leeds,Leeds City Council,30/04/2018,Communities and Environment,Parks and Countryside,Transport,Hire Of Movable Plant & Machinery,315,04/04/2018,1804-00443,0.00,950.00,R,Afi-Uplift Limited,No
Http://opendatacommunities.org/id/metropolitan-district-council/leeds,Leeds City Council,30/04/2018,Communities and Environment,Parks and Countryside,Transport,Hire Of Movable Plant & Machinery,315,11/04/2018,1804-00444,0.00,950.00,R,Afi-Uplift Limited,No
Http://opendatacommunities.org/id/metropolitan-district-council/leeds,Leeds City Council,30/04/2018,Communities and Environment,Parks and Countryside,Transport,Hire Of Movable Plant & Machinery,315,18/04/2018,1804-00445,0.00,950.00,R,Afi-Uplift Limited,No
Http://opendatacommunities.org/id/metropolitan-district-council/leeds,Leeds City Council,30/04/2018,Communities and Environment,Parks and Countryside,Transport,Hire Of Movable Plant & Machinery,315,24/04/2018,1804-00446,0.00,950.00,R,Afi-Uplift Limited,No
Http://opendatacommunities.org/id/metropolitan-district-council/leeds,Leeds City Council,30/04/2018,City Development,Employment & Skills,Supplies and Services,College Contracts,276,03/04/2018,1804-00447,0.00,9900.00,R,Age Uk Leeds,No
Http://opendatacommunities.org/id/metropolitan-district-council/leeds,Leeds City Council,30/04/2018,Adults and Health,Services For Older People - 65 And Over,Third Party Payments,Payments To Voluntary Organisations,561,03/04/2018,1804-00448,0.00,10599.75,R,Age Uk Leeds Enterprises,No
Http://opendatacommunities.org/id/metropolitan-district-council/leeds,Leeds City Council,30/04/2018,City Development,Asset Management Services,Premises,Hire of meeting rooms,143,04/04/2018,1804-00449,0.00,100.00,R,Age Uk Leeds Enterprises,No
Http://opendatacommunities.org/id/metropolitan-district-council/leeds,Leeds City Council,30/04/2018,Adults and Health,Assessment And Care Management,Employees,Training & Development,70,13/04/2018,1804-00450,0.00,390.00,R,Age Uk Leeds Enterprises,No
Http://opendatacommunities.org/id/metropolitan-district-council/leeds,Leeds City Council,30/04/2018,Insurance,Insurance,Supplies and Services,Insurance Claims,248,19/04/2018,1804-00451,0.00,2763.02,R,Ageas Insurance Limited,No
Http://opendatacommunities.org/id/metropolitan-district-council/leeds,Leeds City Council,30/04/2018,Adults and Health,Services For Older People - 65 And Over  ,Supplies and Services,Books & Audio-Visual Materials,206,28/03/2018,1804-00452,0.00,53.98,R,Agora Publications,Yes
Http://opendatacommunities.org/id/metropolitan-district-council/leeds,Leeds City Council,30/04/2018,City Development,Employment & Skills,Supplies and Services,Commissioned Services,264,06/04/2018,1804-00453,0.00,5000.00,R,Ahead Partnership Ltd,No
Http://opendatacommunities.org/id/metropolitan-district-council/leeds,Leeds City Council,30/04/2018,City Development,Employment & Skills,Supplies and Services,Commissioned Services,264,20/04/2018,1804-00454,0.00,5000.00,R,Ahead Partnership Ltd,No
Http://opendatacommunities.org/id/metropolitan-district-council/leeds,Leeds City Council,30/04/2018,City Development,Highways,Employees,Occupational Health,85,05/04/2018,1804-00455,0.00,80.00,R,REDACTED PERSONAL DATA,No
Http://opendatacommunities.org/id/metropolitan-district-council/leeds,Leeds City Council as Accountable Body,30/04/2018,Social Services Pooled Budgets,Leeds Community Equip Store Pooled Budgt,Supplies and Services,Other Equipment,203,06/04/2018,1804-00456,0.00,1733.75,R,Aidapt Bathrooms Ltd,No
Http://opendatacommunities.org/id/metropolitan-district-council/leeds,Leeds City Council as Accountable Body,30/04/2018,Social Services Pooled Budgets,Leeds Community Equip Store Pooled Budgt,Supplies and Services,Other Equipment,203,10/04/2018,1804-00457,0.00,274.85,R,Aidapt Bathrooms Ltd,No
Http://opendatacommunities.org/id/metropolitan-district-council/leeds,Leeds City Council as Accountable Body,30/04/2018,Social Services Pooled Budgets,Leeds Community Equip Store Pooled Budgt,Supplies and Services,Other Equipment,203,13/04/2018,1804-00458,0.00,256.50,R,Aidapt Bathrooms Ltd,No
Http://opendatacommunities.org/id/metropolitan-district-council/leeds,Leeds City Council as Accountable Body,30/04/2018,Social Services Pooled Budgets,Leeds Community Equip Store Pooled Budgt,Supplies and Services,Other Equipment,203,13/04/2018,1804-00459,0.00,1318.05,R,Aidapt Bathrooms Ltd,No
Http://opendatacommunities.org/id/metropolitan-district-council/leeds,Leeds City Council as Accountable Body,30/04/2018,Social Services Pooled Budgets,Leeds Community Equip Store Pooled Budgt,Supplies and Services,Other Equipment,203,13/04/2018,1804-00460,0.00,515.80,R,Aidapt Bathrooms Ltd,No
Http://opendatacommunities.org/id/metropolitan-district-council/leeds,Leeds City Council as Accountable Body,30/04/2018,Social Services Pooled Budgets,Leeds Community Equip Store Pooled Budgt,Supplies and Services,Other Equipment,203,20/04/2018,1804-00461,0.00,1010.30,R,Aidapt Bathrooms Ltd,No
Http://opendatacommunities.org/id/metropolitan-district-council/leeds,Leeds City Council as Accountable Body,30/04/2018,Social Services Pooled Budgets,Leeds Community Equip Store Pooled Budgt,Supplies and Services,Other Equipment,203,25/04/2018,1804-00462,0.00,115.50,R,Aidapt Bathrooms Ltd,No
Http://opendatacommunities.org/id/metropolitan-district-council/leeds,Leeds City Council as Accountable Body,30/04/2018,Social Services Pooled Budgets,Leeds Community Equip Store Pooled Budgt,Supplies and Services,Other Equipment,203,25/04/2018,1804-00463,0.00,102.60,R,Aidapt Bathrooms Ltd,No
Http://opendatacommunities.org/id/metropolitan-district-council/leeds,Leeds City Council as Accountable Body,30/04/2018,Social Services Pooled Budgets,Leeds Community Equip Store Pooled Budgt,Supplies and Services,Other Equipment,203,25/04/2018,1804-00464,0.00,405.00,R,Aidapt Bathrooms Ltd,No
Http://opendatacommunities.org/id/metropolitan-district-council/leeds,Leeds City Council as Accountable Body,30/04/2018,Social Services Pooled Budgets,Leeds Community Equip Store Pooled Budgt,Supplies and Services,Other Equipment,203,25/04/2018,1804-00465,0.00,959.70,R,Aidapt Bathrooms Ltd,No
Http://opendatacommunities.org/id/metropolitan-district-council/leeds,Leeds City Council,30/04/2018,Children and Families,Safeguarding Targeted & Specialist,Supplies and Services,Conference Meetings,253,06/04/2018,1804-00466,0.00,540.00,R,Aim Project,No
Http://opendatacommunities.org/id/metropolitan-district-council/leeds,Leeds City Council,30/04/2018,Resources and Housing,Leeds Building Services,Supplies and Services,Operational Materials,205,04/04/2018,1804-00467,0.00,41.90,R,Air Conditioning Accessories,No
Http://opendatacommunities.org/id/metropolitan-district-council/leeds,Leeds City Council,30/04/2018,Resources and Housing,Leeds Building Services,Supplies and Services,Operational Materials,205,13/04/2018,1804-00468,0.00,163.82,R,Air Conditioning Accessories,No
Http://opendatacommunities.org/id/metropolitan-district-council/leeds,Leeds City Council,30/04/2018,Resources and Housing,Leeds Building Services,Supplies and Services,Operational Materials,205,13/04/2018,1804-00469,0.00,9.92,R,Air Conditioning Accessories,No
Http://opendatacommunities.org/id/metropolitan-district-council/leeds,Leeds City Council,30/04/2018,Resources and Housing,Leeds Building Services,Supplies and Services,Operational Materials,205,25/04/2018,1804-00470,0.00,512.13,R,Air Conditioning Accessories,No
Http://opendatacommunities.org/id/metropolitan-district-council/leeds,Leeds City Council,30/04/2018,Resources and Housing,Leeds Building Services,Supplies and Services,Operational Materials,205,27/04/2018,1804-00471,0.00,546.81,R,Air Conditioning Accessories,No
Http://opendatacommunities.org/id/metropolitan-district-council/leeds,Leeds City Council,30/04/2018,Resources and Housing,Commercial Services  ,Supplies and Services,Operational Materials,205,19/03/2018,1804-00472,0.00,95.72,R,Air Force Pneumati,Yes
Http://opendatacommunities.org/id/metropolitan-district-council/leeds,Leeds City Council,30/04/2018,Resources and Housing,Leeds Building Services,Supplies and Services,Operational Materials,205,04/04/2018,1804-00473,0.00,45.00,R,Air Force Pneumatics & Hydraulics,No
Http://opendatacommunities.org/id/metropolitan-district-council/leeds,Leeds City Council,30/04/2018,Resources and Housing,Leeds Building Services,Supplies and Services,Operational Materials,205,09/04/2018,1804-00474,0.00,181.10,R,Air Liquide Uk,No
Http://opendatacommunities.org/id/metropolitan-district-council/leeds,Leeds City Council,30/04/2018,Communities and Environment,Environmental Health,Supplies and Services,Other Hired And Contracted Services,265,12/04/2018,1804-00475,0.00,9.39,R,Air Liquide Uk,No
Http://opendatacommunities.org/id/metropolitan-district-council/leeds,Leeds City Council,30/04/2018,Communities and Environment,Environmental Health,Supplies and Services,Other Hired And Contracted Services,265,12/04/2018,1804-00476,0.00,14.31,R,Air Liquide Uk,No
Http://opendatacommunities.org/id/metropolitan-district-council/leeds,Leeds City Council,30/04/2018,Communities and Environment,Environmental Health,Supplies and Services,Other Hired And Contracted Services,265,12/04/2018,1804-00477,0.00,75.12,R,Air Liquide Uk,No
Http://opendatacommunities.org/id/metropolitan-district-council/leeds,Leeds City Council,30/04/2018,Communities and Environment,Environmental Health,Supplies and Services,Other Hired And Contracted Services,265,12/04/2018,1804-00478,0.00,476.80,R,Air Liquide Uk,No
Http://opendatacommunities.org/id/metropolitan-district-council/leeds,Leeds City Council,30/04/2018,Communities and Environment,Environmental Health,Supplies and Services,Other Hired And Contracted Services,265,27/04/2018,1804-00479,0.00,476.80,R,Air Liquide Uk,No
Http://opendatacommunities.org/id/metropolitan-district-council/leeds,Leeds City Council,30/04/2018,City Development,Libraries  Arts & Heritage  ,Supplies and Services,Conference Meetings,253,16/03/2018,1804-00480,0.00,45.91,R,Airbnb,Yes
Http://opendatacommunities.org/id/metropolitan-district-council/leeds,Leeds City Council,30/04/2018,City Development,Libraries  Arts & Heritage,Supplies and Services,Other Hired And Contracted Services,265,16/04/2018,1804-00481,0.00,506.66,R,Aire Valley Gas Ltd,No
Http://opendatacommunities.org/id/metropolitan-district-council/leeds,Leeds City Council,30/04/2018,Communities and Environment,Parks and Countryside,Supplies and Services,Other Hired And Contracted Services,265,20/04/2018,1804-00482,0.00,225.00,R,Aire Valley Tree Services Ltd,No
Http://opendatacommunities.org/id/metropolitan-district-council/leeds,Leeds City Council,30/04/2018,Adults and Health,Services For Older People - 65 And Over,Third Party Payments,Residential Care Dementia,571,04/04/2018,1804-00483,0.00,71091.48,R,Aire View Residential Home,No
Http://opendatacommunities.org/id/metropolitan-district-council/leeds,Leeds City Council,30/04/2018,Adults and Health,Services For Older People - 65 And Over,Third Party Payments,Residential,580,04/04/2018,1804-00484,0.00,20010.11,R,Aire View Residential Home,No
Http://opendatacommunities.org/id/metropolitan-district-council/leeds,Leeds City Council,30/04/2018,Children and Families,Partnerships,Third Party Payments,Services Rendered By Voluntary Sector,505,03/04/2018,1804-00485,0.00,53705.00,R,Aireborough Supported Activities Scheme,No
Http://opendatacommunities.org/id/metropolitan-district-council/leeds,Leeds City Council,30/04/2018,Adults and Health,Services For Older People - 65 And Over,Third Party Payments,Residential Care Dementia,571,04/04/2018,1804-00486,0.00,4037.95,R,Airedale Care Home,No
Http://opendatacommunities.org/id/metropolitan-district-council/leeds,Leeds City Council,30/04/2018,Adults and Health,Services For Older People - 65 And Over,Third Party Payments,Residential,580,04/04/2018,1804-00487,0.00,14914.67,R,Airedale Care Home,No
Http://opendatacommunities.org/id/metropolitan-district-council/leeds,Leeds City Council,30/04/2018,Resources and Housing,Commercial Services,Supplies and Services,Operational Materials,205,06/04/2018,1804-00488,0.00,3142.00,R,Airedale Catering Equipment Ltd,No
Http://opendatacommunities.org/id/metropolitan-district-council/leeds,Leeds City Council,30/04/2018,Resources and Housing,Commercial Services,Supplies and Services,Operational Materials,205,06/04/2018,1804-00489,0.00,1370.00,R,Airedale Catering Equipment Ltd,No
Http://opendatacommunities.org/id/metropolitan-district-council/leeds,Leeds City Council,30/04/2018,Resources and Housing,Commercial Services,Supplies and Services,Operational Furniture And Equipment,203,13/04/2018,1804-00490,0.00,2408.00,R,Airedale Catering Equipment Ltd,No
Http://opendatacommunities.org/id/metropolitan-district-council/leeds,Leeds City Council,30/04/2018,Children and Families,Safeguarding Targeted & Specialist,Supplies and Services,Operational Furniture And Equipment,203,23/04/2018,1804-00491,0.00,1672.00,R,Airedale Catering Equipment Ltd,No
Http://opendatacommunities.org/id/metropolitan-district-council/leeds,Leeds City Council,30/04/2018,Resources and Housing,Commercial Services,Supplies and Services,Operational Furniture And Equipment,203,30/04/2018,1804-00492,0.00,1555.00,R,Airedale Catering Equipment Ltd,No
Http://opendatacommunities.org/id/metropolitan-district-council/leeds,Leeds City Council,30/04/2018,Adults and Health,Assessment And Care Management,Employees,Training Costs,71,17/04/2018,1804-00493,0.00,120.00,R,Airedale Community Trading (Act) Ltd,No
Http://opendatacommunities.org/id/metropolitan-district-council/leeds,Leeds City Council,30/04/2018,Children and Families,Safeguarding Targeted & Specialist,Transfer Payments,Leaving Care Allowances,634,26/04/2018,1804-00494,0.00,1286.00,R,REDACTED PERSONAL DATA,No
Http://opendatacommunities.org/id/metropolitan-district-council/leeds,Leeds City Council as Accountable Body,30/04/2018,Social Services Pooled Budgets,Jcs For People With Learning Disabilitie,Third Party Payments,Residential,580,04/04/2018,1804-00495,0.00,6173.24,R,Aitch Care Homes,No
Http://opendatacommunities.org/id/metropolitan-district-council/leeds,Leeds City Council,30/04/2018,Adults and Health,Services For Older People Under 65 P/Dis,Third Party Payments,Home Care,568,06/04/2018,1804-00496,0.00,4313.40,R,Aj Community Care Ltd,No
Http://opendatacommunities.org/id/metropolitan-district-council/leeds,Leeds City Council,30/04/2018,Adults and Health,Services For Older People - 65 And Over,Third Party Payments,Home Care,568,06/04/2018,1804-00497,0.00,17859.57,R,Aj Community Care Ltd,No
Http://opendatacommunities.org/id/metropolitan-district-council/leeds,Leeds City Council,30/04/2018,Adults and Health,Services For Older People Under 65 P/Dis,Third Party Payments,Home Care,568,06/04/2018,1804-00498,0.00,7600.73,R,Aj Community Care Ltd,No
Http://opendatacommunities.org/id/metropolitan-district-council/leeds,Leeds City Council,30/04/2018,Adults and Health,Services For Older People - 65 And Over,Third Party Payments,Home Care,568,06/04/2018,1804-00499,0.00,1105.56,R,Aj Community Care Ltd,No
Http://opendatacommunities.org/id/metropolitan-district-council/leeds,Leeds City Council,30/04/2018,Resources and Housing,Leeds Building Services,Supplies and Services,Operational Furniture And Equipment,203,09/04/2018,1804-00500,0.00,42.19,R,Ajm Fixings & Power Tools Ltd,No
Http://opendatacommunities.org/id/metropolitan-district-council/leeds,Leeds City Council,30/04/2018,Resources and Housing,Leeds Building Services,Supplies and Services,Operational Materials,205,13/04/2018,1804-00501,0.00,325.00,R,Ajm Fixings & Power Tools Ltd,No
Http://opendatacommunities.org/id/metropolitan-district-council/leeds,Leeds City Council,30/04/2018,Resources and Housing,Leeds Building Services,Supplies and Services,Operational Furniture And Equipment,203,13/04/2018,1804-00502,0.00,231.00,R,Ajm Fixings & Power Tools Ltd,No
Http://opendatacommunities.org/id/metropolitan-district-council/leeds,Leeds City Council,30/04/2018,Resources and Housing,Leeds Building Services,Supplies and Services,Operational Furniture And Equipment,203,13/04/2018,1804-00503,0.00,369.98,R,Ajm Fixings & Power Tools Ltd,No
Http://opendatacommunities.org/id/metropolitan-district-council/leeds,Leeds City Council,30/04/2018,Resources and Housing,Leeds Building Services,Supplies and Services,Stores - Central And Other Depots,005,13/04/2018,1804-00504,0.00,61.00,R,Ajm Fixings & Power Tools Ltd,No
Http://opendatacommunities.org/id/metropolitan-district-council/leeds,Leeds City Council,30/04/2018,Resources and Housing,Leeds Building Services,Supplies and Services,Operational Furniture And Equipment,203,13/04/2018,1804-00505,0.00,290.38,R,Ajm Fixings & Power Tools Ltd,No
Http://opendatacommunities.org/id/metropolitan-district-council/leeds,Leeds City Council,30/04/2018,Resources and Housing,Leeds Building Services,Supplies and Services,Stores - Central And Other Depots,005,13/04/2018,1804-00506,0.00,344.88,R,Ajm Fixings & Power Tools Ltd,No
Http://opendatacommunities.org/id/metropolitan-district-council/leeds,Leeds City Council,30/04/2018,Resources and Housing,Leeds Building Services,Supplies and Services,Operational Materials,205,17/04/2018,1804-00507,0.00,3.30,R,Ajm Fixings & Power Tools Ltd,No
Http://opendatacommunities.org/id/metropolitan-district-council/leeds,Leeds City Council,30/04/2018,Resources and Housing,Leeds Building Services,Supplies and Services,Stores - Central And Other Depots,005,23/04/2018,1804-00508,0.00,61.00,R,Ajm Fixings & Power Tools Ltd,No
Http://opendatacommunities.org/id/metropolitan-district-council/leeds,Leeds City Council,30/04/2018,Strategic Landlord,Housing Management  ,Supplies and Services,Operational Furniture And Equipment,203,02/03/2018,1804-00509,0.00,235.00,R,Ajproductscouk,Yes
Http://opendatacommunities.org/id/metropolitan-district-council/leeds,Leeds City Council,30/04/2018,Adults and Health,Services For Older People - 65 And Over,Third Party Payments,Nursing Home,570,04/04/2018,1804-00510,0.00,1235.21,R,Akari Care Ltd,No
Http://opendatacommunities.org/id/metropolitan-district-council/leeds,Leeds City Council,30/04/2018,Resources and Housing,Commercial Services,Premises,Maintenance Of Buildings,101,13/04/2018,1804-00511,0.00,1750.00,R,Akua Uk Ltd,No
Http://opendatacommunities.org/id/metropolitan-district-council/leeds,Leeds City Council,30/04/2018,Resources and Housing,Commercial Services,Premises,Maintenance Of Buildings,101,13/04/2018,1804-00512,0.00,3880.20,R,Akua Uk Ltd,No
Http://opendatacommunities.org/id/metropolitan-district-council/leeds,Leeds City Council,30/04/2018,Resources and Housing,Leeds Building Services,Supplies and Services,Operational Materials,205,13/04/2018,1804-00513,0.00,56.31,R,Akw Medicare Ltd,No
Http://opendatacommunities.org/id/metropolitan-district-council/leeds,Leeds City Council,30/04/2018,Adults and Health,Services For Older People - 65 And Over,Third Party Payments,Payments To Voluntary Organisations,561,03/04/2018,1804-00514,0.00,3000.00,R,Al Khidmat Centre,No
Http://opendatacommunities.org/id/metropolitan-district-council/leeds,Leeds City Council,30/04/2018,Children and Families,Safeguarding Targeted & Specialist  ,Transfer Payments,Leaving Care Grants,635,01/03/2018,1804-00515,0.00,71.62,R,Al Murad Diy Ltd,Yes
Http://opendatacommunities.org/id/metropolitan-district-council/leeds,Leeds City Council,30/04/2018,Children and Families,Safeguarding Targeted & Specialist  ,Transfer Payments,Leaving Care Allowances,634,06/03/2018,1804-00516,0.00,30.97,R,Al Murad Diy Ltd,Yes
Http://opendatacommunities.org/id/metropolitan-district-council/leeds,Leeds City Council,30/04/2018,Children and Families,Safeguarding Targeted & Specialist  ,Transfer Payments,Leaving Care Allowances,634,15/03/2018,1804-00517,0.00,16.73,R,Al Murad Diy Ltd,Yes
Http://opendatacommunities.org/id/metropolitan-district-council/leeds,Leeds City Council,30/04/2018,Children and Families,Safeguarding Targeted & Specialist  ,Transfer Payments,Leaving Care Allowances,634,22/03/2018,1804-00518,0.00,16.98,R,Al Murad Diy Ltd,Yes
Http://opendatacommunities.org/id/metropolitan-district-council/leeds,Leeds City Council,30/04/2018,Resources and Housing,Democratic Services  ,Premises,Grounds Maintenance Work,111,08/03/2018,1804-00519,0.00,25.00,R,Alan Brown Flowers,Yes
Http://opendatacommunities.org/id/metropolitan-district-council/leeds,Leeds City Council,30/04/2018,City Development,Planning & Sustainable Development,Support Services,Legal Disbursements,411,12/04/2018,1804-00520,0.00,200.00,R,Alan Evans,No
Http://opendatacommunities.org/id/metropolitan-district-council/leeds,Leeds City Council,30/04/2018,Resources and Housing,Strategic Housing Partnership & Support,Supplies and Services,Other Hired And Contracted Services,265,10/04/2018,1804-00521,0.00,1050.00,R,Alan Slater Property Services Bacs,No
Http://opendatacommunities.org/id/metropolitan-district-council/leeds,Leeds City Council,30/04/2018,City Development,Recreation,Income,Swimming Bath Charges,923,04/04/2018,1804-00522,0.00,47.60,R,REDACTED PERSONAL DATA,No
Http://opendatacommunities.org/id/metropolitan-district-council/leeds,Leeds City Council,30/04/2018,Strategic Landlord,Housing Management,Supplies and Services,Grants To Voluntary Organisations,293,06/04/2018,1804-00523,0.00,2700.00,R,Alcas Automation Ltd,No
Http://opendatacommunities.org/id/metropolitan-district-council/leeds,Leeds City Council,30/04/2018,Communities and Environment,Communities,Supplies and Services,Computer Software & Equipment,214,27/04/2018,1804-00524,0.00,1075.00,R,Alcium Software Ltd,No
Http://opendatacommunities.org/id/metropolitan-district-council/leeds,Leeds City Council,30/04/2018,Adults and Health,Supporting People,Supplies and Services,Other Hired And Contracted Services,265,25/04/2018,1804-00525,0.00,2250.00,R,Alcohol Research Uk,No
Http://opendatacommunities.org/id/metropolitan-district-council/leeds,Leeds City Council,30/04/2018,Communities and Environment,Parks And Countryside  ,Supplies and Services,Food & Drink,231,23/03/2018,1804-00526,0.00,11.87,R,Aldi 103 779,Yes
Http://opendatacommunities.org/id/metropolitan-district-council/leeds,Leeds City Council,30/04/2018,Children and Families,Safeguarding Targeted & Specialist  ,Supplies and Services,Food & Drink,231,10/03/2018,1804-00527,0.00,36.16,R,Aldi 23 779,Yes
Http://opendatacommunities.org/id/metropolitan-district-council/leeds,Leeds City Council,30/04/2018,Children and Families,Safeguarding Targeted & Specialist  ,Transfer Payments,Leaving Care Allowances,634,23/03/2018,1804-00528,0.00,9.99,R,Aldi 49 779,Yes
Http://opendatacommunities.org/id/metropolitan-district-council/leeds,Leeds City Council,30/04/2018,Communities and Environment,Communities  ,Supplies and Services,'Well Being' Large Grants Projects,230,07/03/2018,1804-00529,0.00,36.78,R,Aldi 71 779,Yes
Http://opendatacommunities.org/id/metropolitan-district-council/leeds,Leeds City Council,30/04/2018,Children and Families,Safeguarding Targeted & Specialist  ,Transfer Payments,Leaving Care Grants,635,19/03/2018,1804-00530,0.00,29.34,R,Aldi 71 779,Yes
Http://opendatacommunities.org/id/metropolitan-district-council/leeds,Leeds City Council,30/04/2018,Children and Families,Safeguarding Targeted & Specialist  ,Supplies and Services,Food & Drink,231,26/03/2018,1804-00531,0.00,76.94,R,Aldi 71 779,Yes
Http://opendatacommunities.org/id/metropolitan-district-council/leeds,Leeds City Council,30/04/2018,Children and Families,Safeguarding Targeted & Specialist  ,Supplies and Services,Food & Drink,231,06/03/2018,1804-00532,0.00,21.34,R,Aldi 85 779,Yes
Http://opendatacommunities.org/id/metropolitan-district-council/leeds,Leeds City Council,30/04/2018,Children and Families,Partnerships  ,Supplies and Services,Operational Furniture And Equipment,203,22/03/2018,1804-00533,0.00,11.15,R,Aldi 88 779,Yes
Http://opendatacommunities.org/id/metropolitan-district-council/leeds,Leeds City Council,30/04/2018,City Development,Libraries  Arts & Heritage  ,Supplies and Services,Operational Materials,205,28/03/2018,1804-00534,0.00,2.08,R,Aldi 88 779,Yes
Http://opendatacommunities.org/id/metropolitan-district-council/leeds,Leeds City Council,30/04/2018,City Development,Libraries  Arts & Heritage  ,Supplies and Services,Operational Materials,205,13/03/2018,1804-00535,0.00,24.45,R,Aldi 89 779,Yes
Http://opendatacommunities.org/id/metropolitan-district-council/leeds,Leeds City Council,30/04/2018,Communities and Environment,Waste Management  ,Transport,Repair & Maintenance of  Plant,342,14/03/2018,1804-00536,0.00,6.65,R,Aldi 89 779,Yes
Http://opendatacommunities.org/id/metropolitan-district-council/leeds,Leeds City Council,30/04/2018,Communities and Environment,Customer Access,Supplies and Services,Other Hired And Contracted Services,265,11/04/2018,1804-00537,0.00,163.50,R,Alena Zueva,No
Http://opendatacommunities.org/id/metropolitan-district-council/leeds,Leeds City Council,30/04/2018,Children and Families,Safeguarding Targeted & Specialist,Support Services,Legal Disbursements,411,16/04/2018,1804-00538,0.00,19.00,R,Alere Toxicology Plc,No
Http://opendatacommunities.org/id/metropolitan-district-council/leeds,Leeds City Council,30/04/2018,Children and Families,Safeguarding Targeted & Specialist,Support Services,Legal Disbursements,411,23/04/2018,1804-00539,0.00,85.20,R,Alere Toxicology Plc,No
Http://opendatacommunities.org/id/metropolitan-district-council/leeds,Leeds City Council,30/04/2018,Children and Families,Safeguarding Targeted & Specialist,Support Services,Legal Disbursements,411,23/04/2018,1804-00540,0.00,36.00,R,Alere Toxicology Plc,No
Http://opendatacommunities.org/id/metropolitan-district-council/leeds,Leeds City Council,30/04/2018,Children and Families,Safeguarding Targeted & Specialist,Support Services,Legal Disbursements,411,27/04/2018,1804-00541,0.00,134.60,R,Alere Toxicology Plc,No
Http://opendatacommunities.org/id/metropolitan-district-council/leeds,Leeds City Council,30/04/2018,Children and Families,Safeguarding Targeted & Specialist,Support Services,Legal Disbursements,411,13/04/2018,1804-00542,0.00,718.75,R,Alex Taylor,No
Http://opendatacommunities.org/id/metropolitan-district-council/leeds,Leeds City Council,30/04/2018,City Development,Libraries  Arts & Heritage,Supplies and Services,Other Hired And Contracted Services,265,16/04/2018,1804-00543,0.00,180.00,R,Alex Temple,No
Http://opendatacommunities.org/id/metropolitan-district-council/leeds,Leeds City Council,30/04/2018,Resources and Housing,Commercial Services,Supplies and Services,Other Hired And Contracted Services,265,05/04/2018,1804-00544,0.00,120.00,R,Alex Wagg,No
Http://opendatacommunities.org/id/metropolitan-district-council/leeds,Leeds City Council,30/04/2018,Resources and Housing,Commercial Services,Supplies and Services,Other Hired And Contracted Services,265,05/04/2018,1804-00545,0.00,180.00,R,Alex Wagg,No
Http://opendatacommunities.org/id/metropolitan-district-council/leeds,Leeds City Council,30/04/2018,Resources and Housing,Commercial Services,Supplies and Services,Other Hired And Contracted Services,265,05/04/2018,1804-00546,0.00,40.00,R,Alex Wagg,No
Http://opendatacommunities.org/id/metropolitan-district-council/leeds,Leeds City Council,30/04/2018,Resources and Housing,Commercial Services,Supplies and Services,Other Hired And Contracted Services,265,05/04/2018,1804-00547,0.00,120.00,R,Alex Wagg,No
Http://opendatacommunities.org/id/metropolitan-district-council/leeds,Leeds City Council,30/04/2018,Resources and Housing,Commercial Services,Supplies and Services,Other Hired And Contracted Services,265,05/04/2018,1804-00548,0.00,40.00,R,Alex Wagg,No
Http://opendatacommunities.org/id/metropolitan-district-council/leeds,Leeds City Council,30/04/2018,Resources and Housing,Commercial Services,Supplies and Services,Other Hired And Contracted Services,265,05/04/2018,1804-00549,0.00,100.00,R,Alex Wagg,No
Http://opendatacommunities.org/id/metropolitan-district-council/leeds,Leeds City Council,30/04/2018,Resources and Housing,Commercial Services,Supplies and Services,Other Hired And Contracted Services,265,05/04/2018,1804-00550,0.00,80.00,R,Alex Wagg,No
Http://opendatacommunities.org/id/metropolitan-district-council/leeds,Leeds City Council,30/04/2018,Resources and Housing,Commercial Services,Transport,Vehicle Spares,345,12/04/2018,1804-00551,0.00,220.00,R,Alex Wagg,No
Http://opendatacommunities.org/id/metropolitan-district-council/leeds,Leeds City Council,30/04/2018,Resources and Housing,Commercial Services,Transport,Vehicle Spares,345,12/04/2018,1804-00552,0.00,385.00,R,Alex Wagg,No
Http://opendatacommunities.org/id/metropolitan-district-council/leeds,Leeds City Council,30/04/2018,Resources and Housing,Commercial Services,Supplies and Services,Other Hired And Contracted Services,265,12/04/2018,1804-00553,0.00,160.00,R,Alex Wagg,No
Http://opendatacommunities.org/id/metropolitan-district-council/leeds,Leeds City Council,30/04/2018,Resources and Housing,Commercial Services,Supplies and Services,Other Hired And Contracted Services,265,12/04/2018,1804-00554,0.00,80.00,R,Alex Wagg,No
Http://opendatacommunities.org/id/metropolitan-district-council/leeds,Leeds City Council,30/04/2018,Adults and Health,Assessment And Care Management,Supplies and Services,Operational Furniture And Equipment,203,10/04/2018,1804-00555,0.00,-200.00,R,Alex Wibrew,No
Http://opendatacommunities.org/id/metropolitan-district-council/leeds,Leeds City Council,30/04/2018,City Development,Libraries  Arts & Heritage,Supplies and Services,Other Hired And Contracted Services,265,10/04/2018,1804-00556,0.00,200.00,R,Alex Wibrew,No
Http://opendatacommunities.org/id/metropolitan-district-council/leeds,Leeds City Council,30/04/2018,Communities and Environment,Car Parking Services,Income,Penalties  Fines & Car Parking Charges,934,05/04/2018,1804-00557,0.00,50.00,R,REDACTED PERSONAL DATA,No
Http://opendatacommunities.org/id/metropolitan-district-council/leeds,Leeds City Council,30/04/2018,Adults and Health,Services For Older People - 65 And Over,Third Party Payments,Residential Care Dementia,571,04/04/2018,1804-00558,0.00,13742.71,R,Alexander Residential Home,No
Http://opendatacommunities.org/id/metropolitan-district-council/leeds,Leeds City Council,30/04/2018,Adults and Health,Services For Older People - 65 And Over,Third Party Payments,Residential,580,04/04/2018,1804-00559,0.00,20052.26,R,Alexander Residential Home,No
Http://opendatacommunities.org/id/metropolitan-district-council/leeds,Leeds City Council,30/04/2018,Communities and Environment,Customer Access,Supplies and Services,Other Hired And Contracted Services,265,11/04/2018,1804-00560,0.00,735.25,R,Alexandra Costenco,No
Http://opendatacommunities.org/id/metropolitan-district-council/leeds,Leeds City Council,30/04/2018,Adults and Health,Services For Older People - 65 And Over,Third Party Payments,Residential,580,04/04/2018,1804-00561,0.00,1479.37,R,Alexandra Court,No
Http://opendatacommunities.org/id/metropolitan-district-council/leeds,Leeds City Council,30/04/2018,City Development,Libraries  Arts & Heritage,Supplies and Services,Other Hired And Contracted Services,265,13/04/2018,1804-00562,0.00,150.00,R,Alexandra Docherty (Sandy),No
Http://opendatacommunities.org/id/metropolitan-district-council/leeds,Leeds City Council,30/04/2018,Communities and Environment,Customer Access,Supplies and Services,Other Hired And Contracted Services,265,11/04/2018,1804-00563,0.00,40.75,R,Alexandra Hirst,No
Http://opendatacommunities.org/id/metropolitan-district-council/leeds,Leeds City Council,30/04/2018,Children and Families,Safeguarding Targeted & Specialist,Third Party Payments,Services Rendered By Other Organisations,511,18/04/2018,1804-00564,0.00,795.60,R,REDACTED PERSONAL DATA,No
Http://opendatacommunities.org/id/metropolitan-district-council/leeds,Leeds City Council,30/04/2018,Children and Families,Safeguarding Targeted & Specialist,Third Party Payments,Services Rendered By Other Organisations,511,20/04/2018,1804-00565,0.00,102.00,R,REDACTED PERSONAL DATA,No
Http://opendatacommunities.org/id/metropolitan-district-council/leeds,Leeds City Council,30/04/2018,Strategic Accounts,Changing The workplace,Capital,Furniture And Equipment,5,03/04/2018,1804-00566,0.00,2450.00,C,Alfred Bagnall & Sons (Leeds) Ltd,No
Http://opendatacommunities.org/id/metropolitan-district-council/leeds,Leeds City Council,30/04/2018,Resources and Housing,Corporate Property Management,Capital,Construction,3,06/04/2018,1804-00567,0.00,8000.00,C,Alfred Bagnall & Sons (Leeds) Ltd,No
Http://opendatacommunities.org/id/metropolitan-district-council/leeds,Leeds City Council,30/04/2018,Resources and Housing,Corporate Property Management,Capital,Construction,3,06/04/2018,1804-00568,0.00,1770.00,C,Alfred Bagnall & Sons (Leeds) Ltd,No
Http://opendatacommunities.org/id/metropolitan-district-council/leeds,Leeds City Council,30/04/2018,Communities and Environment,Customer Access,Supplies and Services,Other Hired And Contracted Services,265,06/04/2018,1804-00569,0.00,13502.35,R,Alfred Bagnall & Sons (Leeds) Ltd,No
Http://opendatacommunities.org/id/metropolitan-district-council/leeds,Leeds City Council,30/04/2018,Resources and Housing,Corporate Property Management,Capital,Construction,3,06/04/2018,1804-00570,0.00,6840.00,C,Alfred Bagnall & Sons (Leeds) Ltd,No
Http://opendatacommunities.org/id/metropolitan-district-council/leeds,Leeds City Council,30/04/2018,Communities and Environment,Parks and Countryside,Premises,Maintenance Of Buildings,101,06/04/2018,1804-00571,0.00,5476.23,R,Alfred Bagnall & Sons (Leeds) Ltd,No
Http://opendatacommunities.org/id/metropolitan-district-council/leeds,Leeds City Council,30/04/2018,Children and Families,Safeguarding Targeted & Specialist,Premises,Repairs & Adapts - Buildings,191,06/04/2018,1804-00572,0.00,9000.00,R,Alfred Bagnall & Sons (Leeds) Ltd,No
Http://opendatacommunities.org/id/metropolitan-district-council/leeds,Leeds City Council,30/04/2018,Children and Families,Safeguarding Targeted & Specialist,Premises,Repairs & Adapts - Buildings,191,06/04/2018,1804-00573,0.00,9000.00,R,Alfred Bagnall & Sons (Leeds) Ltd,No
Http://opendatacommunities.org/id/metropolitan-district-council/leeds,Leeds City Council,30/04/2018,Resources and Housing,Corporate Property Management,Capital,Construction,3,06/04/2018,1804-00574,0.00,5100.00,C,Alfred Bagnall & Sons (Leeds) Ltd,No
Http://opendatacommunities.org/id/metropolitan-district-council/leeds,Leeds City Council,30/04/2018,Resources and Housing,Corporate Property Management,Capital,Construction,3,06/04/2018,1804-00575,0.00,3375.00,C,Alfred Bagnall & Sons (Leeds) Ltd,No
Http://opendatacommunities.org/id/metropolitan-district-council/leeds,Leeds City Council,30/04/2018,Resources and Housing,Corporate Property Management,Capital,Construction,3,06/04/2018,1804-00576,0.00,5898.00,C,Alfred Bagnall & Sons (Leeds) Ltd,No
Http://opendatacommunities.org/id/metropolitan-district-council/leeds,Leeds City Council,30/04/2018,Resources and Housing,Leeds Building Services,Supplies and Services,Other Hired And Contracted Services,265,06/04/2018,1804-00577,0.00,7090.00,R,Alfred Bagnall & Sons (Leeds) Ltd,No
Http://opendatacommunities.org/id/metropolitan-district-council/leeds,Leeds City Council,30/04/2018,Resources and Housing,Leeds Building Services,Supplies and Services,Other Hired And Contracted Services,265,27/04/2018,1804-00578,0.00,7467.18,R,Alfred Bagnall & Sons (Leeds) Ltd,No
Http://opendatacommunities.org/id/metropolitan-district-council/leeds,Leeds City Council,30/04/2018,Communities and Environment,Parks and Countryside,Supplies and Services,Other Hired And Contracted Services,265,27/04/2018,1804-00579,0.00,1873.00,R,Alfred Bagnall & Sons (Leeds) Ltd,No
Http://opendatacommunities.org/id/metropolitan-district-council/leeds,Leeds City Council,30/04/2018,Communities and Environment,Parks and Countryside,Supplies and Services,Other Hired And Contracted Services,265,27/04/2018,1804-00580,0.00,3950.00,R,Alfred Bagnall & Sons (Leeds) Ltd,No
Http://opendatacommunities.org/id/metropolitan-district-council/leeds,Leeds City Council,30/04/2018,Resources and Housing,Leeds Building Services,Supplies and Services,Other Hired And Contracted Services,265,27/04/2018,1804-00581,0.00,5840.00,R,Alfred Bagnall & Sons (Leeds) Ltd,No
Http://opendatacommunities.org/id/metropolitan-district-council/leeds,Leeds City Council,30/04/2018,Resources and Housing,Leeds Building Services,Supplies and Services,Other Hired And Contracted Services,265,27/04/2018,1804-00582,0.00,1570.00,R,Alfred Bagnall & Sons (Leeds) Ltd,No
Http://opendatacommunities.org/id/metropolitan-district-council/leeds,Leeds City Council,30/04/2018,Resources and Housing,Leeds Building Services,Supplies and Services,Other Hired And Contracted Services,265,27/04/2018,1804-00583,0.00,8560.00,R,Alfred Bagnall & Sons (Leeds) Ltd,No
Http://opendatacommunities.org/id/metropolitan-district-council/leeds,Leeds City Council,30/04/2018,Resources and Housing,Leeds Building Services,Supplies and Services,Other Hired And Contracted Services,265,27/04/2018,1804-00584,0.00,6531.33,R,Alfred Bagnall & Sons (Leeds) Ltd,No
Http://opendatacommunities.org/id/metropolitan-district-council/leeds,Leeds City Council,30/04/2018,Communities and Environment,Customer Access,Supplies and Services,Other Hired And Contracted Services,265,11/04/2018,1804-00585,0.00,260.50,R,Ali Pourakaberian,No
Http://opendatacommunities.org/id/metropolitan-district-council/leeds,Leeds City Council,30/04/2018,Communities and Environment,Customer Access,Supplies and Services,Other Hired And Contracted Services,265,11/04/2018,1804-00586,0.00,80.25,R,Ali Pourakaberian,No
Http://opendatacommunities.org/id/metropolitan-district-council/leeds,Leeds City Council,30/04/2018,Children and Families,Partnerships,Employees,Training & Development,70,16/04/2018,1804-00587,0.00,1416.64,R,REDACTED PERSONAL DATA,No
Http://opendatacommunities.org/id/metropolitan-district-council/leeds,Leeds City Council,30/04/2018,City Development,Libraries  Arts & Heritage,Supplies and Services,Operational Materials,205,06/04/2018,1804-00588,0.00,100.00,R,Alison Andrews,No
Http://opendatacommunities.org/id/metropolitan-district-council/leeds,Leeds City Council,30/04/2018,Children and Families,Safeguarding Targeted & Specialist,Third Party Payments,Services Rendered By Other Organisations,511,18/04/2018,1804-00589,0.00,987.36,R,REDACTED PERSONAL DATA,No
Http://opendatacommunities.org/id/metropolitan-district-council/leeds,Leeds City Council,30/04/2018,Children and Families,Safeguarding Targeted & Specialist,Third Party Payments,Services Rendered By Other Organisations,511,20/04/2018,1804-00590,0.00,663.00,R,REDACTED PERSONAL DATA,No
Http://opendatacommunities.org/id/metropolitan-district-council/leeds,Leeds City Council,30/04/2018,Children and Families,Safeguarding Targeted & Specialist,Third Party Payments,Services Rendered By Other Organisations,511,18/04/2018,1804-00591,0.00,795.60,R,REDACTED PERSONAL DATA,No
Http://opendatacommunities.org/id/metropolitan-district-council/leeds,Leeds City Council,30/04/2018,Children and Families,Safeguarding Targeted & Specialist,Third Party Payments,Services Rendered By Other Organisations,511,20/04/2018,1804-00592,0.00,3315.00,R,REDACTED PERSONAL DATA,No
Http://opendatacommunities.org/id/metropolitan-district-council/leeds,Leeds City Council,30/04/2018,City Development,Libraries  Arts & Heritage,Supplies and Services,Operational Materials,205,04/04/2018,1804-00593,0.00,70.80,R,Alison Mcintyre,No
Http://opendatacommunities.org/id/metropolitan-district-council/leeds,Leeds City Council,30/04/2018,City Development,Libraries  Arts & Heritage,Supplies and Services,Bought In Professional Services,277,04/04/2018,1804-00594,0.00,900.00,R,Alison Mcintyre,No
Http://opendatacommunities.org/id/metropolitan-district-council/leeds,Leeds City Council,30/04/2018,City Development,Libraries  Arts & Heritage,Supplies and Services,Bought In Professional Services,277,27/04/2018,1804-00595,0.00,1900.00,R,Alison Mcintyre,No
Http://opendatacommunities.org/id/metropolitan-district-council/leeds,Leeds City Council,30/04/2018,Resources and Housing,Leeds Building Services,Supplies and Services,Other Hired And Contracted Services,265,04/04/2018,1804-00596,0.00,195.00,R,All Clear Solutions Ltd,No
Http://opendatacommunities.org/id/metropolitan-district-council/leeds,Leeds City Council,30/04/2018,Resources and Housing,Leeds Building Services,Supplies and Services,Other Hired And Contracted Services,265,05/04/2018,1804-00597,0.00,195.00,R,All Clear Solutions Ltd,No
Http://opendatacommunities.org/id/metropolitan-district-council/leeds,Leeds City Council,30/04/2018,Resources and Housing,Leeds Building Services,Supplies and Services,Other Hired And Contracted Services,265,05/04/2018,1804-00598,0.00,195.00,R,All Clear Solutions Ltd,No
Http://opendatacommunities.org/id/metropolitan-district-council/leeds,Leeds City Council,30/04/2018,Resources and Housing,Leeds Building Services,Supplies and Services,Other Hired And Contracted Services,265,05/04/2018,1804-00599,0.00,195.00,R,All Clear Solutions Ltd,No
Http://opendatacommunities.org/id/metropolitan-district-council/leeds,Leeds City Council,30/04/2018,Resources and Housing,Leeds Building Services,Supplies and Services,Other Hired And Contracted Services,265,26/04/2018,1804-00600,0.00,195.00,R,All Clear Solutions Ltd,No
Http://opendatacommunities.org/id/metropolitan-district-council/leeds,Leeds City Council,30/04/2018,Resources and Housing,Leeds Building Services,Supplies and Services,Other Hired And Contracted Services,265,26/04/2018,1804-00601,0.00,195.00,R,All Clear Solutions Ltd,No
Http://opendatacommunities.org/id/metropolitan-district-council/leeds,Leeds City Council,30/04/2018,Resources and Housing,Leeds Building Services,Supplies and Services,Other Hired And Contracted Services,265,26/04/2018,1804-00602,0.00,195.00,R,All Clear Solutions Ltd,No
Http://opendatacommunities.org/id/metropolitan-district-council/leeds,Leeds City Council,30/04/2018,Resources and Housing,Leeds Building Services,Supplies and Services,Other Hired And Contracted Services,265,26/04/2018,1804-00603,0.00,195.00,R,All Clear Solutions Ltd,No
Http://opendatacommunities.org/id/metropolitan-district-council/leeds,Leeds City Council,30/04/2018,Resources and Housing,Leeds Building Services,Supplies and Services,Other Hired And Contracted Services,265,26/04/2018,1804-00604,0.00,195.00,R,All Clear Solutions Ltd,No
Http://opendatacommunities.org/id/metropolitan-district-council/leeds,Leeds City Council,30/04/2018,Resources and Housing,Leeds Building Services,Supplies and Services,Other Hired And Contracted Services,265,26/04/2018,1804-00605,0.00,195.00,R,All Clear Solutions Ltd,No
Http://opendatacommunities.org/id/metropolitan-district-council/leeds,Leeds City Council,30/04/2018,Resources and Housing,Leeds Building Services,Supplies and Services,Other Hired And Contracted Services,265,26/04/2018,1804-00606,0.00,195.00,R,All Clear Solutions Ltd,No
Http://opendatacommunities.org/id/metropolitan-district-council/leeds,Leeds City Council,30/04/2018,Resources and Housing,Leeds Building Services,Supplies and Services,Other Hired And Contracted Services,265,26/04/2018,1804-00607,0.00,195.00,R,All Clear Solutions Ltd,No
Http://opendatacommunities.org/id/metropolitan-district-council/leeds,Leeds City Council,30/04/2018,Resources and Housing,Leeds Building Services,Supplies and Services,Other Hired And Contracted Services,265,26/04/2018,1804-00608,0.00,195.00,R,All Clear Solutions Ltd,No
Http://opendatacommunities.org/id/metropolitan-district-council/leeds,Leeds City Council,30/04/2018,Resources and Housing,Leeds Building Services,Supplies and Services,Other Hired And Contracted Services,265,30/04/2018,1804-00609,0.00,295.00,R,All Clear Solutions Ltd,No
Http://opendatacommunities.org/id/metropolitan-district-council/leeds,Leeds City Council,30/04/2018,Adults and Health,Services For Older People - 65 And Over,Premises,Maintenance Of Buildings,101,16/04/2018,1804-00610,0.00,116.00,R,All Safe & Secure Ltd,No
Http://opendatacommunities.org/id/metropolitan-district-council/leeds,Leeds City Council,30/04/2018,Children and Families,Safeguarding Targeted & Specialist,Third Party Payments,Services Rendered By Other Organisations,511,18/04/2018,1804-00611,0.00,4773.60,R,All Stars Childcare,No
Http://opendatacommunities.org/id/metropolitan-district-council/leeds,Leeds City Council,30/04/2018,Children and Families,Safeguarding Targeted & Specialist,Third Party Payments,Services Rendered By Other Organisations,511,20/04/2018,1804-00612,0.00,41106.00,R,All Stars Childcare,No
Http://opendatacommunities.org/id/metropolitan-district-council/leeds,Leeds City Council,30/04/2018,City Development,Highways  ,Supplies and Services,Operational Furniture And Equipment,203,23/03/2018,1804-00613,0.00,265.51,R,All Terrain Cycles Weth,Yes
Http://opendatacommunities.org/id/metropolitan-district-council/leeds,Leeds City Council,30/04/2018,Adults and Health,Services For Adults Under 65 Mental/Dis,Supplies and Services,Operational Furniture And Equipment,203,18/04/2018,1804-00614,0.00,36.00,R,Allansound Communications,No
Http://opendatacommunities.org/id/metropolitan-district-council/leeds,Leeds City Council as Accountable Body,30/04/2018,Social Services Pooled Budgets,Jcs For People With Learning Disabilitie,Third Party Payments,Sheltered Accommodation,569,04/04/2018,1804-00615,0.00,13578.36,R,Allerton Avenue,No
Http://opendatacommunities.org/id/metropolitan-district-council/leeds,Leeds City Council,30/04/2018,Strategic Accounts,Strategic,Supplies and Services,Non-Recurring Grants,227,03/04/2018,1804-00616,0.00,2178.00,R,Allerton Bywater Parish Council,No
Http://opendatacommunities.org/id/metropolitan-district-council/leeds,Leeds City Council,30/04/2018,Strategic Accounts,Strategic,Supplies and Services,Office Consumables,210,03/04/2018,1804-00617,0.00,37000.00,R,Allerton Bywater Parish Council,No
Http://opendatacommunities.org/id/metropolitan-district-council/leeds,Leeds City Council,30/04/2018,Resources and Housing,Finance,Supplies and Services,Bank Charges,263,03/04/2018,1804-00618,0.00,-126.29,R,Alliance & Leicester Commercial Bank,No
Http://opendatacommunities.org/id/metropolitan-district-council/leeds,Leeds City Council,30/04/2018,Resources and Housing,Finance,Supplies and Services,Bank Charges,263,05/04/2018,1804-00619,0.00,793.72,R,Alliance & Leicester Commercial Bank,No
Http://opendatacommunities.org/id/metropolitan-district-council/leeds,Leeds City Council,30/04/2018,Resources and Housing,Finance,Supplies and Services,Bank Charges,263,05/04/2018,1804-00620,0.00,100.10,R,Alliance & Leicester Commercial Bank,No
Http://opendatacommunities.org/id/metropolitan-district-council/leeds,Leeds City Council,30/04/2018,City Development,Recreation,Supplies and Services,Publication And Promotion,267,26/04/2018,1804-00621,0.00,70.00,R,Alliance Leisure Service Ltd,No
Http://opendatacommunities.org/id/metropolitan-district-council/leeds,Leeds City Council,30/04/2018,Insurance,Insurance,Supplies and Services,Insurance Claims,248,23/04/2018,1804-00622,0.00,3535.33,R,Allianz Insurance Plc,No
Http://opendatacommunities.org/id/metropolitan-district-council/leeds,Leeds City Council,30/04/2018,City Development,Highways,Supplies and Services,Other Hired And Contracted Services,265,06/04/2018,1804-00623,0.00,10102.58,R,Allied Exploration & Geotechnics Ltd,No
Http://opendatacommunities.org/id/metropolitan-district-council/leeds,Leeds City Council,30/04/2018,City Development,Highways,Supplies and Services,Other Hired And Contracted Services,265,06/04/2018,1804-00624,0.00,400.00,R,Allied Exploration & Geotechnics Ltd,No
Http://opendatacommunities.org/id/metropolitan-district-council/leeds,Leeds City Council,30/04/2018,City Development,Highways,Supplies and Services,Other Hired And Contracted Services,265,23/04/2018,1804-00625,0.00,13966.73,R,Allied Exploration & Geotechnics Ltd,No
Http://opendatacommunities.org/id/metropolitan-district-council/leeds,Leeds City Council,30/04/2018,City Development,Highways,Capital,Other Costs,7,23/04/2018,1804-00626,0.00,1435.00,C,Allied Exploration & Geotechnics Ltd,No
Http://opendatacommunities.org/id/metropolitan-district-council/leeds,Leeds City Council,30/04/2018,Adults and Health,Services For Older People - 65 And Over,Third Party Payments,Home Care,568,12/04/2018,1804-00627,0.00,938.99,R,Allied Healthcare,No
Http://opendatacommunities.org/id/metropolitan-district-council/leeds,Leeds City Council as Accountable Body,30/04/2018,Social Services Pooled Budgets,Jcs For People With Learning Disabilitie,Third Party Payments,Home Care,568,13/04/2018,1804-00628,0.00,14380.53,R,Allied Healthcare,No
Http://opendatacommunities.org/id/metropolitan-district-council/leeds,Leeds City Council,30/04/2018,Adults and Health,Services For Older People - 65 And Over,Third Party Payments,Home Care,568,13/04/2018,1804-00629,0.00,1691.04,R,Allied Healthcare,No
Http://opendatacommunities.org/id/metropolitan-district-council/leeds,Leeds City Council,30/04/2018,Adults and Health,Services For Older People - 65 And Over,Third Party Payments,Home Care,568,13/04/2018,1804-00630,0.00,10745.45,R,Allied Healthcare,No
Http://opendatacommunities.org/id/metropolitan-district-council/leeds,Leeds City Council,30/04/2018,Adults and Health,Services For Older People Under 65 P/Dis,Third Party Payments,Home Care,568,13/04/2018,1804-00631,0.00,1421.69,R,Allied Healthcare,No
Http://opendatacommunities.org/id/metropolitan-district-council/leeds,Leeds City Council,30/04/2018,Adults and Health,Services For Older People - 65 And Over,Third Party Payments,Home Care,568,13/04/2018,1804-00632,0.00,11126.71,R,Allied Healthcare,No
Http://opendatacommunities.org/id/metropolitan-district-council/leeds,Leeds City Council,30/04/2018,Adults and Health,Services For Older People Under 65 P/Dis,Third Party Payments,Home Care,568,13/04/2018,1804-00633,0.00,1702.12,R,Allied Healthcare,No
Http://opendatacommunities.org/id/metropolitan-district-council/leeds,Leeds City Council,30/04/2018,Adults and Health,Services For Older People - 65 And Over,Third Party Payments,Home Care,568,13/04/2018,1804-00634,0.00,9134.61,R,Allied Healthcare,No
Http://opendatacommunities.org/id/metropolitan-district-council/leeds,Leeds City Council,30/04/2018,Adults and Health,Services For Older People Under 65 P/Dis,Third Party Payments,Home Care,568,13/04/2018,1804-00635,0.00,11864.90,R,Allied Healthcare,No
Http://opendatacommunities.org/id/metropolitan-district-council/leeds,Leeds City Council as Accountable Body,30/04/2018,Social Services Pooled Budgets,Jcs For People With Learning Disabilitie,Third Party Payments,Home Care,568,18/04/2018,1804-00636,0.00,525.28,R,Allied Healthcare,No
Http://opendatacommunities.org/id/metropolitan-district-council/leeds,Leeds City Council as Accountable Body,30/04/2018,Social Services Pooled Budgets,Jcs For People With Learning Disabilitie,Third Party Payments,Home Care,568,18/04/2018,1804-00637,0.00,200.16,R,Allied Healthcare,No
Http://opendatacommunities.org/id/metropolitan-district-council/leeds,Leeds City Council,30/04/2018,Children and Families,Partnerships,Third Party Payments,Services Rendered By Voluntary Sector,505,18/04/2018,1804-00638,0.00,684.00,R,Allied Healthcare,No
Http://opendatacommunities.org/id/metropolitan-district-council/leeds,Leeds City Council as Accountable Body,30/04/2018,Social Services Pooled Budgets,Jcs For People With Learning Disabilitie,Third Party Payments,Home Care,568,19/04/2018,1804-00639,0.00,10470.78,R,Allied Healthcare,No
Http://opendatacommunities.org/id/metropolitan-district-council/leeds,Leeds City Council,30/04/2018,City Development,Libraries  Arts & Heritage,Supplies and Services,Other Hired And Contracted Services,265,05/04/2018,1804-00640,0.00,1500.00,R,Allied London,No
Http://opendatacommunities.org/id/metropolitan-district-council/leeds,Leeds City Council,30/04/2018,Children and Families,Safeguarding Targeted & Specialist,Third Party Payments,Services Rendered By Other Organisations,511,20/04/2018,1804-00641,0.00,663.00,R,Allison Dickinson,No
Http://opendatacommunities.org/id/metropolitan-district-council/leeds,Leeds City Council,30/04/2018,Strategic Landlord,Housing Management,Supplies and Services,Other Hired And Contracted Services,265,11/04/2018,1804-00642,0.00,355.37,R,Allpay Limted,No
Http://opendatacommunities.org/id/metropolitan-district-council/leeds,Leeds City Council,30/04/2018,Strategic Landlord,Housing Management,Supplies and Services,Other Hired And Contracted Services,265,11/04/2018,1804-00643,0.00,17.15,R,Allpay Limted,No
Http://opendatacommunities.org/id/metropolitan-district-council/leeds,Leeds City Council,30/04/2018,Children and Families,Safeguarding Targeted & Specialist  ,Third Party Payments,Rents (non supported),552,31/01/2018,1804-00644,0.00,-354.24,R,Allpay Moto (Callpay/I,Yes
Http://opendatacommunities.org/id/metropolitan-district-council/leeds,Leeds City Council,30/04/2018,Resources and Housing,Strategic Housing Partnership & Support  ,Supplies and Services,Other Hired And Contracted Services,265,01/03/2018,1804-00645,0.00,20.00,R,Allpay Moto (Callpay/I,Yes
Http://opendatacommunities.org/id/metropolitan-district-council/leeds,Leeds City Council,30/04/2018,Resources and Housing,Strategic Housing Partnership & Support  ,Supplies and Services,Other Hired And Contracted Services,265,06/03/2018,1804-00646,0.00,20.00,R,Allpay Moto (Callpay/I,Yes
Http://opendatacommunities.org/id/metropolitan-district-council/leeds,Leeds City Council,30/04/2018,Resources and Housing,Strategic Housing Partnership & Support  ,Supplies and Services,Other Hired And Contracted Services,265,09/03/2018,1804-00647,0.00,200.96,R,Allpay Moto (Callpay/I,Yes
Http://opendatacommunities.org/id/metropolitan-district-council/leeds,Leeds City Council,30/04/2018,Children and Families,Safeguarding Targeted & Specialist  ,Transfer Payments,Leaving Care Allowances,634,16/03/2018,1804-00648,0.00,60.00,R,Allpay Moto (Callpay/I,Yes
Http://opendatacommunities.org/id/metropolitan-district-council/leeds,Leeds City Council,30/04/2018,Resources and Housing,Strategic Housing Partnership & Support  ,Supplies and Services,Other Hired And Contracted Services,265,16/03/2018,1804-00649,0.00,60.00,R,Allpay Moto (Callpay/I,Yes
Http://opendatacommunities.org/id/metropolitan-district-council/leeds,Leeds City Council,30/04/2018,Children and Families,Safeguarding Targeted & Specialist  ,Third Party Payments,Rents (non supported),552,27/03/2018,1804-00650,0.00,354.24,R,Allpay Moto (Callpay/I,Yes
Http://opendatacommunities.org/id/metropolitan-district-council/leeds,Leeds City Council,30/04/2018,Resources and Housing,Democratic Services,Transport,Fuel (Non LCC Supplies),321,09/04/2018,1804-00651,0.00,444.16,R,Allstar Business Solutions Ltd,No
Http://opendatacommunities.org/id/metropolitan-district-council/leeds,Leeds City Council,30/04/2018,Children and Families,Learning Skills & Universal,Transport,Fuel (Non LCC Supplies),321,09/04/2018,1804-00652,0.00,1668.16,R,Allstar Business Solutions Ltd,No
Http://opendatacommunities.org/id/metropolitan-district-council/leeds,Leeds City Council,30/04/2018,Communities and Environment,Parks and Countryside,Transport,Fuel (Non LCC Supplies),321,09/04/2018,1804-00653,0.00,77.14,R,Allstar Business Solutions Ltd,No
Http://opendatacommunities.org/id/metropolitan-district-council/leeds,Leeds City Council,30/04/2018,City Development,Highways,Transport,Fuel (Non LCC Supplies),321,09/04/2018,1804-00654,0.00,357.05,R,Allstar Business Solutions Ltd,No
Http://opendatacommunities.org/id/metropolitan-district-council/leeds,Leeds City Council,30/04/2018,Resources and Housing,SP Contracts & SECC,Third Party Payments,Supporting Ppl - Block Gross Chargeable,514,20/04/2018,1804-00655,0.00,30.10,R,Alpha (Rsl) Limited,No
Http://opendatacommunities.org/id/metropolitan-district-council/leeds,Leeds City Council,30/04/2018,Resources and Housing,Shared Services,Supplies and Services,Other Hired And Contracted Services,265,23/04/2018,1804-00656,0.00,1334.00,R,Alpha Card Compact Media Ltd,No
Http://opendatacommunities.org/id/metropolitan-district-council/leeds,Leeds City Council,30/04/2018,Children and Families,Safeguarding Targeted & Specialist,Third Party Payments,Rents (non supported),552,30/04/2018,1804-00657,0.00,1782.00,R,Alpha Student Management,No
Http://opendatacommunities.org/id/metropolitan-district-council/leeds,Leeds City Council,30/04/2018,Children and Families,Safeguarding Targeted & Specialist,Support Services,Legal Disbursements,411,06/04/2018,1804-00658,0.00,151.34,R,Alphabiolabs,No
Http://opendatacommunities.org/id/metropolitan-district-council/leeds,Leeds City Council,30/04/2018,Children and Families,Safeguarding Targeted & Specialist,Support Services,Legal Disbursements,411,06/04/2018,1804-00659,0.00,198.50,R,Alphabiolabs,No
Http://opendatacommunities.org/id/metropolitan-district-council/leeds,Leeds City Council,30/04/2018,Children and Families,Safeguarding Targeted & Specialist,Support Services,Legal Disbursements,411,06/04/2018,1804-00660,0.00,162.25,R,Alphabiolabs,No
Http://opendatacommunities.org/id/metropolitan-district-council/leeds,Leeds City Council,30/04/2018,Children and Families,Safeguarding Targeted & Specialist,Support Services,Legal Disbursements,411,06/04/2018,1804-00661,0.00,387.25,R,Alphabiolabs,No
Http://opendatacommunities.org/id/metropolitan-district-council/leeds,Leeds City Council,30/04/2018,Resources and Housing,Shared Services,Supplies and Services,Licences,266,06/04/2018,1804-00662,0.00,-449.00,R,Alphabiolabs,No
Http://opendatacommunities.org/id/metropolitan-district-council/leeds,Leeds City Council,30/04/2018,Children and Families,Safeguarding Targeted & Specialist,Support Services,Legal Disbursements,411,11/04/2018,1804-00663,0.00,399.00,R,Alphabiolabs,No
Http://opendatacommunities.org/id/metropolitan-district-council/leeds,Leeds City Council,30/04/2018,Children and Families,Safeguarding Targeted & Specialist,Support Services,Legal Disbursements,411,11/04/2018,1804-00664,0.00,149.50,R,Alphabiolabs,No
Http://opendatacommunities.org/id/metropolitan-district-council/leeds,Leeds City Council,30/04/2018,Children and Families,Safeguarding Targeted & Specialist,Support Services,Legal Disbursements,411,11/04/2018,1804-00665,0.00,26.25,R,Alphabiolabs,No
Http://opendatacommunities.org/id/metropolitan-district-council/leeds,Leeds City Council,30/04/2018,Children and Families,Safeguarding Targeted & Specialist,Support Services,Legal Disbursements,411,20/04/2018,1804-00666,0.00,162.25,R,Alphabiolabs,No
Http://opendatacommunities.org/id/metropolitan-district-council/leeds,Leeds City Council,30/04/2018,Children and Families,Safeguarding Targeted & Specialist,Support Services,Legal Disbursements,411,27/04/2018,1804-00667,0.00,66.88,R,Alphabiolabs,No
Http://opendatacommunities.org/id/metropolitan-district-council/leeds,Leeds City Council,30/04/2018,Children and Families,Safeguarding Targeted & Specialist,Support Services,Legal Disbursements,411,27/04/2018,1804-00668,0.00,399.00,R,Alphabiolabs,No
Http://opendatacommunities.org/id/metropolitan-district-council/leeds,Leeds City Council,30/04/2018,Children and Families,Safeguarding Targeted & Specialist,Support Services,Legal Disbursements,411,27/04/2018,1804-00669,0.00,369.00,R,Alphabiolabs,No
Http://opendatacommunities.org/id/metropolitan-district-council/leeds,Leeds City Council,30/04/2018,Communities and Environment,Environmental Health,Supplies and Services,Other Hired And Contracted Services,265,12/04/2018,1804-00670,0.00,84.23,R,Als Environmental Limited,No
Http://opendatacommunities.org/id/metropolitan-district-council/leeds,Leeds City Council,30/04/2018,Communities and Environment,Environmental Health,Supplies and Services,Other Hired And Contracted Services,265,20/04/2018,1804-00671,0.00,75.00,R,Als Environmental Limited,No
Http://opendatacommunities.org/id/metropolitan-district-council/leeds,Leeds City Council,30/04/2018,Communities and Environment,Environmental Health,Supplies and Services,Other Hired And Contracted Services,265,20/04/2018,1804-00672,0.00,84.23,R,Als Environmental Limited,No
Http://opendatacommunities.org/id/metropolitan-district-council/leeds,Leeds City Council,30/04/2018,Communities and Environment,Environmental Health,Supplies and Services,Other Hired And Contracted Services,265,20/04/2018,1804-00673,0.00,84.23,R,Als Environmental Limited,No
Http://opendatacommunities.org/id/metropolitan-district-council/leeds,Leeds City Council,30/04/2018,Communities and Environment,Environmental Health,Supplies and Services,Other Hired And Contracted Services,265,20/04/2018,1804-00674,0.00,84.23,R,Als Environmental Limited,No
Http://opendatacommunities.org/id/metropolitan-district-council/leeds,Leeds City Council,30/04/2018,Communities and Environment,Waste Management,Supplies and Services,Other Hired And Contracted Services,265,06/04/2018,1804-00675,0.00,291.00,R,Als Life Sciences Limited,No
Http://opendatacommunities.org/id/metropolitan-district-council/leeds,Leeds City Council,30/04/2018,Resources and Housing,Corporate Property Management,Premises,Maintenance Of Buildings,101,19/04/2018,1804-00676,0.00,206.00,R,Alternative Drainage Company Ltd,No
Http://opendatacommunities.org/id/metropolitan-district-council/leeds,Leeds City Council,30/04/2018,Strategic Accounts,Strategic,Supplies and Services,Non-Recurring Grants,227,03/04/2018,1804-00677,0.00,842.00,R,Alwoodley Parish Council,No
Http://opendatacommunities.org/id/metropolitan-district-council/leeds,Leeds City Council,30/04/2018,Strategic Accounts,Strategic,Supplies and Services,Office Consumables,210,03/04/2018,1804-00678,0.00,51113.00,R,Alwoodley Parish Council,No
Http://opendatacommunities.org/id/metropolitan-district-council/leeds,Leeds City Council,30/04/2018,Communities and Environment,Communities,Supplies and Services,'Well Being' Large Grants Projects,230,13/04/2018,1804-00679,0.00,2000.00,R,Alwoodley Park Methodist Church,No
Http://opendatacommunities.org/id/metropolitan-district-council/leeds,Leeds City Council,30/04/2018,Communities and Environment,Customer Access,Supplies and Services,Other Hired And Contracted Services,265,11/04/2018,1804-00680,0.00,53.75,R,Amad Mezori,No
Http://opendatacommunities.org/id/metropolitan-district-council/leeds,Leeds City Council,30/04/2018,Children and Families,Safeguarding Targeted & Specialist,Third Party Payments,Services Rendered By Other Organisations,511,20/04/2018,1804-00681,0.00,663.00,R,REDACTED PERSONAL DATA,No
Http://opendatacommunities.org/id/metropolitan-district-council/leeds,Leeds City Council,30/04/2018,City Development,Recreation,Income,Swimming Bath Charges,923,10/04/2018,1804-00682,0.00,78.60,R,REDACTED PERSONAL DATA,No
Http://opendatacommunities.org/id/metropolitan-district-council/leeds,Leeds City Council,30/04/2018,Children and Families,Safeguarding Targeted & Specialist,Third Party Payments,Services Rendered By Other Organisations,511,18/04/2018,1804-00683,0.00,1591.20,R,REDACTED PERSONAL DATA,No
Http://opendatacommunities.org/id/metropolitan-district-council/leeds,Leeds City Council,30/04/2018,Children and Families,Safeguarding Targeted & Specialist,Third Party Payments,Services Rendered By Other Organisations,511,20/04/2018,1804-00684,0.00,1989.00,R,REDACTED PERSONAL DATA,No
Http://opendatacommunities.org/id/metropolitan-district-council/leeds,Leeds City Council,30/04/2018,Adults and Health,Services For Older People Under 65 P/Dis,Transfer Payments,Direct Payments,626,30/04/2018,1804-00685,0.00,3622.10,R,REDACTED PERSONAL DATA,No
Http://opendatacommunities.org/id/metropolitan-district-council/leeds,Leeds City Council,30/04/2018,Resources and Housing,Shared Services,Supplies and Services,Operational Materials,205,12/04/2018,1804-00686,0.00,61.67,R,Amari Plastics Plc,No
Http://opendatacommunities.org/id/metropolitan-district-council/leeds,Leeds City Council,30/04/2018,Resources and Housing,Leeds Building Services,Supplies and Services,Operational Materials,205,13/04/2018,1804-00687,0.00,38.68,R,Amari Plastics Plc,No
Http://opendatacommunities.org/id/metropolitan-district-council/leeds,Leeds City Council,30/04/2018,Resources and Housing,Leeds Building Services,Supplies and Services,Operational Materials,205,13/04/2018,1804-00688,0.00,35.00,R,Amari Plastics Plc,No
Http://opendatacommunities.org/id/metropolitan-district-council/leeds,Leeds City Council,30/04/2018,Resources and Housing,Leeds Building Services,Supplies and Services,Operational Materials,205,13/04/2018,1804-00689,0.00,75.00,R,Amari Plastics Plc,No
Http://opendatacommunities.org/id/metropolitan-district-council/leeds,Leeds City Council,30/04/2018,Resources and Housing,Leeds Building Services,Supplies and Services,Operational Materials,205,13/04/2018,1804-00690,0.00,35.00,R,Amari Plastics Plc,No
Http://opendatacommunities.org/id/metropolitan-district-council/leeds,Leeds City Council,30/04/2018,Resources and Housing,Leeds Building Services,Supplies and Services,Operational Materials,205,27/04/2018,1804-00691,0.00,88.60,R,Amari Plastics Plc,No
Http://opendatacommunities.org/id/metropolitan-district-council/leeds,Leeds City Council,30/04/2018,Resources and Housing,Leeds Building Services,Supplies and Services,Operational Materials,205,27/04/2018,1804-00692,0.00,19.60,R,Amari Plastics Plc,No
Http://opendatacommunities.org/id/metropolitan-district-council/leeds,Leeds City Council,30/04/2018,Children and Families,Safeguarding Targeted & Specialist  ,Supplies and Services,Operational Materials,205,01/03/2018,1804-00693,0.00,38.08,R,Amazon Eu Amazon.Co.Uk,Yes
Http://opendatacommunities.org/id/metropolitan-district-council/leeds,Leeds City Council,30/04/2018,Children and Families,Safeguarding Targeted & Specialist  ,Supplies and Services,Teaching Materials,202,03/03/2018,1804-00694,0.00,13.96,R,Amazon Eu Amazon.Co.Uk,Yes
Http://opendatacommunities.org/id/metropolitan-district-council/leeds,Leeds City Council,30/04/2018,Children and Families,Partnerships  ,Supplies and Services,Teaching Materials,202,05/03/2018,1804-00695,0.00,12.84,R,Amazon Eu Amazon.Co.Uk,Yes
Http://opendatacommunities.org/id/metropolitan-district-council/leeds,Leeds City Council,30/04/2018,Children and Families,Learning Skills & Universal  ,Supplies and Services,Teaching Furniture & Equipment,207,06/03/2018,1804-00696,0.00,17.77,R,Amazon Eu Amazon.Co.Uk,Yes
Http://opendatacommunities.org/id/metropolitan-district-council/leeds,Leeds City Council,30/04/2018,Children and Families,Learning Skills & Universal  ,Supplies and Services,Teaching Furniture & Equipment,207,06/03/2018,1804-00697,0.00,13.51,R,Amazon Eu Amazon.Co.Uk,Yes
Http://opendatacommunities.org/id/metropolitan-district-council/leeds,Leeds City Council,30/04/2018,Children and Families,Learning Skills & Universal  ,Supplies and Services,Teaching Furniture & Equipment,207,06/03/2018,1804-00698,0.00,58.48,R,Amazon Eu Amazon.Co.Uk,Yes
Http://opendatacommunities.org/id/metropolitan-district-council/leeds,Leeds City Council,30/04/2018,Children and Families,Learning Skills & Universal  ,Supplies and Services,Teaching Furniture & Equipment,207,06/03/2018,1804-00699,0.00,4.78,R,Amazon Eu Amazon.Co.Uk,Yes
Http://opendatacommunities.org/id/metropolitan-district-council/leeds,Leeds City Council,30/04/2018,Children and Families,Learning Skills & Universal  ,Supplies and Services,Teaching Furniture & Equipment,207,06/03/2018,1804-00700,0.00,12.99,R,Amazon Eu Amazon.Co.Uk,Yes
Http://opendatacommunities.org/id/metropolitan-district-council/leeds,Leeds City Council,30/04/2018,City Development,Libraries  Arts & Heritage  ,Supplies and Services,Books & Audio-Visual Materials,206,06/03/2018,1804-00701,0.00,47.98,R,Amazon Eu Amazon.Co.Uk,Yes
Http://opendatacommunities.org/id/metropolitan-district-council/leeds,Leeds City Council,30/04/2018,Children and Families,Safeguarding Targeted & Specialist  ,Transfer Payments,Payments To Residents,622,08/03/2018,1804-00702,0.00,32.90,R,Amazon Eu Amazon.Co.Uk,Yes
Http://opendatacommunities.org/id/metropolitan-district-council/leeds,Leeds City Council,30/04/2018,Children and Families,Safeguarding Targeted & Specialist  ,Supplies and Services,Teaching Furniture & Equipment,207,11/03/2018,1804-00703,0.00,82.72,R,Amazon Eu Amazon.Co.Uk,Yes
Http://opendatacommunities.org/id/metropolitan-district-council/leeds,Leeds City Council,30/04/2018,Resources and Housing,Commercial Services  ,Supplies and Services,Office Consumables,210,14/03/2018,1804-00704,0.00,74.79,R,Amazon Eu Amazon.Co.Uk,Yes
Http://opendatacommunities.org/id/metropolitan-district-council/leeds,Leeds City Council,30/04/2018,Children and Families,Safeguarding Targeted & Specialist  ,Supplies and Services,Teaching Materials,202,14/03/2018,1804-00705,0.00,15.80,R,Amazon Eu Amazon.Co.Uk,Yes
Http://opendatacommunities.org/id/metropolitan-district-council/leeds,Leeds City Council,30/04/2018,Children and Families,Safeguarding Targeted & Specialist  ,Third Party Payments,Section 17,551,14/03/2018,1804-00706,0.00,17.98,R,Amazon Eu Amazon.Co.Uk,Yes
Http://opendatacommunities.org/id/metropolitan-district-council/leeds,Leeds City Council,30/04/2018,Children and Families,Safeguarding Targeted & Specialist  ,Supplies and Services,Teaching Materials,202,16/03/2018,1804-00707,0.00,12.97,R,Amazon Eu Amazon.Co.Uk,Yes
Http://opendatacommunities.org/id/metropolitan-district-council/leeds,Leeds City Council,30/04/2018,Adults and Health,Public Health  ,Supplies and Services,Books & Audio-Visual Materials,206,16/03/2018,1804-00708,0.00,27.99,R,Amazon Eu Amazon.Co.Uk,Yes
Http://opendatacommunities.org/id/metropolitan-district-council/leeds,Leeds City Council,30/04/2018,Children and Families,Safeguarding Targeted & Specialist  ,Transfer Payments,Leaving Care Grants,635,16/03/2018,1804-00709,0.00,20.83,R,Amazon Eu Amazon.Co.Uk,Yes
Http://opendatacommunities.org/id/metropolitan-district-council/leeds,Leeds City Council,30/04/2018,Children and Families,Partnerships  ,Supplies and Services,Teaching Materials,202,17/03/2018,1804-00710,0.00,7.48,R,Amazon Eu Amazon.Co.Uk,Yes
Http://opendatacommunities.org/id/metropolitan-district-council/leeds,Leeds City Council,30/04/2018,Children and Families,Learning Skills & Universal  ,Supplies and Services,Teaching Furniture & Equipment,207,19/03/2018,1804-00711,0.00,19.99,R,Amazon Eu Amazon.Co.Uk,Yes
Http://opendatacommunities.org/id/metropolitan-district-council/leeds,Leeds City Council,30/04/2018,Children and Families,Safeguarding Targeted & Specialist  ,Supplies and Services,Office Consumables,210,20/03/2018,1804-00712,0.00,383.24,R,Amazon Eu Amazon.Co.Uk,Yes
Http://opendatacommunities.org/id/metropolitan-district-council/leeds,Leeds City Council,30/04/2018,Resources and Housing,Human Resources  ,Supplies and Services,Computer Software & Equipment,214,20/03/2018,1804-00713,0.00,34.99,R,Amazon Eu Amazon.Co.Uk,Yes
Http://opendatacommunities.org/id/metropolitan-district-council/leeds,Leeds City Council,30/04/2018,Children and Families,Safeguarding Targeted & Specialist  ,Supplies and Services,Office Consumables,210,21/03/2018,1804-00714,0.00,40.45,R,Amazon Eu Amazon.Co.Uk,Yes
Http://opendatacommunities.org/id/metropolitan-district-council/leeds,Leeds City Council,30/04/2018,Communities and Environment,Customer Access  ,Supplies and Services,Computer Software & Equipment,214,21/03/2018,1804-00715,0.00,10.02,R,Amazon Eu Amazon.Co.Uk,Yes
Http://opendatacommunities.org/id/metropolitan-district-council/leeds,Leeds City Council,30/04/2018,City Development,Libraries  Arts & Heritage  ,Supplies and Services,Operational Furniture And Equipment,203,23/03/2018,1804-00716,0.00,10.31,R,Amazon Eu Amazon.Co.Uk,Yes
Http://opendatacommunities.org/id/metropolitan-district-council/leeds,Leeds City Council,30/04/2018,Communities and Environment,Cleaner Neighbourhood Teams  ,Supplies and Services,Operational Furniture And Equipment,203,25/03/2018,1804-00717,0.00,18.20,R,Amazon Eu Amazon.Co.Uk,Yes
Http://opendatacommunities.org/id/metropolitan-district-council/leeds,Leeds City Council,30/04/2018,Children and Families,Safeguarding Targeted & Specialist  ,Supplies and Services,Teaching Materials,202,26/03/2018,1804-00718,0.00,5.00,R,Amazon Eu Amazon.Co.Uk,Yes
Http://opendatacommunities.org/id/metropolitan-district-council/leeds,Leeds City Council,30/04/2018,Children and Families,Safeguarding Targeted & Specialist  ,Supplies and Services,Operational Furniture And Equipment,203,27/03/2018,1804-00719,0.00,35.40,R,Amazon Eu Amazon.Co.Uk,Yes
Http://opendatacommunities.org/id/metropolitan-district-council/leeds,Leeds City Council,30/04/2018,Children and Families,Safeguarding Targeted & Specialist  ,Supplies and Services,Teaching Materials,202,27/03/2018,1804-00720,0.00,38.80,R,Amazon Eu Amazon.Co.Uk,Yes
Http://opendatacommunities.org/id/metropolitan-district-council/leeds,Leeds City Council,30/04/2018,Children and Families,Safeguarding Targeted & Specialist  ,Supplies and Services,Operational Furniture And Equipment,203,27/03/2018,1804-00721,0.00,6.53,R,Amazon Eu Amazon.Co.Uk,Yes
Http://opendatacommunities.org/id/metropolitan-district-council/leeds,Leeds City Council,30/04/2018,Communities and Environment,Benefits  Wlefare And Poverty  ,Supplies and Services,Office Furniture & Equipment,201,27/03/2018,1804-00722,0.00,7.12,R,Amazon Eu Amazon.Co.Uk,Yes
Http://opendatacommunities.org/id/metropolitan-district-council/leeds,Leeds City Council,30/04/2018,City Development,Recreation,Supplies and Services,Operational Furniture And Equipment,203,11/04/2018,1804-00723,0.00,212.80,R,Amazon Leisure Uk Ltd,No
Http://opendatacommunities.org/id/metropolitan-district-council/leeds,Leeds City Council,30/04/2018,City Development,Recreation,Supplies and Services,Operational Furniture And Equipment,203,11/04/2018,1804-00724,0.00,105.00,R,Amazon Leisure Uk Ltd,No
Http://opendatacommunities.org/id/metropolitan-district-council/leeds,Leeds City Council,30/04/2018,City Development,Recreation,Supplies and Services,Operational Furniture And Equipment,203,18/04/2018,1804-00725,0.00,372.00,R,Amazon Leisure Uk Ltd,No
Http://opendatacommunities.org/id/metropolitan-district-council/leeds,Leeds City Council,30/04/2018,City Development,Recreation,Supplies and Services,Operational Furniture And Equipment,203,20/04/2018,1804-00726,0.00,150.00,R,Amazon Leisure Uk Ltd,No
Http://opendatacommunities.org/id/metropolitan-district-council/leeds,Leeds City Council,30/04/2018,City Development,Recreation,Supplies and Services,Operational Furniture And Equipment,203,20/04/2018,1804-00727,0.00,449.11,R,Amazon Leisure Uk Ltd,No
Http://opendatacommunities.org/id/metropolitan-district-council/leeds,Leeds City Council,30/04/2018,City Development,Recreation,Supplies and Services,Operational Furniture And Equipment,203,25/04/2018,1804-00728,0.00,172.50,R,Amazon Leisure Uk Ltd,No
Http://opendatacommunities.org/id/metropolitan-district-council/leeds,Leeds City Council,30/04/2018,Communities and Environment,Customer Access  ,Supplies and Services,Office Furniture & Equipment,201,03/03/2018,1804-00729,0.00,7.99,R,Amazon Prime,Yes
Http://opendatacommunities.org/id/metropolitan-district-council/leeds,Leeds City Council,30/04/2018,Children and Families,Safeguarding Targeted & Specialist  ,Supplies and Services,Teaching Materials,202,03/03/2018,1804-00730,0.00,7.99,R,Amazon Prime,Yes
Http://opendatacommunities.org/id/metropolitan-district-council/leeds,Leeds City Council,30/04/2018,Children and Families,Safeguarding Targeted & Specialist  ,Supplies and Services,Teaching Materials,202,24/03/2018,1804-00731,0.00,7.99,R,Amazon Prime,Yes
Http://opendatacommunities.org/id/metropolitan-district-council/leeds,Leeds City Council,30/04/2018,City Development,Libraries  Arts & Heritage  ,Supplies and Services,Operational Materials,205,09/03/2018,1804-00732,0.00,7.99,R,Amazon Prime Member Fee A,Yes
Http://opendatacommunities.org/id/metropolitan-district-council/leeds,Leeds City Council,30/04/2018,Resources and Housing,Commercial Services  ,Supplies and Services,Operational Furniture And Equipment,203,27/03/2018,1804-00733,0.00,7.99,R,Amazon Prime Member Fee A,Yes
Http://opendatacommunities.org/id/metropolitan-district-council/leeds,Leeds City Council,30/04/2018,City Development,Libraries  Arts & Heritage  ,Supplies and Services,Publication And Promotion,267,28/03/2018,1804-00734,0.00,37.49,R,Amazon Prime Now Uk,Yes
Http://opendatacommunities.org/id/metropolitan-district-council/leeds,Leeds City Council,30/04/2018,Communities and Environment,Customer Access  ,Supplies and Services,Office Consumables,210,28/02/2018,1804-00735,0.00,14.83,R,Amazon Svcs Eu-Uk Amazon.,Yes
Http://opendatacommunities.org/id/metropolitan-district-council/leeds,Leeds City Council,30/04/2018,Children and Families,Safeguarding Targeted & Specialist  ,Supplies and Services,Teaching Materials,202,28/02/2018,1804-00736,0.00,10.20,R,Amazon Svcs Eu-Uk Amazon.,Yes
Http://opendatacommunities.org/id/metropolitan-district-council/leeds,Leeds City Council,30/04/2018,City Development,Libraries  Arts & Heritage  ,Supplies and Services,Operational Materials,205,01/03/2018,1804-00737,0.00,4.04,R,Amazon Svcs Eu-Uk Amazon.,Yes
Http://opendatacommunities.org/id/metropolitan-district-council/leeds,Leeds City Council,30/04/2018,Resources and Housing,Human Resources  ,Employees,Best Value Training,70,01/03/2018,1804-00738,0.00,1.24,R,Amazon Svcs Eu-Uk Amazon.,Yes
Http://opendatacommunities.org/id/metropolitan-district-council/leeds,Leeds City Council,30/04/2018,Children and Families,Safeguarding Targeted & Specialist  ,Supplies and Services,Operational Furniture And Equipment,203,01/03/2018,1804-00739,0.00,11.15,R,Amazon Svcs Eu-Uk Amazon.,Yes
Http://opendatacommunities.org/id/metropolitan-district-council/leeds,Leeds City Council,30/04/2018,Resources and Housing,Human Resources  ,Employees,Best Value Training,70,01/03/2018,1804-00740,0.00,49.80,R,Amazon Svcs Eu-Uk Amazon.,Yes
Http://opendatacommunities.org/id/metropolitan-district-council/leeds,Leeds City Council,30/04/2018,Resources and Housing,Commercial Services  ,Transport,Miscellaneous Transport Related Costs,324,01/03/2018,1804-00741,0.00,39.00,R,Amazon Svcs Eu-Uk Amazon.,Yes
Http://opendatacommunities.org/id/metropolitan-district-council/leeds,Leeds City Council,30/04/2018,Resources and Housing,Commercial Services  ,Transport,Miscellaneous Transport Related Costs,324,01/03/2018,1804-00742,0.00,37.00,R,Amazon Svcs Eu-Uk Amazon.,Yes
Http://opendatacommunities.org/id/metropolitan-district-council/leeds,Leeds City Council,30/04/2018,Resources and Housing,Human Resources  ,Employees,Best Value Training,70,02/03/2018,1804-00743,0.00,24.43,R,Amazon Svcs Eu-Uk Amazon.,Yes
Http://opendatacommunities.org/id/metropolitan-district-council/leeds,Leeds City Council,30/04/2018,City Development,Planning & Sustainable Development  ,Supplies and Services,Operational Materials,205,03/03/2018,1804-00744,0.00,16.99,R,Amazon Svcs Eu-Uk Amazon.,Yes
Http://opendatacommunities.org/id/metropolitan-district-council/leeds,Leeds City Council,30/04/2018,Resources and Housing,Human Resources  ,Supplies and Services,Operational Materials,205,04/03/2018,1804-00745,0.00,23.97,R,Amazon Svcs Eu-Uk Amazon.,Yes
Http://opendatacommunities.org/id/metropolitan-district-council/leeds,Leeds City Council,30/04/2018,Resources and Housing,Human Resources  ,Supplies and Services,Operational Materials,205,05/03/2018,1804-00746,0.00,11.99,R,Amazon Svcs Eu-Uk Amazon.,Yes
Http://opendatacommunities.org/id/metropolitan-district-council/leeds,Leeds City Council,30/04/2018,Communities and Environment,Environmental Action (City Centre)  ,Supplies and Services,Office Consumables,210,05/03/2018,1804-00747,0.00,7.55,R,Amazon Svcs Eu-Uk Amazon.,Yes
Http://opendatacommunities.org/id/metropolitan-district-council/leeds,Leeds City Council,30/04/2018,Adults and Health,Services For Adults Under 65 Mental/Dis  ,Supplies and Services,Books & Audio-Visual Materials,206,05/03/2018,1804-00748,0.00,17.99,R,Amazon Svcs Eu-Uk Amazon.,Yes
Http://opendatacommunities.org/id/metropolitan-district-council/leeds,Leeds City Council,30/04/2018,City Development,Libraries  Arts & Heritage  ,Supplies and Services,Books & Audio-Visual Materials,206,06/03/2018,1804-00749,0.00,57.39,R,Amazon Svcs Eu-Uk Amazon.,Yes
Http://opendatacommunities.org/id/metropolitan-district-council/leeds,Leeds City Council,30/04/2018,Adults and Health,Services For Adults Under 65 Mental/Dis  ,Supplies and Services,Books & Audio-Visual Materials,206,06/03/2018,1804-00750,0.00,2.44,R,Amazon Svcs Eu-Uk Amazon.,Yes
Http://opendatacommunities.org/id/metropolitan-district-council/leeds,Leeds City Council,30/04/2018,Adults and Health,Services For Adults Under 65 Mental/Dis  ,Supplies and Services,Operational Furniture And Equipment,203,06/03/2018,1804-00751,0.00,28.16,R,Amazon Svcs Eu-Uk Amazon.,Yes
Http://opendatacommunities.org/id/metropolitan-district-council/leeds,Leeds City Council,30/04/2018,City Development,Libraries  Arts & Heritage  ,Supplies and Services,Books & Audio-Visual Materials,206,06/03/2018,1804-00752,0.00,13.73,R,Amazon Svcs Eu-Uk Amazon.,Yes
Http://opendatacommunities.org/id/metropolitan-district-council/leeds,Leeds City Council,30/04/2018,Communities and Environment,Customer Access  ,Supplies and Services,Office Furniture & Equipment,201,06/03/2018,1804-00753,0.00,33.29,R,Amazon Svcs Eu-Uk Amazon.,Yes
Http://opendatacommunities.org/id/metropolitan-district-council/leeds,Leeds City Council,30/04/2018,Communities and Environment,Customer Access  ,Supplies and Services,Office Furniture & Equipment,201,06/03/2018,1804-00754,0.00,33.29,R,Amazon Svcs Eu-Uk Amazon.,Yes
Http://opendatacommunities.org/id/metropolitan-district-council/leeds,Leeds City Council,30/04/2018,Resources and Housing,Sp Contracts & Secc  ,Supplies and Services,Advertising,211,07/03/2018,1804-00755,0.00,33.60,R,Amazon Svcs Eu-Uk Amazon.,Yes
Http://opendatacommunities.org/id/metropolitan-district-council/leeds,Leeds City Council,30/04/2018,Children and Families,Learning Skills & Universal  ,Supplies and Services,Teaching Furniture & Equipment,207,07/03/2018,1804-00756,0.00,12.97,R,Amazon Svcs Eu-Uk Amazon.,Yes
Http://opendatacommunities.org/id/metropolitan-district-council/leeds,Leeds City Council,30/04/2018,Children and Families,Learning Skills & Universal  ,Supplies and Services,Teaching Furniture & Equipment,207,07/03/2018,1804-00757,0.00,24.10,R,Amazon Svcs Eu-Uk Amazon.,Yes
Http://opendatacommunities.org/id/metropolitan-district-council/leeds,Leeds City Council,30/04/2018,Communities and Environment,Benefits  Wlefare And Poverty  ,Supplies and Services,Office Furniture & Equipment,201,07/03/2018,1804-00758,0.00,9.39,R,Amazon Svcs Eu-Uk Amazon.,Yes
Http://opendatacommunities.org/id/metropolitan-district-council/leeds,Leeds City Council,30/04/2018,Children and Families,Learning Skills & Universal  ,Supplies and Services,Teaching Furniture & Equipment,207,07/03/2018,1804-00759,0.00,45.38,R,Amazon Svcs Eu-Uk Amazon.,Yes
Http://opendatacommunities.org/id/metropolitan-district-council/leeds,Leeds City Council,30/04/2018,Communities and Environment,Benefits  Wlefare And Poverty  ,Supplies and Services,Office Furniture & Equipment,201,07/03/2018,1804-00760,0.00,9.39,R,Amazon Svcs Eu-Uk Amazon.,Yes
